Service Area,Service Division,Expense Type,Expense Code,Detailed Expense Type,Payment Date,Transaction Number,Amount Exc Vat,Supplier Name
Children and Adult Services,CYPS - Local Authority,Transport,230005,Contract Hire,01-Oct-2013,2648945-CLUB13036B,640.00,CLUBMAN CABS.
Children and Adult Services,CYPS - Local Authority,Supplies and Services,338040,Services,01-Oct-2013,2648984,"16,985.00",HMCTS.
Children and Adult Services,CYPS - Local Authority,Supplies and Services,338042,Services,01-Oct-2013,2649012,750.00,MARK STYLES.
Children and Adult Services,CYPS - Local Authority,Supplies and Services,342007,Computers and Communications,01-Oct-2013,2649020-6322A,600.00,MITAC PARTNERSHIP LTD.
Children and Adult Services,CYPS - Local Authority,Supplies and Services,338042,Services,01-Oct-2013,2649022,625.00,MR CHRISTOPHER DORMAN O`GOWAN.
Children and Adult Services,CYPS - Local Authority,Third Party Payments,425040,Rendered by Voluntary Organisations,01-Oct-2013,2649024-NFA86504,"3,000.00",NATIONAL FOSTERING AGENCY LTD.
Children and Adult Services,CYPS - Local Authority,Supplies and Services,338027,Services,01-Oct-2013,2649038-306,"13,150.00",PEOPLETOO LTD.
Children and Adult Services,CYPS - Local Authority,Third Party Payments,440005,Other Third Party Payments,01-Oct-2013,2648367-903123,"1,217.31",REDACTED - PAYMENT TO INDIVIDUAL
Children and Adult Services,CYPS - Local Authority,Third Party Payments,440005,Other Third Party Payments,01-Oct-2013,2648367-903124,"1,217.31",REDACTED - PAYMENT TO INDIVIDUAL
Children and Adult Services,CYPS - Local Authority,Third Party Payments,440015,Other Third Party Payments,01-Oct-2013,2648469-902861,592.62,REDACTED - PAYMENT TO INDIVIDUAL
Children and Adult Services,CYPS - Local Authority,Third Party Payments,440015,Other Third Party Payments,01-Oct-2013,2648469-902862,592.62,REDACTED - PAYMENT TO INDIVIDUAL
Children and Adult Services,CYPS - Local Authority,Third Party Payments,440015,Other Third Party Payments,01-Oct-2013,2648491-903255,714.38,REDACTED - PAYMENT TO INDIVIDUAL
Children and Adult Services,CYPS - Local Authority,Third Party Payments,440015,Other Third Party Payments,01-Oct-2013,2648491-903256,759.72,REDACTED - PAYMENT TO INDIVIDUAL
Children and Adult Services,CYPS - Local Authority,Third Party Payments,440016,Other Third Party Payments,01-Oct-2013,2648587-902817,"2,542.35",REDACTED - PAYMENT TO INDIVIDUAL
Children and Adult Services,CYPS - Local Authority,Third Party Payments,440016,Other Third Party Payments,01-Oct-2013,2648587-902818,790.23,REDACTED - PAYMENT TO INDIVIDUAL
Children and Adult Services,CYPS - Local Authority,Third Party Payments,440001,Other Third Party Payments,01-Oct-2013,2648838-902171,525.00,REDACTED - PAYMENT TO INDIVIDUAL
Children and Adult Services,CYPS - Local Authority,Transport,230005,Contract Hire,01-Oct-2013,2649051-71203,587.00,SHOTTON PRIVATE HIRE.
Children and Adult Services,CYPS - Local Authority,Supplies and Services,304516,Equipment and Materials,01-Oct-2013,2649064-14638,545.00,TOTAL BACK CARE CENTRE LTD.
Children and Adult Services,CYPS - Local Authority,Premises,106099,Centrally Controlled Rep and Maint,01-Oct-2013,2649069-01,726.00,W NELSON JOINERY.
Children and Adult Services,CYPS - Local Authority,Third Party Payments,425021,Rendered by Voluntary Organisations,01-Oct-2013,2649072-000541,"1,071.42",WHITEHORSE LODGE LTD.
Children and Adult Services,CYPS - Local Authority,Third Party Payments,425040,Rendered by Voluntary Organisations,01-Oct-2013,2649072-000542,"10,000.00",WHITEHORSE LODGE LTD.
Children and Adult Services,Head of Adults,Supplies and Services,324117,Provisions,01-Oct-2013,2648997-N80311,646.36,JR HOLLAND FOOD SERVICES LTD.
Children and Adult Services,Head of Adults,Transport,230005,Contract Hire,01-Oct-2013,2649015-36,"1,071.00",MAURICE & SONS.
Children and Adult Services,Head of Adults,Transport,230005,Contract Hire,01-Oct-2013,2649021-475,500.00,MR AD HOWARD.
Children and Adult Services,Head of Adults,Supplies and Services,384918,Miscellaneous Expenses,01-Oct-2013,224246,"13,500.00",REDACTED - PAYMENT TO INDIVIDUAL
Children and Adult Services,Public Health,Premises,120021,Energy Costs,01-Oct-2013,2649034-145961975,"1,583.04",NPOWER.
Children and Adult Services,Public Health,Third Party Payments,460803,Contract Payments,01-Oct-2013,2649047-RTD21,"2,800.00",ROWLANDS GILL MEDICAL CENTRE.
Corporate Resources,Financing- Resources,Supplies and Services,342055,Computers and Communications,01-Oct-2013,2648943-C/RB119422,"4,070.00",CIVICA UK LTD.
Corporate Resources,ICT Services incl. Design and Print,Premises,125009,Rents,01-Oct-2013,2648929-D12795,"10,000.00",BRADLEY HALL CHARTERED SURVEYORS CLIENT ACCOUNT.
Corporate Resources,ICT Services incl. Design and Print,Supplies and Services,342051,Computers and Communications,01-Oct-2013,2648959-6568,"21,219.91",DOCUMATION SOFTWARE LTD.
Corporate Resources,ICT Services incl. Design and Print,Stock,926900,Stock in hand-Inventory system,01-Oct-2013,2648978-INV0150940,"4,350.00",GV MULTI MEDIA LTD.
Corporate Resources,ICT Services incl. Design and Print,Supplies and Services,304303,Equipment and Materials,01-Oct-2013,2648978-INV0150941,"2,922.00",GV MULTI MEDIA LTD.
Corporate Resources,ICT Services incl. Design and Print,Supplies and Services,304245,Equipment and Materials,01-Oct-2013,2648986-16839680,638.23,HOWARD SMITH PAPER GROUP.
Corporate Resources,ICT Services incl. Design and Print,"Vehicles, Equipment, Furniture and Fittings",912701,Computer equipment,01-Oct-2013,2649005-00202703,611.50,LEVANT OFFICE INTERIORS.
Corporate Resources,ICT Services incl. Design and Print,Supplies and Services,342053,Computers and Communications,01-Oct-2013,2649008-IN144280,"1,800.00",LOGMEIN IRELAND LTD.
Neighbourhood Services,Culture & Sport,Supplies and Services,384700,Miscellaneous Expenses,01-Oct-2013,2648946-3910000512,"22,634.94",CO DURHAM & DARLINGTON NHS FOUNDATION TRUST.
Neighbourhood Services,Culture & Sport,Supplies and Services,304221,Equipment and Materials,01-Oct-2013,2648951-19461,"2,275.00",CONTAINERS 2000 LTD.
Neighbourhood Services,Culture & Sport,Premises,155001,Insurance of Premises,01-Oct-2013,2648989-6459,"6,708.58",IMPALA ESTATES LTD.
Neighbourhood Services,Culture & Sport,Supplies and Services,384199,Miscellaneous Expenses,01-Oct-2013,2649011-N000002,"1,000.00",MARIA M CARRASCO.
Neighbourhood Services,Culture & Sport,Premises,120009,Energy Costs,01-Oct-2013,2649029-48290853,"1,790.33",NHS PROPERTY SERVICES LTD.
Neighbourhood Services,Culture & Sport,Premises,125009,Rents,01-Oct-2013,2649029-48290855,"4,840.25",NHS PROPERTY SERVICES LTD.
Neighbourhood Services,Culture & Sport,Premises,125009,Rents,01-Oct-2013,2649029-48290980,"1,613.42",NHS PROPERTY SERVICES LTD.
Neighbourhood Services,Culture & Sport,Premises,125009,Rents,01-Oct-2013,2649029-48290981,"1,613.42",NHS PROPERTY SERVICES LTD.
Neighbourhood Services,Culture & Sport,Premises,125009,Rents,01-Oct-2013,2649029-48290982,"1,613.42",NHS PROPERTY SERVICES LTD.
Neighbourhood Services,Culture & Sport,Premises,120009,Energy Costs,01-Oct-2013,2649029-48292463,596.77,NHS PROPERTY SERVICES LTD.
Neighbourhood Services,Culture & Sport,Premises,120009,Energy Costs,01-Oct-2013,2649029-48292464,596.77,NHS PROPERTY SERVICES LTD.
Neighbourhood Services,Culture & Sport,Premises,120009,Energy Costs,01-Oct-2013,2649029-48292465,596.77,NHS PROPERTY SERVICES LTD.
Neighbourhood Services,Culture & Sport,Premises,120021,Energy Costs,01-Oct-2013,2649031,"1,170.30",NORTHERN PROPERTY (UK) LTD.
Neighbourhood Services,Culture & Sport,Supplies and Services,338078,Services,01-Oct-2013,2649042-3623,861.00,QW SECURITY LTD.
Neighbourhood Services,Culture & Sport,Supplies and Services,384199,Miscellaneous Expenses,01-Oct-2013,2649010-2013/006,"2,500.00",REDACTED - PAYMENT TO INDIVIDUAL
Neighbourhood Services,Direct Services,Supplies and Services,304259,Equipment and Materials,01-Oct-2013,2648919-31259,890.50,AA FLAGS LTD.
Neighbourhood Services,Direct Services,Supplies and Services,328041,"Clothing, Uniforms and Laundry",01-Oct-2013,2648927-SN1374022,528.00,BERENDSEN UK LTD
Neighbourhood Services,Direct Services,Third Party Payments,430100,Rendered by Private Contractors,01-Oct-2013,2648942-3336,608.00,CITY FABRICATIONS.
Neighbourhood Services,Direct Services,Supplies and Services,338099,Services,01-Oct-2013,2648948-3049,705.00,COMMA PRINT LTD.
Neighbourhood Services,Direct Services,Supplies and Services,304221,Equipment and Materials,01-Oct-2013,2648952-82159,"4,523.62",CORMETON ELECTRONICS LTD.
Neighbourhood Services,Direct Services,Supplies and Services,304259,Equipment and Materials,01-Oct-2013,2648966-3060569,"2,633.80",EAST RIDING HORTICULTURE LTD.
Neighbourhood Services,Direct Services,Premises,145009,Cleaning and Domestic Supplies,01-Oct-2013,2648970-INV71029,727.00,FCC RECYCLING (UK)  LTD.
Neighbourhood Services,Direct Services,Supplies and Services,384199,Miscellaneous Expenses,01-Oct-2013,2648970-INV74060,858.20,FCC RECYCLING (UK)  LTD.
Neighbourhood Services,Direct Services,Premises,145009,Cleaning and Domestic Supplies,01-Oct-2013,2648970-INV76022,631.00,FCC RECYCLING (UK)  LTD.
Neighbourhood Services,Direct Services,Third Party Payments,430100,Rendered by Private Contractors,01-Oct-2013,2649007-1177,627.00,LMC ELECTRICAL SERVICES T/A LMC ELECTRICAL & STAIRLIFT SERVICES LTD.
Neighbourhood Services,Direct Services,Transport,230005,Contract Hire,01-Oct-2013,2649009-98131,"1,700.00",LONDONDERRY GARAGE LTD.
Neighbourhood Services,Direct Services,Supplies and Services,304221,Equipment and Materials,01-Oct-2013,2649040-INV198801,658.70,POINTER LTD.
Neighbourhood Services,Direct Services,Supplies and Services,304221,Equipment and Materials,01-Oct-2013,2649073-83986138,640.20,WOLSELEY UK LTD.
Neighbourhood Services,Projects and Business services,Third Party Payments,430104,Rendered by Private Contractors,01-Oct-2013,2648985,"34,526.40",HMRC..
Neighbourhood Services,Technical Services,Supplies and Services,304221,Equipment and Materials,01-Oct-2013,2648917-9030059952,"1,190.00",(WAS TARMAC LTD) LAFARGE AGGREGATES LTD.
Neighbourhood Services,Technical Services,Supplies and Services,304221,Equipment and Materials,01-Oct-2013,2648917-9030072719,939.00,(WAS TARMAC LTD) LAFARGE AGGREGATES LTD.
Neighbourhood Services,Technical Services,Supplies and Services,304221,Equipment and Materials,01-Oct-2013,2648917-9030072721,626.00,(WAS TARMAC LTD) LAFARGE AGGREGATES LTD.
Neighbourhood Services,Technical Services,Construction Work,908114,Capital - Bridge Strengthening,01-Oct-2013,2648921-60268123-93,"2,482.49",AECOM LTD.
Neighbourhood Services,Technical Services,Supplies and Services,304221,Equipment and Materials,01-Oct-2013,2648922-18619645,"5,986.27",AGGREGATE INDUSTRIES UK LTD.
Neighbourhood Services,Technical Services,Supplies and Services,304221,Equipment and Materials,01-Oct-2013,2648922-18625684,"2,402.91",AGGREGATE INDUSTRIES UK LTD.
Neighbourhood Services,Technical Services,Construction Work,908108,Capital - Surface Dressing,01-Oct-2013,2648954-9711,"8,097.73",COUPE LINE LTD.
Neighbourhood Services,Technical Services,Construction Work,908108,Capital - Surface Dressing,01-Oct-2013,2648954-9727,"10,968.52",COUPE LINE LTD.
Neighbourhood Services,Technical Services,Construction Work,908108,Capital - Surface Dressing,01-Oct-2013,2648954-9734,"11,529.08",COUPE LINE LTD.
Neighbourhood Services,Technical Services,Construction Work,908108,Capital - Surface Dressing,01-Oct-2013,2649000-12829.,"43,516.95",KIELY BROS LTD.
Neighbourhood Services,Technical Services,Construction Work,908108,Capital - Surface Dressing,01-Oct-2013,2649000-12973,"99,038.94",KIELY BROS LTD.
Neighbourhood Services,Technical Services,Third Party Payments,430100,Rendered by Private Contractors,01-Oct-2013,2649025-NC10/C224/BW,"14,882.94",NEDCO CONTRACTS (NE) LTD.
Neighbourhood Services,Technical Services,Third Party Payments,430100,Rendered by Private Contractors,01-Oct-2013,2649025-NC11/C224/BW,"6,645.65",NEDCO CONTRACTS (NE) LTD.
Neighbourhood Services,Technical Services,Stock,926900,Stock in hand-Inventory system,01-Oct-2013,2649037-4043439,"3,281.46",PDT SEALING SYSTEMS LTD.
Neighbourhood Services,Technical Services,Supplies and Services,342051,Computers and Communications,01-Oct-2013,2649044-OP/I125112,"5,650.00",RIBA ENTERPRISES LTD.
Neighbourhood Services,Technical Services,Third Party Payments,430100,Rendered by Private Contractors,01-Oct-2013,2649048-SIL/D262/2326,"8,224.98",SEALANE INSHORE LTD.
RED HRA,HRA Capital,Construction Work,908105,Construction work,01-Oct-2013,2648942-3330,811.20,CITY FABRICATIONS.
RED HRA,HRA Capital,Construction Work,908105,Construction work,01-Oct-2013,2648968-B50372/2,"296,894.40",ESH CONSTRUCTION LTD FORMERLY LUMSDEN & CARROLL CONSTRUCTION LTD.
RED HRA,HRA Capital,Construction Work,908105,Construction work,01-Oct-2013,2648998-B50363,"303,369.00",KEEPMOAT HOMES LTD.
RED HRA,HRA Capital,Construction Work,908105,Construction work,01-Oct-2013,2649071-50352,"204,957.33",WATES CONSTRUCTION LTD.
RED HRA,HRA Capital,Construction Work,908105,Construction work,01-Oct-2013,2649071-B50381,"349,471.64",WATES CONSTRUCTION LTD.
Regeneration & Economic Development,Economic Development and Housing,Transport,235057,Public Transport,01-Oct-2013,2648944-382523,"4,819.83",CLICK TRAVEL LTD.
Regeneration & Economic Development,Economic Development and Housing,Cap Exp on Grants & Other Financial Assistance (REFCUS),918401,Capital grants,01-Oct-2013,2648956-059,"2,365.00",CUMMINGS CONTRACTORS.
Regeneration & Economic Development,Economic Development and Housing,Cap Exp on Grants & Other Financial Assistance (REFCUS),918401,Capital grants,01-Oct-2013,2648956-066,"1,450.00",CUMMINGS CONTRACTORS.
Regeneration & Economic Development,Economic Development and Housing,Supplies and Services,384700,Miscellaneous Expenses,01-Oct-2013,2648965,"2,028.00",EAST DURHAM HOMES.
Regeneration & Economic Development,Economic Development and Housing,Cap Exp on Grants & Other Financial Assistance (REFCUS),918401,Capital grants,01-Oct-2013,2648969-DFG163/13,"3,860.00",F TIFFEN BUILDING SERVICES.
Regeneration & Economic Development,Economic Development and Housing,Cap Exp on Grants & Other Financial Assistance (REFCUS),918401,Capital grants,01-Oct-2013,2648969-DFG166/13,"4,200.00",F TIFFEN BUILDING SERVICES.
Regeneration & Economic Development,Economic Development and Housing,Cap Exp on Grants & Other Financial Assistance (REFCUS),918401,Capital grants,01-Oct-2013,2648969-DFG201/13,"1,960.00",F TIFFEN BUILDING SERVICES.
Regeneration & Economic Development,Economic Development and Housing,Cap Exp on Grants & Other Financial Assistance (REFCUS),918401,Capital grants,01-Oct-2013,2648969-DFG96/13,"3,840.00",F TIFFEN BUILDING SERVICES.
Regeneration & Economic Development,Economic Development and Housing,Cap Exp on Grants & Other Financial Assistance (REFCUS),918401,Capital grants,01-Oct-2013,2649002-LM242,"4,396.28",L & M  BUILDING SOLUTIONS LTD.
Regeneration & Economic Development,Economic Development and Housing,Supplies and Services,377015,County Durham Development,01-Oct-2013,2649027-0000034918,"2,000.00",NEWSCO INSIDER LTD.
Regeneration & Economic Development,"Spatial Policy, Planning, Assets & Environment",Premises,125009,Rents,01-Oct-2013,2649017-3142,"17,793.75",MINTON OLDBURY LTD.
Regeneration & Economic Development,"Spatial Policy, Planning, Assets & Environment",Supplies and Services,336005,Advertising,01-Oct-2013,2649061-99167,"1,470.00",TEESDALE MERCURY LTD.
Regeneration & Economic Development,Transport and Contracted Services,Cap Exp on Grants & Other Financial Assistance (REFCUS),918401,Capital grants,01-Oct-2013,2649070,"7,230.00",WALKERS OPTICIANS.
Assistant Chief Executive,Partnerships & Community Engagement Div.,Supplies and Services,384086,Miscellaneous Expenses,02-Oct-2013,2649162,"3,000.00",FOOD 4U.
Assistant Chief Executive,Partnerships & Community Engagement Div.,Supplies and Services,384086,Miscellaneous Expenses,02-Oct-2013,2649320,"2,000.00",THRISLINGTON BANNER GROUP.
Assistant Chief Executive,Policy & Communications Division,Supplies and Services,312010,"Newspapers, Books and Periodicals",02-Oct-2013,2649242,"16,265.84",NATIONAL LEAFLET CO LTD.
Children and Adult Services,Commissioning inc Supporting People,Third Party Payments,442002,Supporting People,02-Oct-2013,2649093-1953023,"13,923.04",BID SERVICES WITH DEAF PEOPLE.
Children and Adult Services,Commissioning inc Supporting People,Third Party Payments,442002,Supporting People,02-Oct-2013,2649130-1953107,"18,065.94",CREATIVE SUPPORT LTD.
Children and Adult Services,Commissioning inc Supporting People,Third Party Payments,442002,Supporting People,02-Oct-2013,2649136-1953024,"2,439.44",DERWENTSIDE DOMESTIC ABUSE SERVICE.
Children and Adult Services,Commissioning inc Supporting People,Third Party Payments,442002,Supporting People,02-Oct-2013,2649138-1952827,"35,813.60",DISC LTD.
Children and Adult Services,Commissioning inc Supporting People,Third Party Payments,441001,Supporting People,02-Oct-2013,2649141-1952796,"17,866.88",DURHAM ACTION ON SINGLE HOUSING.
Children and Adult Services,Commissioning inc Supporting People,Third Party Payments,443001,Supporting People,02-Oct-2013,2649141-1953031,"1,454.08",DURHAM ACTION ON SINGLE HOUSING.
Children and Adult Services,Commissioning inc Supporting People,Third Party Payments,443001,Supporting People,02-Oct-2013,2649141-1953033,"2,181.12",DURHAM ACTION ON SINGLE HOUSING.
Children and Adult Services,Commissioning inc Supporting People,Third Party Payments,443001,Supporting People,02-Oct-2013,2649141-1953034,727.04,DURHAM ACTION ON SINGLE HOUSING.
Children and Adult Services,Commissioning inc Supporting People,Third Party Payments,441001,Supporting People,02-Oct-2013,2649148-1952963,"5,402.40",EAST DURHAM COMMUNITY INITIATIVES LTD.
Children and Adult Services,Commissioning inc Supporting People,Third Party Payments,441001,Supporting People,02-Oct-2013,2649313-1953085,"26,179.16",FABRICK HOUSING GROUP LTD.
Children and Adult Services,Commissioning inc Supporting People,Third Party Payments,442002,Supporting People,02-Oct-2013,2649313-1953087,"9,785.24",FABRICK HOUSING GROUP LTD.
Children and Adult Services,Commissioning inc Supporting People,Third Party Payments,442002,Supporting People,02-Oct-2013,2649166-1952848,"33,120.36",FOUNDATION HOUSING.
Children and Adult Services,Commissioning inc Supporting People,Third Party Payments,442002,Supporting People,02-Oct-2013,2649178-1952966,"5,906.84",HANOVER HOUSING ASSOCIATION.
Children and Adult Services,Commissioning inc Supporting People,Third Party Payments,441001,Supporting People,02-Oct-2013,2649179-1952979,"9,190.44",HARBOUR SUPPORT SERVICES.
Children and Adult Services,Commissioning inc Supporting People,Third Party Payments,442002,Supporting People,02-Oct-2013,2649179-1953037,"2,965.76",HARBOUR SUPPORT SERVICES.
Children and Adult Services,Commissioning inc Supporting People,Third Party Payments,443001,Supporting People,02-Oct-2013,2649183-1952947,964.80,HOME HOUSING ASSOCIATION LTD.
Children and Adult Services,Commissioning inc Supporting People,Third Party Payments,443001,Supporting People,02-Oct-2013,2649213-1952714,"10,781.36",KINDSTREAM CARE LTD.
Children and Adult Services,Commissioning inc Supporting People,Third Party Payments,443001,Supporting People,02-Oct-2013,2649213-1952721,"2,629.60",KINDSTREAM CARE LTD.
Children and Adult Services,Commissioning inc Supporting People,Third Party Payments,442002,Supporting People,02-Oct-2013,2649227-1953070,"5,542.28",MENTAL HEALTH MATTERS.
Children and Adult Services,Commissioning inc Supporting People,Third Party Payments,442002,Supporting People,02-Oct-2013,2649234-1952980,"5,561.68",MOVING ON.
Children and Adult Services,Commissioning inc Supporting People,Third Party Payments,441001,Supporting People,02-Oct-2013,2649250-1953090,"10,361.68",NORCARE LTD.
Children and Adult Services,Commissioning inc Supporting People,Third Party Payments,442002,Supporting People,02-Oct-2013,2649250-1953094,"3,078.80",NORCARE LTD.
Children and Adult Services,Commissioning inc Supporting People,Third Party Payments,441001,Supporting People,02-Oct-2013,2649250-1953095,"8,097.92",NORCARE LTD.
Children and Adult Services,Commissioning inc Supporting People,Third Party Payments,442002,Supporting People,02-Oct-2013,2649250-1953096,"1,954.64",NORCARE LTD.
Children and Adult Services,Commissioning inc Supporting People,Third Party Payments,442002,Supporting People,02-Oct-2013,2649276-1953071,"4,382.44",RICHMOND FELLOWSHIP.
Children and Adult Services,Commissioning inc Supporting People,Third Party Payments,444002,Supporting People,02-Oct-2013,2649276-1953072,"4,595.04",RICHMOND FELLOWSHIP.
Children and Adult Services,Commissioning inc Supporting People,Third Party Payments,441001,Supporting People,02-Oct-2013,2649276-1953084,"9,429.16",RICHMOND FELLOWSHIP.
Children and Adult Services,Commissioning inc Supporting People,Third Party Payments,442002,Supporting People,02-Oct-2013,2649284-1952981,"9,294.32",SHAID.
Children and Adult Services,Commissioning inc Supporting People,Third Party Payments,442002,Supporting People,02-Oct-2013,2649301-1952795,"178,650.32",STONHAM HOUSING ASSOCIATION LTD.
Children and Adult Services,Commissioning inc Supporting People,Third Party Payments,441001,Supporting People,02-Oct-2013,2649301-1952824,"48,252.08",STONHAM HOUSING ASSOCIATION LTD.
Children and Adult Services,Commissioning inc Supporting People,Third Party Payments,443001,Supporting People,02-Oct-2013,2649301-1952982,"8,131.20",STONHAM HOUSING ASSOCIATION LTD.
Children and Adult Services,Commissioning inc Supporting People,Third Party Payments,443001,Supporting People,02-Oct-2013,2649301-1952994,"23,085.92",STONHAM HOUSING ASSOCIATION LTD.
Children and Adult Services,Commissioning inc Supporting People,Third Party Payments,442002,Supporting People,02-Oct-2013,2649301-1953025,"28,364.92",STONHAM HOUSING ASSOCIATION LTD.
Children and Adult Services,Commissioning inc Supporting People,Third Party Payments,441001,Supporting People,02-Oct-2013,2649301-1953093,"16,646.56",STONHAM HOUSING ASSOCIATION LTD.
Children and Adult Services,Commissioning inc Supporting People,Third Party Payments,441001,Supporting People,02-Oct-2013,2649316-1953089,"19,231.20",THE CYRENIANS LTD.
Children and Adult Services,Commissioning inc Supporting People,Third Party Payments,441001,Supporting People,02-Oct-2013,2649319-1952696,"11,181.61",THREE RIVERS HOUSING ASSOCIATION LTD.
Children and Adult Services,Commissioning inc Supporting People,Third Party Payments,442002,Supporting People,02-Oct-2013,2649319-1952808,"3,835.60",THREE RIVERS HOUSING ASSOCIATION LTD.
Children and Adult Services,Commissioning inc Supporting People,Third Party Payments,442002,Supporting People,02-Oct-2013,2649319-1952964,"8,976.12",THREE RIVERS HOUSING ASSOCIATION LTD.
Children and Adult Services,Commissioning inc Supporting People,Third Party Payments,442002,Supporting People,02-Oct-2013,2649319-1952977,"43,230.76",THREE RIVERS HOUSING ASSOCIATION LTD.
Children and Adult Services,Commissioning inc Supporting People,Third Party Payments,441001,Supporting People,02-Oct-2013,2649319-1953088,"7,692.32",THREE RIVERS HOUSING ASSOCIATION LTD.
Children and Adult Services,Commissioning inc Supporting People,Third Party Payments,443001,Supporting People,02-Oct-2013,2649328-1952968,"1,259.94",WADDINGTON STREET CENTRE LTD.
Children and Adult Services,Commissioning inc Supporting People,Third Party Payments,441001,Supporting People,02-Oct-2013,2649328-1953091,"1,166.12",WADDINGTON STREET CENTRE LTD.
Children and Adult Services,Commissioning inc Supporting People,Third Party Payments,441001,Supporting People,02-Oct-2013,2649329-1953092,"7,617.32",WEAR VALLEY WOMENS AID.
Children and Adult Services,CYPS - Local Authority,Third Party Payments,425041,Rendered by Voluntary Organisations,02-Oct-2013,2649080-274/14,"1,194.42",ADOPTION MATTERS NORTHWEST.
Children and Adult Services,CYPS - Local Authority,Supplies and Services,384302,Miscellaneous Expenses,02-Oct-2013,2649081-624-F,757.75,ADVENTURE VALLEY LTD.
Children and Adult Services,CYPS - Local Authority,Third Party Payments,425020,Rendered by Voluntary Organisations,02-Oct-2013,2649091-104306473,"1,112.08",BARNARDOS.
Children and Adult Services,CYPS - Local Authority,Third Party Payments,425040,Rendered by Voluntary Organisations,02-Oct-2013,2649112-7668,"3,011.34",CHILDRENS FAMILY TRUST.
Children and Adult Services,CYPS - Local Authority,Third Party Payments,425040,Rendered by Voluntary Organisations,02-Oct-2013,2649112-7669,"3,100.00",CHILDRENS FAMILY TRUST.
Children and Adult Services,CYPS - Local Authority,Third Party Payments,425040,Rendered by Voluntary Organisations,02-Oct-2013,2649112-7813,"2,914.20",CHILDRENS FAMILY TRUST.
Children and Adult Services,CYPS - Local Authority,Third Party Payments,425040,Rendered by Voluntary Organisations,02-Oct-2013,2649112-7814,"3,000.00",CHILDRENS FAMILY TRUST.
Children and Adult Services,CYPS - Local Authority,Employees,080025,Agency Staff,02-Oct-2013,2649123-531403,"179,009.13",COMENSURA LTD.
Children and Adult Services,CYPS - Local Authority,Third Party Payments,425040,Rendered by Voluntary Organisations,02-Oct-2013,2649126-630089647,"4,045.72",CORE ASSETS FOSTERING LTD.
Children and Adult Services,CYPS - Local Authority,Third Party Payments,425040,Rendered by Voluntary Organisations,02-Oct-2013,2649126-630089844,"4,046.56",CORE ASSETS FOSTERING LTD.
Children and Adult Services,CYPS - Local Authority,Third Party Payments,425040,Rendered by Voluntary Organisations,02-Oct-2013,2649126-630089915,"4,153.80",CORE ASSETS FOSTERING LTD.
Children and Adult Services,CYPS - Local Authority,Third Party Payments,425040,Rendered by Voluntary Organisations,02-Oct-2013,2649126-630089938,"3,947.83",CORE ASSETS FOSTERING LTD.
Children and Adult Services,CYPS - Local Authority,Third Party Payments,425040,Rendered by Voluntary Organisations,02-Oct-2013,2649126-630089944,"4,089.54",CORE ASSETS FOSTERING LTD.
Children and Adult Services,CYPS - Local Authority,Third Party Payments,425040,Rendered by Voluntary Organisations,02-Oct-2013,2649126-630090178,"7,895.66",CORE ASSETS FOSTERING LTD.
Children and Adult Services,CYPS - Local Authority,Third Party Payments,425040,Rendered by Voluntary Organisations,02-Oct-2013,2649126-630090212,"3,947.83",CORE ASSETS FOSTERING LTD.
Children and Adult Services,CYPS - Local Authority,Third Party Payments,425040,Rendered by Voluntary Organisations,02-Oct-2013,2649126-630090230,"3,947.83",CORE ASSETS FOSTERING LTD.
Children and Adult Services,CYPS - Local Authority,Third Party Payments,425040,Rendered by Voluntary Organisations,02-Oct-2013,2649126-630090303,"3,947.83",CORE ASSETS FOSTERING LTD.
Children and Adult Services,CYPS - Local Authority,Third Party Payments,425040,Rendered by Voluntary Organisations,02-Oct-2013,2649126-630090401,"3,947.83",CORE ASSETS FOSTERING LTD.
Children and Adult Services,CYPS - Local Authority,Third Party Payments,425040,Rendered by Voluntary Organisations,02-Oct-2013,2649126-630090410,"7,895.66",CORE ASSETS FOSTERING LTD.
Children and Adult Services,CYPS - Local Authority,Third Party Payments,425040,Rendered by Voluntary Organisations,02-Oct-2013,2649126-630090792,"3,947.83",CORE ASSETS FOSTERING LTD.
Children and Adult Services,CYPS - Local Authority,Third Party Payments,425040,Rendered by Voluntary Organisations,02-Oct-2013,2649126-630090810,"3,947.83",CORE ASSETS FOSTERING LTD.
Children and Adult Services,CYPS - Local Authority,Third Party Payments,425040,Rendered by Voluntary Organisations,02-Oct-2013,2649126-630090845,"3,947.83",CORE ASSETS FOSTERING LTD.
Children and Adult Services,CYPS - Local Authority,Supplies and Services,338044,Services,02-Oct-2013,224276-16422,576.33,CW BOOTH & CO.
Children and Adult Services,CYPS - Local Authority,Supplies and Services,384302,Miscellaneous Expenses,02-Oct-2013,2649133-2869,"1,175.00",DENE VALLEY COMMUNITY TRANSPORT LTD.
Children and Adult Services,CYPS - Local Authority,Third Party Payments,425041,Rendered by Voluntary Organisations,02-Oct-2013,2649137-3482420,"9,000.00",DFW ADOPTION.
Children and Adult Services,CYPS - Local Authority,Third Party Payments,425040,Rendered by Voluntary Organisations,02-Oct-2013,2649163-FC013050,730.00,FOSTER CARES LTD.
Children and Adult Services,CYPS - Local Authority,Third Party Payments,425040,Rendered by Voluntary Organisations,02-Oct-2013,2649163-FC013100,730.00,FOSTER CARES LTD.
Children and Adult Services,CYPS - Local Authority,Third Party Payments,425040,Rendered by Voluntary Organisations,02-Oct-2013,2649163-FC013160,730.00,FOSTER CARES LTD.
Children and Adult Services,CYPS - Local Authority,Third Party Payments,425040,Rendered by Voluntary Organisations,02-Oct-2013,2649163-FC013217,730.00,FOSTER CARES LTD.
Children and Adult Services,CYPS - Local Authority,Third Party Payments,425040,Rendered by Voluntary Organisations,02-Oct-2013,2649163-FC013221,730.00,FOSTER CARES LTD.
Children and Adult Services,CYPS - Local Authority,Third Party Payments,425040,Rendered by Voluntary Organisations,02-Oct-2013,2649163-FC013265,730.00,FOSTER CARES LTD.
Children and Adult Services,CYPS - Local Authority,Third Party Payments,425040,Rendered by Voluntary Organisations,02-Oct-2013,2649163-FC013269,730.00,FOSTER CARES LTD.
Children and Adult Services,CYPS - Local Authority,Third Party Payments,425040,Rendered by Voluntary Organisations,02-Oct-2013,2649163-FC013273,730.00,FOSTER CARES LTD.
Children and Adult Services,CYPS - Local Authority,Third Party Payments,425040,Rendered by Voluntary Organisations,02-Oct-2013,2649163-FC013316,730.00,FOSTER CARES LTD.
Children and Adult Services,CYPS - Local Authority,Third Party Payments,425040,Rendered by Voluntary Organisations,02-Oct-2013,2649163-FC013320,730.00,FOSTER CARES LTD.
Children and Adult Services,CYPS - Local Authority,Third Party Payments,425040,Rendered by Voluntary Organisations,02-Oct-2013,2649164-0000016052,"2,914.20",FOSTERING PEOPLE LTD.
Children and Adult Services,CYPS - Local Authority,Third Party Payments,425040,Rendered by Voluntary Organisations,02-Oct-2013,2649164-0000016054,"2,914.20",FOSTERING PEOPLE LTD.
Children and Adult Services,CYPS - Local Authority,Third Party Payments,425040,Rendered by Voluntary Organisations,02-Oct-2013,2649165-102415,"3,882.56",FOSTERING SOLUTIONS LTD.
Children and Adult Services,CYPS - Local Authority,Third Party Payments,425040,Rendered by Voluntary Organisations,02-Oct-2013,2649169-24699,"3,128.70",FUTURES FOR CHILDREN LTD.
Children and Adult Services,CYPS - Local Authority,Supplies and Services,338045,Services,02-Oct-2013,2649216-16516,892.96,LAWSON HARDWICK T/A 1ST CLASS SECRETARIAL.
Children and Adult Services,CYPS - Local Authority,Supplies and Services,384302,Miscellaneous Expenses,02-Oct-2013,2649230,500.00,MILLBANK YOUTH CLUB.
Children and Adult Services,CYPS - Local Authority,Supplies and Services,340001,Postages,02-Oct-2013,2649247-282118/OCT13,900.00,NEOPOST LTD CREDIFON RCB ACCOUNT.
Children and Adult Services,CYPS - Local Authority,Supplies and Services,338043,Services,02-Oct-2013,224354-11311,"1,277.50",NICHOLSON MARTIN LEGGE & MILLER.
Children and Adult Services,CYPS - Local Authority,Supplies and Services,338045,Services,02-Oct-2013,224329,500.00,REDACTED - PAYMENT TO INDIVIDUAL
Children and Adult Services,CYPS - Local Authority,Supplies and Services,364358,Grants to Voluntary Organisations,02-Oct-2013,2649200,666.66,REDACTED - PAYMENT TO INDIVIDUAL
Children and Adult Services,CYPS - Local Authority,Third Party Payments,425021,Rendered by Voluntary Organisations,02-Oct-2013,2649297-1140483,"6,228.57",ST CUTHBERTS CARE.
Children and Adult Services,CYPS - Local Authority,Third Party Payments,425041,Rendered by Voluntary Organisations,02-Oct-2013,2649298-995538,"2,250.00",ST FRANCIS CHILDRENS SOCIETY.
Children and Adult Services,CYPS - Local Authority,Third Party Payments,425040,Rendered by Voluntary Organisations,02-Oct-2013,2649304-134524A,910.00,SWIIS FOSTER CARE LTD.
Children and Adult Services,CYPS - Local Authority,Third Party Payments,425040,Rendered by Voluntary Organisations,02-Oct-2013,2649304-134525,901.00,SWIIS FOSTER CARE LTD.
Children and Adult Services,CYPS - Local Authority,Third Party Payments,425040,Rendered by Voluntary Organisations,02-Oct-2013,2649304-134526,"1,069.00",SWIIS FOSTER CARE LTD.
Children and Adult Services,CYPS - Local Authority,Third Party Payments,425040,Rendered by Voluntary Organisations,02-Oct-2013,2649304-134527,"1,075.00",SWIIS FOSTER CARE LTD.
Children and Adult Services,CYPS - Local Authority,Third Party Payments,425040,Rendered by Voluntary Organisations,02-Oct-2013,2649304-134816,910.00,SWIIS FOSTER CARE LTD.
Children and Adult Services,CYPS - Local Authority,Third Party Payments,425040,Rendered by Voluntary Organisations,02-Oct-2013,2649304-134817,901.00,SWIIS FOSTER CARE LTD.
Children and Adult Services,CYPS - Local Authority,Third Party Payments,425040,Rendered by Voluntary Organisations,02-Oct-2013,2649304-134818,"1,069.00",SWIIS FOSTER CARE LTD.
Children and Adult Services,CYPS - Local Authority,Third Party Payments,425040,Rendered by Voluntary Organisations,02-Oct-2013,2649304-134819,"1,075.00",SWIIS FOSTER CARE LTD.
Children and Adult Services,CYPS - Local Authority,Third Party Payments,425040,Rendered by Voluntary Organisations,02-Oct-2013,2649304-135786,910.00,SWIIS FOSTER CARE LTD.
Children and Adult Services,CYPS - Local Authority,Third Party Payments,425040,Rendered by Voluntary Organisations,02-Oct-2013,2649304-135787,901.00,SWIIS FOSTER CARE LTD.
Children and Adult Services,CYPS - Local Authority,Third Party Payments,425040,Rendered by Voluntary Organisations,02-Oct-2013,2649304-135788,"1,069.00",SWIIS FOSTER CARE LTD.
Children and Adult Services,CYPS - Local Authority,Third Party Payments,425040,Rendered by Voluntary Organisations,02-Oct-2013,2649304-135789,"1,075.00",SWIIS FOSTER CARE LTD.
Children and Adult Services,CYPS - Local Authority,Third Party Payments,425040,Rendered by Voluntary Organisations,02-Oct-2013,2649304-136055,910.00,SWIIS FOSTER CARE LTD.
Children and Adult Services,CYPS - Local Authority,Third Party Payments,425040,Rendered by Voluntary Organisations,02-Oct-2013,2649304-136056,901.00,SWIIS FOSTER CARE LTD.
Children and Adult Services,CYPS - Local Authority,Third Party Payments,425040,Rendered by Voluntary Organisations,02-Oct-2013,2649304-136057,"1,069.00",SWIIS FOSTER CARE LTD.
Children and Adult Services,CYPS - Local Authority,Third Party Payments,425040,Rendered by Voluntary Organisations,02-Oct-2013,2649304-136058,"1,075.00",SWIIS FOSTER CARE LTD.
Children and Adult Services,CYPS - Local Authority,Third Party Payments,425040,Rendered by Voluntary Organisations,02-Oct-2013,2649311-20153,"3,514.29",TEAM FOSTERING.
Children and Adult Services,CYPS - Local Authority,Third Party Payments,425040,Rendered by Voluntary Organisations,02-Oct-2013,2649311-20190,"3,128.40",TEAM FOSTERING.
Children and Adult Services,CYPS - Local Authority,Premises,125009,Rents,02-Oct-2013,2649318-2724,"4,813.75",THE WORK PLACE (AYCLIFFE) LTD.
Children and Adult Services,CYPS - Local Authority,Premises,125009,Rents,02-Oct-2013,2649318-2725,"1,233.30",THE WORK PLACE (AYCLIFFE) LTD.
Children and Adult Services,Financing-Adult Services,Debtors,930131,Debtor-Hospital Re-Admission Avoidance Project,02-Oct-2013,2649259-000833,540.00,ORCHARD HOME CARE SERVICES LTD.
Children and Adult Services,Head of Adults,Supplies and Services,304252,Equipment and Materials,02-Oct-2013,2649209-12SEPT13,732.00,K & L DECORATORS.
Children and Adult Services,Head of Adults,Summary Income Level,720044,Fees and Charges,02-Oct-2013,224343,"10,122.36",REDACTED - PAYMENT TO INDIVIDUAL
Children and Adult Services,Head of Adults,Summary Income Level,720047,Fees and Charges,02-Oct-2013,224345,"1,711.20",REDACTED - PAYMENT TO INDIVIDUAL
Children and Adult Services,Public Health,Third Party Payments,460803,Contract Payments,02-Oct-2013,224314-D130805,"1,350.00",REDACTED - PAYMENT TO INDIVIDUAL
Children and Adult Services,Public Health,Third Party Payments,460802,Contract Payments,02-Oct-2013,224372,"3,602.22",STANLEY MEDICAL GROUP.
Corporate Resources,Financing- Resources,Supplies and Services,342051,Computers and Communications,02-Oct-2013,2649115-M/RB018207,583.33,CIVICA UK LTD.
Corporate Resources,ICT Services incl. Design and Print,Supplies and Services,344137,Telephones,02-Oct-2013,2649089-00600021,"72,258.90",AZZURRI COMMUNICATIONS LTD.
Corporate Resources,ICT Services incl. Design and Print,Supplies and Services,342053,Computers and Communications,02-Oct-2013,2649109-354656,"1,225.74",BYTES SOFTWARE SERVICES.
Corporate Resources,ICT Services incl. Design and Print,Stock,926900,Stock in hand-Inventory system,02-Oct-2013,2649210-36196,"8,510.76",KBR IT & NETWORKING SOLUTIONS.
Corporate Resources,ICT Services incl. Design and Print,Stock,926900,Stock in hand-Inventory system,02-Oct-2013,2649210-36197,"5,129.00",KBR IT & NETWORKING SOLUTIONS.
Corporate Resources,ICT Services incl. Design and Print,Construction Work,908105,Construction work,02-Oct-2013,2649312-PSI-9074138,690.42,TECHNOLOGY SERVICES GROUP LTD.
Corporate Resources,ICT Services incl. Design and Print,Stock,926900,Stock in hand-Inventory system,02-Oct-2013,2649326-2330797,"1,440.00",VIGLEN LTD.
Corporate Resources,ICT Services incl. Design and Print,Stock,926900,Stock in hand-Inventory system,02-Oct-2013,2649326-2330798,"2,160.00",VIGLEN LTD.
Corporate Resources,Legal & Democratic Services,Summary Income Level,725051,Rents,02-Oct-2013,224264,530.90,BISTRO 21.
Corporate Resources,Legal & Democratic Services,Transport,235057,Public Transport,02-Oct-2013,2649119-384735,"4,749.17",CLICK TRAVEL LTD.
Corporate Resources,Legal & Democratic Services,Premises,125009,Rents,02-Oct-2013,2649279-5571,541.06,RIVERGREEN DEVELOPMENTS PLC.
Corporate Resources,Legal & Democratic Services,Supplies and Services,342013,Computers and Communications,02-Oct-2013,2649303-6177812,"1,128.00",SUPPLIES TEAM LTD.
Dedicated Schools Grant,Dedicated Schools Grant,Employees,080025,Agency Staff,02-Oct-2013,2649159-104820,"1,313.00",FIRST CLASS SUPPLY & TRAINING LTD.
Dedicated Schools Grant,Dedicated Schools Grant,Third Party Payments,425005,Rendered by Voluntary Organisations,02-Oct-2013,2649307-854,"40,307.57",TALBOT HOUSE SCHOOL.
Dedicated Schools Grant,Dedicated Schools Grant,Third Party Payments,425005,Rendered by Voluntary Organisations,02-Oct-2013,2649307-858,"10,000.00",TALBOT HOUSE SCHOOL.
Neighbourhood Services,Culture & Sport,Supplies and Services,384199,Miscellaneous Expenses,02-Oct-2013,2649096-00025,"11,459.64",BISHOP CATERING LTD.
Neighbourhood Services,Culture & Sport,Supplies and Services,338094,Services,02-Oct-2013,2649145-258849,"1,601.67",DURHAM UNIVERSITY.
Neighbourhood Services,Culture & Sport,Supplies and Services,304252,Equipment and Materials,02-Oct-2013,2649188-13410,"1,375.00",HUSSEY SEATWAY LTD.
Neighbourhood Services,Culture & Sport,Supplies and Services,304259,Equipment and Materials,02-Oct-2013,2649207-679806,"2,995.00",JP LENNARD LTD.
Neighbourhood Services,Culture & Sport,Supplies and Services,384199,Miscellaneous Expenses,02-Oct-2013,264921,600.00,LA SPAGHETTATA.
Neighbourhood Services,Culture & Sport,Supplies and Services,384199,Miscellaneous Expenses,02-Oct-2013,2649215,"1,615.00",LA SPAGHETTATA.
Neighbourhood Services,Culture & Sport,Supplies and Services,338094,Services,02-Oct-2013,2649292-1/7/13,570.00,SLAM COMMUNITY DEVELOPMENT TRUST.
Neighbourhood Services,Culture & Sport,Supplies and Services,304252,Equipment and Materials,02-Oct-2013,2649296-342,"2,270.00",SPORTSERVE LTD.
Neighbourhood Services,Culture & Sport,Premises,125009,Rents,02-Oct-2013,2649324-134,"1,875.00",TRUSTEES OF THE AUCKLAND CASTLE TRUST.
Neighbourhood Services,Culture & Sport,Supplies and Services,324117,Provisions,02-Oct-2013,224389-099-7793DR,586.95,VANGUARD DOWSON LTD.
Neighbourhood Services,Culture & Sport,"Vehicles, Equipment, Furniture and Fittings",912521,Purchase-furniture and fittings,02-Oct-2013,2649337-496396463,"19,429.33",YORKSHIRE PURCHASING ORGANISATION.
Neighbourhood Services,Direct Services,Supplies and Services,304221,Equipment and Materials,02-Oct-2013,2649083-48683,"25,543.00",AIRCON REFRIGERATION LTD.
Neighbourhood Services,Direct Services,Third Party Payments,430100,Rendered by Private Contractors,02-Oct-2013,2649098-6756,765.00,BOLTON GATE CO.
Neighbourhood Services,Direct Services,Supplies and Services,304221,Equipment and Materials,02-Oct-2013,2649171-1160617,"2,706.80",CERTAS ENERGY UK LTD.
Neighbourhood Services,Direct Services,Supplies and Services,328041,"Clothing, Uniforms and Laundry",02-Oct-2013,2649202-6351,960.00,JG UNIFORMS.
Neighbourhood Services,Direct Services,Third Party Payments,430100,Rendered by Private Contractors,02-Oct-2013,2649220-1158,601.00,LMC ELECTRICAL SERVICES T/A LMC ELECTRICAL & STAIRLIFT SERVICES LTD.
Neighbourhood Services,Direct Services,Supplies and Services,304221,Equipment and Materials,02-Oct-2013,2649221-10355,814.29,LOGIC STREET & PARK FURNITURE LTD.
Neighbourhood Services,Direct Services,Supplies and Services,304221,Equipment and Materials,02-Oct-2013,2649266-4120154864,877.11,PLUMBING TRADE SUPPLIES LTD.
Neighbourhood Services,Direct Services,Supplies and Services,304221,Equipment and Materials,02-Oct-2013,2649266-4120154936,953.15,PLUMBING TRADE SUPPLIES LTD.
Neighbourhood Services,Direct Services,Supplies and Services,304221,Equipment and Materials,02-Oct-2013,2649266-4120154988,"1,043.84",PLUMBING TRADE SUPPLIES LTD.
Neighbourhood Services,Direct Services,Transport,230005,Contract Hire,02-Oct-2013,2649268-22664,"3,910.00",PREMIER TRUCK HIRE LTD.
Neighbourhood Services,Direct Services,Supplies and Services,304221,Equipment and Materials,02-Oct-2013,2649269-9105,"1,580.25",PROBRUSH T/A NORTHERN MUNICIPAL SPARES LTD.
Neighbourhood Services,Direct Services,Supplies and Services,338078,Services,02-Oct-2013,2649270-3689,952.75,QW SECURITY LTD.
Neighbourhood Services,Direct Services,Transport,230005,Contract Hire,02-Oct-2013,2649299-50322,814.00,STENNETTS LTD.
Neighbourhood Services,Direct Services,Supplies and Services,304221,Equipment and Materials,02-Oct-2013,2649314-96287073,998.40,TERBERG MATEC (UK) LTD.
Neighbourhood Services,Direct Services,Premises,150015,Apportioned Exps of Operational Blds,02-Oct-2013,2649330-212006,681.16,WERNICK HIRE LTD.
Neighbourhood Services,Direct Services,Supplies and Services,304221,Equipment and Materials,02-Oct-2013,2649334-83986141,635.71,WOLSELEY UK LTD.
Neighbourhood Services,Direct Services,Supplies and Services,304221,Equipment and Materials,02-Oct-2013,2649334-84540279,777.23,WOLSELEY UK LTD.
Neighbourhood Services,Direct Services,Supplies and Services,304221,Equipment and Materials,02-Oct-2013,2649334-84540280,562.76,WOLSELEY UK LTD.
Neighbourhood Services,Direct Services,Supplies and Services,304221,Equipment and Materials,02-Oct-2013,2649334-84540284,576.74,WOLSELEY UK LTD.
Neighbourhood Services,Direct Services,Supplies and Services,304221,Equipment and Materials,02-Oct-2013,2649334-84604828,777.23,WOLSELEY UK LTD.
Neighbourhood Services,Direct Services,Supplies and Services,304221,Equipment and Materials,02-Oct-2013,2649334-84604830,777.23,WOLSELEY UK LTD.
Neighbourhood Services,Direct Services,Construction Work,908105,Construction work,02-Oct-2013,2649337-496499589,"8,782.10",YORKSHIRE PURCHASING ORGANISATION.
Neighbourhood Services,"Environment,Health & Consumer Protection",Supplies and Services,384199,Miscellaneous Expenses,02-Oct-2013,2649122-JOB00I/16781,"1,395.00",COLIN JOBLING T/A RAINBOW INTERNATIONAL.
Neighbourhood Services,"Environment,Health & Consumer Protection",Employees,040149,"Recruitment, Instruction and Training",02-Oct-2013,2649147-0000031034,500.00,EAST DURHAM COLLEGE.
Neighbourhood Services,"Environment,Health & Consumer Protection",Third Party Payments,430100,Rendered by Private Contractors,02-Oct-2013,2649263-005547,502.20,PHOENIX SECURITY UK LTD.
Neighbourhood Services,Projects and Business services,Third Party Payments,430121,Rendered by Private Contractors,02-Oct-2013,2649152-7311,"2,566.00",ELECTRO SERVE CONTRACTS LTD.
Neighbourhood Services,Projects and Business services,Third Party Payments,430100,Rendered by Private Contractors,02-Oct-2013,2649158-SINV8457670,"74,611.55",FINNING (UK) LTD.
Neighbourhood Services,Projects and Business services,Third Party Payments,430100,Rendered by Private Contractors,02-Oct-2013,2649203-1167631,"1,892.12",JOHN NIXON LTD.
Neighbourhood Services,Technical Services,Supplies and Services,304221,Equipment and Materials,02-Oct-2013,2649075-9030054225,"1,275.00",(WAS TARMAC LTD) LAFARGE AGGREGATES LTD.
Neighbourhood Services,Technical Services,Supplies and Services,342053,Computers and Communications,02-Oct-2013,224273-02626,"2,250.00",CONCERTO SUPPORT SERVICES.
Neighbourhood Services,Technical Services,Construction Work,908108,Capital - Surface Dressing,02-Oct-2013,2649129-9659,"1,358.08",COUPE LINE LTD.
Neighbourhood Services,Technical Services,Construction Work,908108,Capital - Surface Dressing,02-Oct-2013,2649129-9710,"4,481.14",COUPE LINE LTD.
Neighbourhood Services,Technical Services,Third Party Payments,430100,Rendered by Private Contractors,02-Oct-2013,2649180-SIN7035787,"4,118.75",HCS DRAIN SERVICES LTD.
Neighbourhood Services,Technical Services,Third Party Payments,430100,Rendered by Private Contractors,02-Oct-2013,2649180-SIN7035901,"3,888.75",HCS DRAIN SERVICES LTD.
Neighbourhood Services,Technical Services,Third Party Payments,430100,Rendered by Private Contractors,02-Oct-2013,2649180-SIN7035956,"4,603.75",HCS DRAIN SERVICES LTD.
Neighbourhood Services,Technical Services,Third Party Payments,430100,Rendered by Private Contractors,02-Oct-2013,2649180-SIN7036100,"4,366.25",HCS DRAIN SERVICES LTD.
Neighbourhood Services,Technical Services,Third Party Payments,430100,Rendered by Private Contractors,02-Oct-2013,2649180-SIN7036205,"3,743.75",HCS DRAIN SERVICES LTD.
Neighbourhood Services,Technical Services,Third Party Payments,430100,Rendered by Private Contractors,02-Oct-2013,2649180-SIN7036314,"4,237.50",HCS DRAIN SERVICES LTD.
Neighbourhood Services,Technical Services,Third Party Payments,430100,Rendered by Private Contractors,02-Oct-2013,2649180-SIN7036323,"4,045.00",HCS DRAIN SERVICES LTD.
Neighbourhood Services,Technical Services,Third Party Payments,430100,Rendered by Private Contractors,02-Oct-2013,2649180-SIN7036470,"3,281.25",HCS DRAIN SERVICES LTD.
Neighbourhood Services,Technical Services,Third Party Payments,430100,Rendered by Private Contractors,02-Oct-2013,2649180-SIN7036488,914.50,HCS DRAIN SERVICES LTD.
Neighbourhood Services,Technical Services,Third Party Payments,430100,Rendered by Private Contractors,02-Oct-2013,2649180-SIN7036527,"2,366.25",HCS DRAIN SERVICES LTD.
Neighbourhood Services,Technical Services,Stock,926900,Stock in hand-Inventory system,02-Oct-2013,2649189-078510,"1,960.10",HYDRAM ENGINEERING LTD.
Neighbourhood Services,Technical Services,Stock,926900,Stock in hand-Inventory system,02-Oct-2013,2649196-423942,"2,307.20",INSTARMAC GROUP PLC.
Neighbourhood Services,Technical Services,Supplies and Services,304358,Equipment and Materials,02-Oct-2013,2649199-04428,985.32,JA GILSON (AGRICULTURAL CONTRACTORS) LTD.
Neighbourhood Services,Technical Services,Supplies and Services,304358,Equipment and Materials,02-Oct-2013,2649199-04432,976.75,JA GILSON (AGRICULTURAL CONTRACTORS) LTD.
Neighbourhood Services,Technical Services,Supplies and Services,304358,Equipment and Materials,02-Oct-2013,2649199-04433,796.82,JA GILSON (AGRICULTURAL CONTRACTORS) LTD.
Neighbourhood Services,Technical Services,Supplies and Services,304358,Equipment and Materials,02-Oct-2013,2649199-04466,779.69,JA GILSON (AGRICULTURAL CONTRACTORS) LTD.
Neighbourhood Services,Technical Services,Supplies and Services,304358,Equipment and Materials,02-Oct-2013,2649205-14579,"1,016.75",JOHN R BUTTERFIELD LTD.
Neighbourhood Services,Technical Services,Supplies and Services,304358,Equipment and Materials,02-Oct-2013,2649205-14618,"1,605.00",JOHN R BUTTERFIELD LTD.
Neighbourhood Services,Technical Services,Supplies and Services,304358,Equipment and Materials,02-Oct-2013,2649205-14621,870.50,JOHN R BUTTERFIELD LTD.
Neighbourhood Services,Technical Services,Supplies and Services,304358,Equipment and Materials,02-Oct-2013,2649205-14655,737.50,JOHN R BUTTERFIELD LTD.
Neighbourhood Services,Technical Services,Supplies and Services,304358,Equipment and Materials,02-Oct-2013,2649205-14692,577.50,JOHN R BUTTERFIELD LTD.
Neighbourhood Services,Technical Services,Supplies and Services,304358,Equipment and Materials,02-Oct-2013,2649205-14698,647.00,JOHN R BUTTERFIELD LTD.
Neighbourhood Services,Technical Services,Supplies and Services,304358,Equipment and Materials,02-Oct-2013,2649205-14703,874.60,JOHN R BUTTERFIELD LTD.
Neighbourhood Services,Technical Services,Supplies and Services,304358,Equipment and Materials,02-Oct-2013,2649205-14706,537.25,JOHN R BUTTERFIELD LTD.
Neighbourhood Services,Technical Services,Supplies and Services,304358,Equipment and Materials,02-Oct-2013,2649205-14710,591.60,JOHN R BUTTERFIELD LTD.
Neighbourhood Services,Technical Services,Supplies and Services,304358,Equipment and Materials,02-Oct-2013,2649205-14711,743.00,JOHN R BUTTERFIELD LTD.
Neighbourhood Services,Technical Services,Supplies and Services,304358,Equipment and Materials,02-Oct-2013,2649205-14738,"1,197.00",JOHN R BUTTERFIELD LTD.
Neighbourhood Services,Technical Services,Supplies and Services,304358,Equipment and Materials,02-Oct-2013,2649205-14739,925.00,JOHN R BUTTERFIELD LTD.
Neighbourhood Services,Technical Services,Supplies and Services,304358,Equipment and Materials,02-Oct-2013,2649205-14740,939.00,JOHN R BUTTERFIELD LTD.
Neighbourhood Services,Technical Services,Supplies and Services,304358,Equipment and Materials,02-Oct-2013,2649205-14744,734.00,JOHN R BUTTERFIELD LTD.
Neighbourhood Services,Technical Services,Supplies and Services,304358,Equipment and Materials,02-Oct-2013,2649205-14745,983.00,JOHN R BUTTERFIELD LTD.
Neighbourhood Services,Technical Services,Supplies and Services,304358,Equipment and Materials,02-Oct-2013,2649205-14746,"1,174.50",JOHN R BUTTERFIELD LTD.
Neighbourhood Services,Technical Services,Supplies and Services,304358,Equipment and Materials,02-Oct-2013,2649205-14748,762.40,JOHN R BUTTERFIELD LTD.
Neighbourhood Services,Technical Services,Supplies and Services,304358,Equipment and Materials,02-Oct-2013,2649205-14749,707.40,JOHN R BUTTERFIELD LTD.
Neighbourhood Services,Technical Services,Supplies and Services,304358,Equipment and Materials,02-Oct-2013,2649205-14752,914.20,JOHN R BUTTERFIELD LTD.
Neighbourhood Services,Technical Services,Supplies and Services,304358,Equipment and Materials,02-Oct-2013,2649205-14755,"1,032.00",JOHN R BUTTERFIELD LTD.
Neighbourhood Services,Technical Services,Supplies and Services,304358,Equipment and Materials,02-Oct-2013,2649205-14756,973.00,JOHN R BUTTERFIELD LTD.
Neighbourhood Services,Technical Services,Supplies and Services,304358,Equipment and Materials,02-Oct-2013,2649205-14782,925.00,JOHN R BUTTERFIELD LTD.
Neighbourhood Services,Technical Services,Supplies and Services,304358,Equipment and Materials,02-Oct-2013,2649205-14785,842.00,JOHN R BUTTERFIELD LTD.
Neighbourhood Services,Technical Services,Supplies and Services,304358,Equipment and Materials,02-Oct-2013,2649205-14788,713.00,JOHN R BUTTERFIELD LTD.
Neighbourhood Services,Technical Services,Supplies and Services,304358,Equipment and Materials,02-Oct-2013,2649205-14789,899.00,JOHN R BUTTERFIELD LTD.
Neighbourhood Services,Technical Services,Supplies and Services,304358,Equipment and Materials,02-Oct-2013,2649205-14791,733.20,JOHN R BUTTERFIELD LTD.
Neighbourhood Services,Technical Services,Supplies and Services,304358,Equipment and Materials,02-Oct-2013,2649205-14793,877.00,JOHN R BUTTERFIELD LTD.
Neighbourhood Services,Technical Services,Supplies and Services,304358,Equipment and Materials,02-Oct-2013,2649205-14795,726.60,JOHN R BUTTERFIELD LTD.
Neighbourhood Services,Technical Services,Supplies and Services,304358,Equipment and Materials,02-Oct-2013,2649205-14796,"1,014.50",JOHN R BUTTERFIELD LTD.
Neighbourhood Services,Technical Services,Supplies and Services,304358,Equipment and Materials,02-Oct-2013,2649205-14797,"1,021.50",JOHN R BUTTERFIELD LTD.
Neighbourhood Services,Technical Services,Supplies and Services,304358,Equipment and Materials,02-Oct-2013,2649205-14799,527.00,JOHN R BUTTERFIELD LTD.
Neighbourhood Services,Technical Services,Supplies and Services,304358,Equipment and Materials,02-Oct-2013,2649205-14817,584.00,JOHN R BUTTERFIELD LTD.
Neighbourhood Services,Technical Services,Stock,926900,Stock in hand-Inventory system,02-Oct-2013,2649211-1018,984.00,KBRO LTD.
Neighbourhood Services,Technical Services,Third Party Payments,430100,Rendered by Private Contractors,02-Oct-2013,2649212-687,"4,500.00",KEVIN SNOWDON GROUNDWORKS LTD.
Neighbourhood Services,Technical Services,Third Party Payments,430100,Rendered by Private Contractors,02-Oct-2013,2649212-795,"4,500.00",KEVIN SNOWDON GROUNDWORKS LTD.
Neighbourhood Services,Technical Services,Supplies and Services,304221,Equipment and Materials,02-Oct-2013,2649221-10346,"4,284.00",LOGIC STREET & PARK FURNITURE LTD.
Neighbourhood Services,Technical Services,Supplies and Services,304221,Equipment and Materials,02-Oct-2013,2649225-ZBB0458117,"2,808.09",MARSHALLS MONO LTD.
Neighbourhood Services,Technical Services,Supplies and Services,304221,Equipment and Materials,02-Oct-2013,2649225-ZBB0475320,"2,808.09",MARSHALLS MONO LTD.
Neighbourhood Services,Technical Services,Supplies and Services,304221,Equipment and Materials,02-Oct-2013,2649226-28961,"3,525.43",MAY GURNEY LTD.
Neighbourhood Services,Technical Services,Third Party Payments,410037,Rendered by Other Local Authorities,02-Oct-2013,224353-1800006629421,"42,317.19",NEWCASTLE UPON TYNE CITY COUNCIL.
Neighbourhood Services,Technical Services,Supplies and Services,304221,Equipment and Materials,02-Oct-2013,2649253-DI20172880,"3,756.26",NORTHERN POWERGRID (NORTHEAST) LTD.
Neighbourhood Services,Technical Services,Supplies and Services,304357,Equipment and Materials,02-Oct-2013,2649255-SL01929829INV,675.80,NORTHGATE VEHICLE HIRE LTD.
Neighbourhood Services,Technical Services,Supplies and Services,304357,Equipment and Materials,02-Oct-2013,2649255-SL01929846INV,528.00,NORTHGATE VEHICLE HIRE LTD.
Neighbourhood Services,Technical Services,Stock,926900,Stock in hand-Inventory system,02-Oct-2013,2649260-XL097171,775.50,PARK ELECTRICAL DISTRIBUTORS LTD.
Neighbourhood Services,Technical Services,Stock,926900,Stock in hand-Inventory system,02-Oct-2013,2649260-XL097361,833.84,PARK ELECTRICAL DISTRIBUTORS LTD.
Neighbourhood Services,Technical Services,Stock,926900,Stock in hand-Inventory system,02-Oct-2013,2649260-XL097835,"2,413.55",PARK ELECTRICAL DISTRIBUTORS LTD.
Neighbourhood Services,Technical Services,Third Party Payments,430100,Rendered by Private Contractors,02-Oct-2013,2649271-2580/130847,"50,420.31",RAINTON CONSTRUCTION LTD.
Neighbourhood Services,Technical Services,Supplies and Services,304358,Equipment and Materials,02-Oct-2013,2649281-0095,773.00,S & R LANDSCAPES.
Neighbourhood Services,Technical Services,Supplies and Services,304357,Equipment and Materials,02-Oct-2013,2649285-10413745,563.00,SHB HIRE LTD.
Neighbourhood Services,Technical Services,Construction Work,908105,Construction work,02-Oct-2013,2649288-P169,"3,048.00",SHERIFF TECHNOLOGIES LTD.
Neighbourhood Services,Technical Services,Stock,926900,Stock in hand-Inventory system,02-Oct-2013,2649293-182309,995.04,SNAPFAST.
Neighbourhood Services,Technical Services,Stock,926900,Stock in hand-Inventory system,02-Oct-2013,2649306-0896094,619.38,T CROSSLING & CO LTD.
Neighbourhood Services,Technical Services,Stock,926900,Stock in hand-Inventory system,02-Oct-2013,2649306-0896797,"1,162.20",T CROSSLING & CO LTD.
Neighbourhood Services,Technical Services,Supplies and Services,304358,Equipment and Materials,02-Oct-2013,2649327-36080,"2,672.00",W MARLEY AGRICULTURAL CONTRACTORS LTD.
Neighbourhood Services,Technical Services,Supplies and Services,304358,Equipment and Materials,02-Oct-2013,2649327-36134,"5,784.00",W MARLEY AGRICULTURAL CONTRACTORS LTD.
Neighbourhood Services,Technical Services,Supplies and Services,304357,Equipment and Materials,02-Oct-2013,2649332-N71185,"2,451.37",WILLIAMSON CONSTRUCTION EQUIPMENT LTD.
Neighbourhood Services,Technical Services,Supplies and Services,304221,Equipment and Materials,02-Oct-2013,2649333-33513,"1,135.20",WILLOWCRETE MFG CO LTD.
RED HRA,Housing Revenue Account,Supplies and Services,372009,Subscriptions,02-Oct-2013,2649185-5315/13,"8,275.88",HOUSEMARK LTD.
RED HRA,HRA Capital,Construction Work,908105,Construction work,02-Oct-2013,2649104-EDH/1,896.46,BROOMHOUSE CARE LTD.
RED HRA,HRA Capital,Construction Work,908105,Construction work,02-Oct-2013,2649155-110162,"151,540.08",ESH CONSTRUCTION LTD FORMERLY LUMSDEN & CARROLL CONSTRUCTION LTD.
RED HRA,HRA Capital,Construction Work,908105,Construction work,02-Oct-2013,2649155-110436,"17,460.00",ESH CONSTRUCTION LTD FORMERLY LUMSDEN & CARROLL CONSTRUCTION LTD.
RED HRA,HRA Capital,Construction Work,908105,Construction work,02-Oct-2013,2649155-110437,"47,460.48",ESH CONSTRUCTION LTD FORMERLY LUMSDEN & CARROLL CONSTRUCTION LTD.
RED HRA,HRA Capital,Construction Work,908105,Construction work,02-Oct-2013,2649155-110475,"61,700.35",ESH CONSTRUCTION LTD FORMERLY LUMSDEN & CARROLL CONSTRUCTION LTD.
RED HRA,HRA Centrally Managed,Supplies and Services,384999,Miscellaneous Expenses,02-Oct-2013,224336,511.74,REDACTED - PAYMENT TO INDIVIDUAL
RED HRA,HRA Centrally Managed,Supplies and Services,384999,Miscellaneous Expenses,02-Oct-2013,224349,560.69,REDACTED - PAYMENT TO INDIVIDUAL
Regeneration & Economic Development,Economic Development and Housing,Supplies and Services,324117,Provisions,02-Oct-2013,2649076-36459441,827.58,3663.
Regeneration & Economic Development,Economic Development and Housing,Other Expenses,914001,Other capital expenses,02-Oct-2013,2649082-60155102-99,"1,800.00",AECOM LTD.
Regeneration & Economic Development,Economic Development and Housing,Cap Exp on Grants & Other Financial Assistance (REFCUS),918401,Capital grants,02-Oct-2013,2649087-827,"10,800.00",AVENSWAY BUILDING CONTRACTORS LTD.
Regeneration & Economic Development,Economic Development and Housing,Supplies and Services,384199,Miscellaneous Expenses,02-Oct-2013,2649088-51282,845.00,AZTEC COLOUR PRINT NORTH EAST LTD.
Regeneration & Economic Development,Economic Development and Housing,Supplies and Services,338029,Services,02-Oct-2013,2649097-15,"25,180.20",BLUE SKY THINK LLP.
Regeneration & Economic Development,Economic Development and Housing,Premises,120021,Energy Costs,02-Oct-2013,2649128-08635783,504.03,CORONA ENERGY RETAIL 2 LTD.
Regeneration & Economic Development,Economic Development and Housing,Creditors,952022,Creditor-ind est rent-rdc,02-Oct-2013,2649134,"6,622.00",DEPARTMENT FOR BUSINESS INNOVATION & SKILLS (BIS).
Regeneration & Economic Development,Economic Development and Housing,Other Expenses,914001,Other capital expenses,02-Oct-2013,2649160-3840,"250,000.00",FIVE LAMPS ORGANISATION.
Regeneration & Economic Development,Economic Development and Housing,Supplies and Services,384199,Miscellaneous Expenses,02-Oct-2013,2649167-FC007415,"3,000.00",FOUR COMMUNICATIONS PLC.
Regeneration & Economic Development,Economic Development and Housing,Supplies and Services,384700,Miscellaneous Expenses,02-Oct-2013,2649192,"1,425.60",IBEX INNOVATIONS LTD.
Regeneration & Economic Development,Economic Development and Housing,Supplies and Services,384199,Miscellaneous Expenses,02-Oct-2013,2649240-4499,730.00,MT AUDIO SYSTEMS.
Regeneration & Economic Development,Economic Development and Housing,Cap Exp on Grants & Other Financial Assistance (REFCUS),918401,Capital grants,02-Oct-2013,2649232,"16,349.00",REDACTED - PAYMENT TO INDIVIDUAL
Regeneration & Economic Development,"Spatial Policy, Planning, Assets & Environment",Supplies and Services,384700,Miscellaneous Expenses,02-Oct-2013,224254,667.00,ALLENDALE GOLF CLUB.
Regeneration & Economic Development,"Spatial Policy, Planning, Assets & Environment",Supplies and Services,384199,Miscellaneous Expenses,02-Oct-2013,2649146-3189/I01,"1,872.00",E3 ECOLOGY LTD.
Regeneration & Economic Development,"Spatial Policy, Planning, Assets & Environment",Premises,125009,Rents,02-Oct-2013,2649282-20593,"6,250.00",SALFORD ESTATES (NO 2) LTD.
Regeneration & Economic Development,"Spatial Policy, Planning, Assets & Environment",Premises,125009,Rents,02-Oct-2013,2649282-20594,733.96,SALFORD ESTATES (NO 2) LTD.
Regeneration & Economic Development,Transport and Contracted Services,Supplies and Services,344014,Telephones,02-Oct-2013,2649258-00970267390,"1,325.70",ORANGE PERSONAL COMMUNICATIONS SERVICES LTD.
Regeneration & Economic Development,Transport and Contracted Services,Supplies and Services,344014,Telephones,02-Oct-2013,2649258-00982616042,"1,317.99",ORANGE PERSONAL COMMUNICATIONS SERVICES LTD.
Regeneration & Economic Development,Transport and Contracted Services,Supplies and Services,344014,Telephones,02-Oct-2013,2649258-00994840508,"1,308.68",ORANGE PERSONAL COMMUNICATIONS SERVICES LTD.
Assistant Chief Executive,Partnerships & Community Engagement Div.,Supplies and Services,384086,Miscellaneous Expenses,03-Oct-2013,2649703,"2,000.00",TRIMDON VILLAGE HALL ASSOCIATION.
Children and Adult Services,Commissioning inc Supporting People,Third Party Payments,470101,Purchase of Care,03-Oct-2013,2649547,"4,047.23",LEONARD CHESHIRE DISABILITY.
Children and Adult Services,CYPS - Local Authority,Third Party Payments,425040,Rendered by Voluntary Organisations,03-Oct-2013,2649365-104306293A,"3,843.90",BARNARDOS.
Children and Adult Services,CYPS - Local Authority,Third Party Payments,425040,Rendered by Voluntary Organisations,03-Oct-2013,2649365-104306294,"3,972.03",BARNARDOS.
Children and Adult Services,CYPS - Local Authority,Third Party Payments,425040,Rendered by Voluntary Organisations,03-Oct-2013,2649365-104306474,"3,843.90",BARNARDOS.
Children and Adult Services,CYPS - Local Authority,Supplies and Services,372009,Subscriptions,03-Oct-2013,2649400-N/4614,"2,750.00",CHILD ACCIDENT PREVENTION TRUST.
Children and Adult Services,CYPS - Local Authority,Third Party Payments,479101,Purchase of Care,03-Oct-2013,2649412-3910001283,512.40,CO DURHAM & DARLINGTON NHS FOUNDATION TRUST.
Children and Adult Services,CYPS - Local Authority,Supplies and Services,338027,Services,03-Oct-2013,2649456-ECSC02,"1,500.00",EC SAFEGUARDING CONSULTANCY LTD.
Children and Adult Services,CYPS - Local Authority,Transport,230005,Contract Hire,03-Oct-2013,2649468-YOU/026,554.00,ELLIOTTS OF TRIMDON.
Children and Adult Services,CYPS - Local Authority,Third Party Payments,425040,Rendered by Voluntary Organisations,03-Oct-2013,2649481-FC013033,820.00,FOSTER CARES LTD.
Children and Adult Services,CYPS - Local Authority,Third Party Payments,425040,Rendered by Voluntary Organisations,03-Oct-2013,2649481-FC013039,730.00,FOSTER CARES LTD.
Children and Adult Services,CYPS - Local Authority,Third Party Payments,425040,Rendered by Voluntary Organisations,03-Oct-2013,2649481-FC013048,700.00,FOSTER CARES LTD.
Children and Adult Services,CYPS - Local Authority,Third Party Payments,425040,Rendered by Voluntary Organisations,03-Oct-2013,2649481-FC013054,730.00,FOSTER CARES LTD.
Children and Adult Services,CYPS - Local Authority,Third Party Payments,425040,Rendered by Voluntary Organisations,03-Oct-2013,2649481-FC013058,730.00,FOSTER CARES LTD.
Children and Adult Services,CYPS - Local Authority,Third Party Payments,425040,Rendered by Voluntary Organisations,03-Oct-2013,2649481-FC013083,820.00,FOSTER CARES LTD.
Children and Adult Services,CYPS - Local Authority,Third Party Payments,425040,Rendered by Voluntary Organisations,03-Oct-2013,2649481-FC013089,730.00,FOSTER CARES LTD.
Children and Adult Services,CYPS - Local Authority,Third Party Payments,425040,Rendered by Voluntary Organisations,03-Oct-2013,2649481-FC013098,700.00,FOSTER CARES LTD.
Children and Adult Services,CYPS - Local Authority,Third Party Payments,425040,Rendered by Voluntary Organisations,03-Oct-2013,2649481-FC013104,730.00,FOSTER CARES LTD.
Children and Adult Services,CYPS - Local Authority,Third Party Payments,425040,Rendered by Voluntary Organisations,03-Oct-2013,2649481-FC013108,730.00,FOSTER CARES LTD.
Children and Adult Services,CYPS - Local Authority,Third Party Payments,425040,Rendered by Voluntary Organisations,03-Oct-2013,2649481-FC013143,820.00,FOSTER CARES LTD.
Children and Adult Services,CYPS - Local Authority,Third Party Payments,425040,Rendered by Voluntary Organisations,03-Oct-2013,2649481-FC013149,730.00,FOSTER CARES LTD.
Children and Adult Services,CYPS - Local Authority,Third Party Payments,425040,Rendered by Voluntary Organisations,03-Oct-2013,2649481-FC013158,700.00,FOSTER CARES LTD.
Children and Adult Services,CYPS - Local Authority,Third Party Payments,425040,Rendered by Voluntary Organisations,03-Oct-2013,2649481-FC013164,730.00,FOSTER CARES LTD.
Children and Adult Services,CYPS - Local Authority,Third Party Payments,425040,Rendered by Voluntary Organisations,03-Oct-2013,2649481-FC013168,730.00,FOSTER CARES LTD.
Children and Adult Services,CYPS - Local Authority,Third Party Payments,425040,Rendered by Voluntary Organisations,03-Oct-2013,2649481-FC013201,820.00,FOSTER CARES LTD.
Children and Adult Services,CYPS - Local Authority,Third Party Payments,425040,Rendered by Voluntary Organisations,03-Oct-2013,2649481-FC013206,730.00,FOSTER CARES LTD.
Children and Adult Services,CYPS - Local Authority,Third Party Payments,425040,Rendered by Voluntary Organisations,03-Oct-2013,2649481-FC013215,700.00,FOSTER CARES LTD.
Children and Adult Services,CYPS - Local Authority,Third Party Payments,425040,Rendered by Voluntary Organisations,03-Oct-2013,2649481-FC013225,730.00,FOSTER CARES LTD.
Children and Adult Services,CYPS - Local Authority,Third Party Payments,425040,Rendered by Voluntary Organisations,03-Oct-2013,2649481-FC013250,820.00,FOSTER CARES LTD.
Children and Adult Services,CYPS - Local Authority,Third Party Payments,425040,Rendered by Voluntary Organisations,03-Oct-2013,2649481-FC013263,700.00,FOSTER CARES LTD.
Children and Adult Services,CYPS - Local Authority,Third Party Payments,425040,Rendered by Voluntary Organisations,03-Oct-2013,2649482-100354,"4,011.97",FOSTERING SOLUTIONS LTD.
Children and Adult Services,CYPS - Local Authority,Third Party Payments,425040,Rendered by Voluntary Organisations,03-Oct-2013,2649485-24697,"3,128.70",FUTURES FOR CHILDREN LTD.
Children and Adult Services,CYPS - Local Authority,Supplies and Services,338026,Services,03-Oct-2013,2649527-07,"2,625.00",JEANETTE CALLAGHAN.
Children and Adult Services,CYPS - Local Authority,Supplies and Services,384491,Miscellaneous Expenses,03-Oct-2013,2649536,616.00,KELLOE PHOENIX CENTRE (CHILDCARE).
Children and Adult Services,CYPS - Local Authority,Transport,230005,Contract Hire,03-Oct-2013,2649569-KDC010813,"2,170.00",MJ TIMNEY.
Children and Adult Services,CYPS - Local Authority,Supplies and Services,324117,Provisions,03-Oct-2013,2649595-119223,"1,044.44",NORTH EAST VENDING LTD.
Children and Adult Services,CYPS - Local Authority,Supplies and Services,338099,Services,03-Oct-2013,2649563,886.70,REDACTED - PAYMENT TO INDIVIDUAL
Children and Adult Services,CYPS - Local Authority,Transport,230005,Contract Hire,03-Oct-2013,2649653-71208,578.00,SHOTTON PRIVATE HIRE.
Children and Adult Services,CYPS - Local Authority,Transport,230005,Contract Hire,03-Oct-2013,2649653-71209,587.00,SHOTTON PRIVATE HIRE.
Children and Adult Services,CYPS - Local Authority,Construction Work,908105,Construction work,03-Oct-2013,2649657,"58,265.18",SIR ROBERT MCALPINE LTD.
Children and Adult Services,CYPS - Local Authority,Supplies and Services,364352,Grants to Voluntary Organisations,03-Oct-2013,2649673-202,961.48,STONHAM HOUSING ASSOCIATION LTD.
Children and Adult Services,CYPS - Local Authority,Third Party Payments,425040,Rendered by Voluntary Organisations,03-Oct-2013,2649680-20129,"5,914.20",TEAM FOSTERING.
Children and Adult Services,CYPS - Local Authority,Third Party Payments,425040,Rendered by Voluntary Organisations,03-Oct-2013,2649680-20158,"3,000.00",TEAM FOSTERING.
Children and Adult Services,CYPS - Local Authority,Third Party Payments,425040,Rendered by Voluntary Organisations,03-Oct-2013,2649680-21085,"3,128.40",TEAM FOSTERING.
Children and Adult Services,CYPS - Local Authority,Supplies and Services,304421,Equipment and Materials,03-Oct-2013,2649707-445615,539.53,UNITED CARLTON OFFICE SYSTEMS LTD.
Children and Adult Services,Head of Adults,Supplies and Services,338365,Services,03-Oct-2013,2649614-0000062719,998.00,PEART ACCESS RAMPS.
Children and Adult Services,Head of Adults,Summary Income Level,720047,Fees and Charges,03-Oct-2013,2649445,"1,431.68",REDACTED - PAYMENT TO INDIVIDUAL
Children and Adult Services,Planning and Performance,Third Party Payments,486047,Service Level Agreements,03-Oct-2013,2649403,"1,592.50",CHRISTOPHER FRAZER T/A MYNTED.
Children and Adult Services,Public Health,Third Party Payments,460803,Contract Payments,03-Oct-2013,2649638-RTD20,"11,550.00",ROWLANDS GILL MEDICAL CENTRE.
Corporate Resources,Financing- Resources,Supplies and Services,338027,Services,03-Oct-2013,2649406-C/RB119096,"3,150.00",CIVICA UK LTD.
Corporate Resources,ICT Services incl. Design and Print,Supplies and Services,342051,Computers and Communications,03-Oct-2013,2649600-4141,"37,892.55",NTS (UK)LTD.
Corporate Resources,ICT Services incl. Design and Print,Supplies and Services,332029,"Printing, Stationery and Gen Off Exps",03-Oct-2013,2649665-7076,"2,837.00",SPOT ON DISPLAYS LTD.
Neighbourhood Services,Culture & Sport,Supplies and Services,384199,Miscellaneous Expenses,03-Oct-2013,2649378,500.00,BRIDIE JACKSON.
Neighbourhood Services,Culture & Sport,Supplies and Services,324001,Provisions,03-Oct-2013,2649390-EW54450606,"1,092.35",CARLSBERG UK LTD.
Neighbourhood Services,Culture & Sport,Premises,108251,Service Repairs and Maintenance,03-Oct-2013,2649628-8609,"1,250.00",PROTECTOR SECURITY GROUP LTD.
Neighbourhood Services,Culture & Sport,Supplies and Services,338094,Services,03-Oct-2013,2649659-47/7/13,525.00,SLAM COMMUNITY DEVELOPMENT TRUST.
Neighbourhood Services,Direct Services,Supplies and Services,304259,Equipment and Materials,03-Oct-2013,2649364-95049585,"2,565.87",BALL COLEGRAVE LTD.
Neighbourhood Services,Direct Services,Supplies and Services,328041,"Clothing, Uniforms and Laundry",03-Oct-2013,2649368-SN1357865,501.76,BERENDSEN UK LTD
Neighbourhood Services,Direct Services,Supplies and Services,328041,"Clothing, Uniforms and Laundry",03-Oct-2013,2649368-SN1434857,528.00,BERENDSEN UK LTD
Neighbourhood Services,Direct Services,Supplies and Services,304221,Equipment and Materials,03-Oct-2013,2649383-1650/0468373,"2,460.27",BSS GROUP PLC.
Neighbourhood Services,Direct Services,Transport,230005,Contract Hire,03-Oct-2013,2649386-NEW8101022,501.60,BURNT TREE GROUP LTD.
Neighbourhood Services,Direct Services,Supplies and Services,338099,Services,03-Oct-2013,2649386-NEW8101827,524.40,BURNT TREE GROUP LTD.
Neighbourhood Services,Direct Services,Supplies and Services,304221,Equipment and Materials,03-Oct-2013,2649491-1053927,"1,346.73",CERTAS ENERGY UK LTD.
Neighbourhood Services,Direct Services,Third Party Payments,430100,Rendered by Private Contractors,03-Oct-2013,2649473-13832,"1,561.00",F WARREN (ELECTRICAL) LTD.
Neighbourhood Services,Direct Services,Supplies and Services,304221,Equipment and Materials,03-Oct-2013,2649717-10919,"5,500.00",WARD BROTHERS PLANT HIRE LTD.
Neighbourhood Services,Technical Services,Supplies and Services,304221,Equipment and Materials,03-Oct-2013,2649349-18680138,686.45,AGGREGATE INDUSTRIES UK LTD.
Neighbourhood Services,Technical Services,Supplies and Services,304221,Equipment and Materials,03-Oct-2013,2649349-18737238,"2,886.00",AGGREGATE INDUSTRIES UK LTD.
Neighbourhood Services,Technical Services,Supplies and Services,384199,Miscellaneous Expenses,03-Oct-2013,2649490-GRI52,630.00,GAVIN RIDDLE.
Neighbourhood Services,Technical Services,Supplies and Services,304358,Equipment and Materials,03-Oct-2013,2649494-9373,885.00,GEORGE VARDY HAULAGE.
Neighbourhood Services,Technical Services,Supplies and Services,304357,Equipment and Materials,03-Oct-2013,2649543-10776,722.00,LAE VEHICLE RENTAL LTD.
Neighbourhood Services,Technical Services,Supplies and Services,304221,Equipment and Materials,03-Oct-2013,2649561-ZBB0473120,"2,529.33",MARSHALLS MONO LTD.
Neighbourhood Services,Technical Services,Third Party Payments,430100,Rendered by Private Contractors,03-Oct-2013,2649597-D120172632,954.76,NORTHERN POWERGRID (NORTHEAST) LTD.
Neighbourhood Services,Technical Services,Third Party Payments,430100,Rendered by Private Contractors,03-Oct-2013,2649624-125387,"2,159.25",PREMIER TRAFFIC MANAGEMENT LTD.
Neighbourhood Services,Technical Services,Supplies and Services,304221,Equipment and Materials,03-Oct-2013,2649722-429,900.00,WILF HUSBAND PLANT HIRE.
RED HRA,Housing Revenue Account,Supplies and Services,338027,Services,03-Oct-2013,2649524-10807,"2,880.00",IPB COMMUNICATIONS LTD.
RED HRA,HRA Capital,Construction Work,908105,Construction work,03-Oct-2013,2649435-178040,854.47,DELTA ELECTRICAL & MECHANICAL SERVICES.
Regeneration & Economic Development,Economic Development and Housing,Cap Exp on Grants & Other Financial Assistance (REFCUS),918401,Capital grants,03-Oct-2013,2649466-204GE,"3,105.00",ELLIOT HIRD & PARTNERS LTD.
Regeneration & Economic Development,Economic Development and Housing,Cap Exp on Grants & Other Financial Assistance (REFCUS),918401,Capital grants,03-Oct-2013,2649466-211GE,"3,000.00",ELLIOT HIRD & PARTNERS LTD.
Regeneration & Economic Development,Economic Development and Housing,Cap Exp on Grants & Other Financial Assistance (REFCUS),918401,Capital grants,03-Oct-2013,2649466-213GE,"3,090.00",ELLIOT HIRD & PARTNERS LTD.
Regeneration & Economic Development,Economic Development and Housing,Cap Exp on Grants & Other Financial Assistance (REFCUS),918401,Capital grants,03-Oct-2013,2649472-DFG161/13,"2,680.00",F TIFFEN BUILDING SERVICES.
Regeneration & Economic Development,Economic Development and Housing,Cap Exp on Grants & Other Financial Assistance (REFCUS),918401,Capital grants,03-Oct-2013,2649472-DFG162/13,"2,880.00",F TIFFEN BUILDING SERVICES.
Regeneration & Economic Development,Economic Development and Housing,Supplies and Services,384700,Miscellaneous Expenses,03-Oct-2013,2649519,"2,183.96",IBEX INNOVATIONS LTD.
Regeneration & Economic Development,Economic Development and Housing,Supplies and Services,384899,Miscellaneous Expenses,03-Oct-2013,2649553,"1,000.00",LJ RETAIL GROUP.
Regeneration & Economic Development,Economic Development and Housing,Cap Exp on Grants & Other Financial Assistance (REFCUS),918401,Capital grants,03-Oct-2013,2649584-DFG132/13,"4,385.00",NEIL BELL PLUMBERS HEATING & GAS INS.
Regeneration & Economic Development,Economic Development and Housing,Cap Exp on Grants & Other Financial Assistance (REFCUS),918401,Capital grants,03-Oct-2013,2649584-DFG170/13,"3,995.00",NEIL BELL PLUMBERS HEATING & GAS INS.
Regeneration & Economic Development,Economic Development and Housing,Cap Exp on Grants & Other Financial Assistance (REFCUS),918401,Capital grants,03-Oct-2013,2649640-87,"5,540.00",ROYCE CARSON BUILDING SERVICES.
Regeneration & Economic Development,Economic Development and Housing,Cap Exp on Grants & Other Financial Assistance (REFCUS),918401,Capital grants,03-Oct-2013,2649640-88,"4,501.00",ROYCE CARSON BUILDING SERVICES.
Regeneration & Economic Development,Economic Development and Housing,Construction Work,908105,Construction work,03-Oct-2013,2649657,"317,338.22",SIR ROBERT MCALPINE LTD.
Regeneration & Economic Development,Economic Development and Housing,Supplies and Services,308011,Furniture,03-Oct-2013,2649668-84616,506.40,STANDING STONE DRAWING OFFICE SUPPLIES LTD.
Regeneration & Economic Development,Economic Development and Housing,Cap Exp on Grants & Other Financial Assistance (REFCUS),918401,Capital grants,03-Oct-2013,2649691-SIP-123362,"2,010.00",THYSSENKRUPP ENCASA LTD.
Regeneration & Economic Development,Economic Development and Housing,Cap Exp on Grants & Other Financial Assistance (REFCUS),918401,Capital grants,03-Oct-2013,2649691-SIP-124500,"1,621.64",THYSSENKRUPP ENCASA LTD.
Regeneration & Economic Development,Economic Development and Housing,Cap Exp on Grants & Other Financial Assistance (REFCUS),918401,Capital grants,03-Oct-2013,2649691-SIP-124636,"4,690.00",THYSSENKRUPP ENCASA LTD.
Regeneration & Economic Development,Economic Development and Housing,Cap Exp on Grants & Other Financial Assistance (REFCUS),918401,Capital grants,03-Oct-2013,2649696-OP/I1070552,"2,933.50",TOTAL HYGIENE LTD.
Regeneration & Economic Development,Economic Development and Housing,Payments In Advance,932001,Payments in advance,03-Oct-2013,2649700-OrderNo1306800,"2,588.43",TRAVELEX GLOBAL BUSINESS PAYMENTS LTD.
Regeneration & Economic Development,Economic Development and Housing,Payments In Advance,932001,Payments in advance,03-Oct-2013,2649700-OrderNo1306801,"1,387.30",TRAVELEX GLOBAL BUSINESS PAYMENTS LTD.
Regeneration & Economic Development,Transport and Contracted Services,Other Expenses,914001,Other capital expenses,03-Oct-2013,2649588-4409809,552.02,NEWSQUEST (YORKSHIRE & NORTH EAST) LTD.
Assistant Chief Executive,Partnerships & Community Engagement Div.,Supplies and Services,384700,Miscellaneous Expenses,04-Oct-2013,2649764,"1,000.00",BISHOP AUCKLAND TOWN COUNCIL.
Assistant Chief Executive,Partnerships & Community Engagement Div.,Supplies and Services,384199,Miscellaneous Expenses,04-Oct-2013,2649929,545.70,MPH ACCESSIBLE MEDIA.
Children and Adult Services,CYPS - Local Authority,Transport,230005,Contract Hire,04-Oct-2013,2649737-L1/SRC,525.00,AABAT TAXIS.
Children and Adult Services,CYPS - Local Authority,Third Party Payments,425040,Rendered by Voluntary Organisations,04-Oct-2013,2649738-13/1258,"3,000.00",ACORN HOUSE (FOSTERING SERVICES) LTD.
Children and Adult Services,CYPS - Local Authority,Third Party Payments,479101,Purchase of Care,04-Oct-2013,2649793-3910001449,"4,903.55",CO DURHAM & DARLINGTON NHS FOUNDATION TRUST.
Children and Adult Services,CYPS - Local Authority,Transport,230008,Contract Hire,04-Oct-2013,2649797-167-19/9/13,"1,244.12",CONNORS MINI BUSES.
Children and Adult Services,CYPS - Local Authority,"Vehicles, Equipment, Furniture and Fittings",912701,Computer equipment,04-Oct-2013,2649806-7402060639,"2,469.06",DELL COMPUTER CORPORATION LTD.
Children and Adult Services,CYPS - Local Authority,Supplies and Services,338027,Services,04-Oct-2013,2649819-ECSC03,"1,500.00",EC SAFEGUARDING CONSULTANCY LTD.
Children and Adult Services,CYPS - Local Authority,Third Party Payments,425040,Rendered by Voluntary Organisations,04-Oct-2013,2649834-FC013255,730.00,FOSTER CARES LTD.
Children and Adult Services,CYPS - Local Authority,Third Party Payments,425040,Rendered by Voluntary Organisations,04-Oct-2013,2649834-FC013301,820.00,FOSTER CARES LTD.
Children and Adult Services,CYPS - Local Authority,Third Party Payments,425040,Rendered by Voluntary Organisations,04-Oct-2013,2649834-FC013306,730.00,FOSTER CARES LTD.
Children and Adult Services,CYPS - Local Authority,Third Party Payments,425040,Rendered by Voluntary Organisations,04-Oct-2013,2649834-FC013314,700.00,FOSTER CARES LTD.
Children and Adult Services,CYPS - Local Authority,Third Party Payments,425040,Rendered by Voluntary Organisations,04-Oct-2013,2649834-FC013324,730.00,FOSTER CARES LTD.
Children and Adult Services,CYPS - Local Authority,Transport,230007,Contract Hire,04-Oct-2013,2649893-2013320,"1,095.00",L & M TAXIS.
Children and Adult Services,CYPS - Local Authority,Transport,230007,Contract Hire,04-Oct-2013,2649896-18580,"5,059.80",LEE`S COACHES LTD.
Children and Adult Services,CYPS - Local Authority,Transport,230007,Contract Hire,04-Oct-2013,2649899-2859,"1,056.00",LINCAB TAXIS.
Children and Adult Services,CYPS - Local Authority,Supplies and Services,304259,Equipment and Materials,04-Oct-2013,2649957-20094,595.00,NURTURE GROUP NETWORK LTD.
Children and Adult Services,CYPS - Local Authority,Employees,040001,"Recruitment, Instruction and Training",04-Oct-2013,2650051,607.50,TSL EDUCATION LTD.
Children and Adult Services,Head of Adults,Supplies and Services,308011,Furniture,04-Oct-2013,2649759-1,"1,870.00",BATHS N TAPPS.
Children and Adult Services,Head of Adults,Supplies and Services,308011,Furniture,04-Oct-2013,2649759-2,"1,940.00",BATHS N TAPPS.
Children and Adult Services,Head of Adults,Supplies and Services,308011,Furniture,04-Oct-2013,2649759-3,"1,810.00",BATHS N TAPPS.
Children and Adult Services,Head of Adults,Transport,230005,Contract Hire,04-Oct-2013,2649893-2013335,"1,920.00",L & M TAXIS.
Corporate Resources,ICT Services incl. Design and Print,Supplies and Services,342053,Computers and Communications,04-Oct-2013,2649774-354657,768.00,BYTES SOFTWARE SERVICES.
Corporate Resources,ICT Services incl. Design and Print,Supplies and Services,342051,Computers and Communications,04-Oct-2013,2649774-355021,"1,495.46",BYTES SOFTWARE SERVICES.
Corporate Resources,ICT Services incl. Design and Print,Supplies and Services,332029,"Printing, Stationery and Gen Off Exps",04-Oct-2013,2649782-LEI122458,545.00,CELLOGLAS LTD.
Corporate Resources,ICT Services incl. Design and Print,Supplies and Services,342222,Computers and Communications,04-Oct-2013,2649806-7402058336,"1,390.41",DELL COMPUTER CORPORATION LTD.
Corporate Resources,ICT Services incl. Design and Print,"Vehicles, Equipment, Furniture and Fittings",912701,Computer equipment,04-Oct-2013,2649806-7402059683,"5,040.00",DELL COMPUTER CORPORATION LTD.
Corporate Resources,ICT Services incl. Design and Print,Supplies and Services,338029,Services,04-Oct-2013,2649815-179,"1,500.00",DYNALUCID EDINBURGH.
Corporate Resources,ICT Services incl. Design and Print,Construction Work,908105,Construction work,04-Oct-2013,2649889-36194,"1,074.00",KBR IT & NETWORKING SOLUTIONS.
Corporate Resources,ICT Services incl. Design and Print,Stock,926900,Stock in hand-Inventory system,04-Oct-2013,2649971-OP/I707960,"5,522.60",PHOENIX SOFTWARE LTD.
Corporate Resources,ICT Services incl. Design and Print,Stock,926900,Stock in hand-Inventory system,04-Oct-2013,2650016-OP/L723146,"9,693.76",SPECIALIST COMPUTER CENTRES PLC.
Corporate Resources,ICT Services incl. Design and Print,"Vehicles, Equipment, Furniture and Fittings",912701,Computer equipment,04-Oct-2013,2650016-OP/L726641,"1,575.00",SPECIALIST COMPUTER CENTRES PLC.
Corporate Resources,ICT Services incl. Design and Print,Stock,926900,Stock in hand-Inventory system,04-Oct-2013,2650027-6188468,980.49,SUPPLIES TEAM LTD.
Corporate Resources,ICT Services incl. Design and Print,"Vehicles, Equipment, Furniture and Fittings",912701,Computer equipment,04-Oct-2013,2650031-118375,"4,960.00",SWITCHSHOP LTD.
Corporate Resources,ICT Services incl. Design and Print,Debtors,930167,Debtor-Telephone Holding Account,04-Oct-2013,2650034-04785355,"1,625.46",TALKTALK BUSINESS.
Corporate Resources,ICT Services incl. Design and Print,Supplies and Services,384156,Miscellaneous Expenses,04-Oct-2013,2650050-107953,794.01,TP ELECTRICAL SUPPLIES & FIXINGS LTD.
Corporate Resources,ICT Services incl. Design and Print,Supplies and Services,304303,Equipment and Materials,04-Oct-2013,2650050-108041,"2,621.00",TP ELECTRICAL SUPPLIES & FIXINGS LTD.
Corporate Resources,ICT Services incl. Design and Print,Stock,926900,Stock in hand-Inventory system,04-Oct-2013,2650056-2330251,"15,625.00",VIGLEN LTD.
Corporate Resources,ICT Services incl. Design and Print,Stock,926900,Stock in hand-Inventory system,04-Oct-2013,2650056-2330260,"46,875.00",VIGLEN LTD.
Corporate Resources,ICT Services incl. Design and Print,Stock,926900,Stock in hand-Inventory system,04-Oct-2013,2650064-T913204,995.76,XMA LTD.
Corporate Resources,Legal & Democratic Services,Supplies and Services,384965,Miscellaneous Expenses,04-Oct-2013,2649847-IN001025,"2,580.00",GK BEAULAH & CO LTD.
Corporate Resources,Legal & Democratic Services,Supplies and Services,342037,Computers and Communications,04-Oct-2013,2650027-6179688,587.36,SUPPLIES TEAM LTD.
Corporate Resources,Legal & Democratic Services,Supplies and Services,384199,Miscellaneous Expenses,04-Oct-2013,2650057-SIN039901,"1,919.50",VOICE PRODUCTS LTD.
Dedicated Schools Grant,Dedicated Schools Grant,Employees,080025,Agency Staff,04-Oct-2013,2649974-11285,"1,915.00",PK EDUCATION.
Neighbourhood Services,Culture & Sport,Supplies and Services,324117,Provisions,04-Oct-2013,2649732-36456578,564.56,3663.
Neighbourhood Services,Culture & Sport,Supplies and Services,312013,"Newspapers, Books and Periodicals",04-Oct-2013,2649751-4034681,560.12,ASKEWS & HOLTS LIBRARY SERVICES LTD.
Neighbourhood Services,Culture & Sport,Supplies and Services,312013,"Newspapers, Books and Periodicals",04-Oct-2013,2649751-4038783,511.42,ASKEWS & HOLTS LIBRARY SERVICES LTD.
Neighbourhood Services,Culture & Sport,Supplies and Services,312013,"Newspapers, Books and Periodicals",04-Oct-2013,2649751-4038865,550.79,ASKEWS & HOLTS LIBRARY SERVICES LTD.
Neighbourhood Services,Culture & Sport,Supplies and Services,312013,"Newspapers, Books and Periodicals",04-Oct-2013,2649751-4038933,651.73,ASKEWS & HOLTS LIBRARY SERVICES LTD.
Neighbourhood Services,Culture & Sport,Supplies and Services,324001,Provisions,04-Oct-2013,2649768-34858741,539.77,BRAKE BROS FOODSERVICE LTD.
Neighbourhood Services,Culture & Sport,Supplies and Services,324001,Provisions,04-Oct-2013,2649778-EW54473569,728.94,CARLSBERG UK LTD.
Neighbourhood Services,Culture & Sport,Supplies and Services,324001,Provisions,04-Oct-2013,2649778-EW54495530,"1,278.08",CARLSBERG UK LTD.
Neighbourhood Services,Culture & Sport,Supplies and Services,338047,Services,04-Oct-2013,2649817-60102945,851.56,E1 ENTERTAINMENT.
Neighbourhood Services,Culture & Sport,Supplies and Services,338099,Services,04-Oct-2013,2649864-HBBATH24,700.00,HILARITY BITES COMEDY CLUB.
Neighbourhood Services,Culture & Sport,Supplies and Services,338099,Services,04-Oct-2013,2649882,746.01,JOHN MURDOCH.
Neighbourhood Services,Culture & Sport,Supplies and Services,384199,Miscellaneous Expenses,04-Oct-2013,2649915,775.00,MENISHA GELA.
Neighbourhood Services,Culture & Sport,Supplies and Services,338099,Services,04-Oct-2013,2649920-SEP1314-07,900.00,MIKE BROWN.
Neighbourhood Services,Culture & Sport,Supplies and Services,304259,Equipment and Materials,04-Oct-2013,2649926-92235172,508.80,MORPLAN LTD.
Neighbourhood Services,Culture & Sport,Supplies and Services,304221,Equipment and Materials,04-Oct-2013,2649980-3969052,"6,503.91",PRS FOR MUSIC.
Neighbourhood Services,Culture & Sport,Premises,145023,Cleaning and Domestic Supplies,04-Oct-2013,2650006-263562,944.00,SIS CHEMICALS.
Neighbourhood Services,Culture & Sport,Employees,080030,Agency Staff,04-Oct-2013,2650010-230-103,"5,925.60",SOLAR LEARNING SERVICES.
Neighbourhood Services,Culture & Sport,Supplies and Services,338047,Services,04-Oct-2013,2650012,"1,876.34",SONY PICTURES RELEASING.
Neighbourhood Services,Direct Services,Supplies and Services,342225,Computers and Communications,04-Oct-2013,2649733-113494,"1,915.00",802 WORKS LTD.
Neighbourhood Services,Direct Services,Supplies and Services,384199,Miscellaneous Expenses,04-Oct-2013,2649758-52837,597.28,BAILEYS BLINDS CO LTD.
Neighbourhood Services,Direct Services,Third Party Payments,430100,Rendered by Private Contractors,04-Oct-2013,2649780-14068,662.98,CATHEDRAL LOCK & SAFE SERVICES LTD.
Neighbourhood Services,Direct Services,Third Party Payments,430100,Rendered by Private Contractors,04-Oct-2013,2649780-14094,958.20,CATHEDRAL LOCK & SAFE SERVICES LTD.
Neighbourhood Services,Direct Services,Stock,926004,Stock,04-Oct-2013,2649841-1143964,"2,079.60",CERTAS ENERGY UK LTD.
Neighbourhood Services,Direct Services,Stock,926004,Stock,04-Oct-2013,2649841-1192743,"10,874.28",CERTAS ENERGY UK LTD.
Neighbourhood Services,Direct Services,Stock,926004,Stock,04-Oct-2013,2649841-1194080,"12,138.21",CERTAS ENERGY UK LTD.
Neighbourhood Services,Direct Services,Stock,926004,Stock,04-Oct-2013,2649841-1212880,"24,656.52",CERTAS ENERGY UK LTD.
Neighbourhood Services,Direct Services,Stock,926004,Stock,04-Oct-2013,2649841-1212953,"11,237.00",CERTAS ENERGY UK LTD.
Neighbourhood Services,Direct Services,Premises,106099,Centrally Controlled Rep and Maint,04-Oct-2013,2649791-461252/A,"8,250.00",CLEARWATER TECHNOLOGY LTD.
Neighbourhood Services,Direct Services,Transport,210057,Repair and Maintenance of Vehicles,04-Oct-2013,2649808-DE10735150,957.52,DENNIS EAGLE LTD.
Neighbourhood Services,Direct Services,Supplies and Services,304259,Equipment and Materials,04-Oct-2013,2649821-059-128806,823.00,EDMUNDSON ELECTRICAL LTD.
Neighbourhood Services,Direct Services,Supplies and Services,304252,Equipment and Materials,04-Oct-2013,2649821-059-128929,621.00,EDMUNDSON ELECTRICAL LTD.
Neighbourhood Services,Direct Services,Supplies and Services,304221,Equipment and Materials,04-Oct-2013,2649868-B33/0059255,826.79,HOWDENS JOINERY LTD.
Neighbourhood Services,Direct Services,Supplies and Services,304221,Equipment and Materials,04-Oct-2013,2649868-B33/0059408,835.05,HOWDENS JOINERY LTD.
Neighbourhood Services,Direct Services,Supplies and Services,304221,Equipment and Materials,04-Oct-2013,2649868-B33/0059439,831.01,HOWDENS JOINERY LTD.
Neighbourhood Services,Direct Services,Third Party Payments,430100,Rendered by Private Contractors,04-Oct-2013,2649884-65177063,"1,283.83",JOHNSTON SWEEPERS LTD.
Neighbourhood Services,Direct Services,Premises,108099,Service Repairs and Maintenance,04-Oct-2013,2649908-38671,"11,811.00",MARIAN DOORS & SHUTTERS.
Neighbourhood Services,Direct Services,Supplies and Services,304221,Equipment and Materials,04-Oct-2013,2649917-SIN083947,"2,192.15",MHS BOILERS LTD.
Neighbourhood Services,Direct Services,Transport,210057,Repair and Maintenance of Vehicles,04-Oct-2013,2649923-1353792154,805.17,MITCHELL POWERSYSTEMS.
Neighbourhood Services,Direct Services,Supplies and Services,304259,Equipment and Materials,04-Oct-2013,2649943-061780,"1,000.00",NEW ROW FARM NURSERIES.
Neighbourhood Services,Direct Services,Supplies and Services,304221,Equipment and Materials,04-Oct-2013,2649975-4120153026,805.43,PLUMBING TRADE SUPPLIES LTD.
Neighbourhood Services,Direct Services,Supplies and Services,304221,Equipment and Materials,04-Oct-2013,2649975-4120154291,"1,081.97",PLUMBING TRADE SUPPLIES LTD.
Neighbourhood Services,Direct Services,Supplies and Services,304221,Equipment and Materials,04-Oct-2013,2649975-4120155059,565.42,PLUMBING TRADE SUPPLIES LTD.
Neighbourhood Services,Direct Services,Supplies and Services,304221,Equipment and Materials,04-Oct-2013,2649975-4120155063,975.98,PLUMBING TRADE SUPPLIES LTD.
Neighbourhood Services,Direct Services,Supplies and Services,304221,Equipment and Materials,04-Oct-2013,2649975-4120155124,993.40,PLUMBING TRADE SUPPLIES LTD.
Neighbourhood Services,Direct Services,Supplies and Services,384199,Miscellaneous Expenses,04-Oct-2013,2649976-125979,"1,400.00",PREMIER TRAFFIC MANAGEMENT LTD.
Neighbourhood Services,Direct Services,Third Party Payments,430100,Rendered by Private Contractors,04-Oct-2013,2649999-847,"1,760.00",SAFE STRIP UK LTD.
Neighbourhood Services,Direct Services,Supplies and Services,304221,Equipment and Materials,04-Oct-2013,2650062-84540257,500.25,WOLSELEY UK LTD.
Neighbourhood Services,Direct Services,Supplies and Services,304221,Equipment and Materials,04-Oct-2013,2650062-84540258,823.22,WOLSELEY UK LTD.
Neighbourhood Services,Direct Services,Supplies and Services,304221,Equipment and Materials,04-Oct-2013,2650062-84540277,754.11,WOLSELEY UK LTD.
Neighbourhood Services,Direct Services,Supplies and Services,304221,Equipment and Materials,04-Oct-2013,2650062-84540278,678.21,WOLSELEY UK LTD.
Neighbourhood Services,Direct Services,Supplies and Services,304221,Equipment and Materials,04-Oct-2013,2650062-84604819,638.24,WOLSELEY UK LTD.
Neighbourhood Services,Direct Services,Supplies and Services,304221,Equipment and Materials,04-Oct-2013,2650062-84604820,777.23,WOLSELEY UK LTD.
Neighbourhood Services,Direct Services,Supplies and Services,304221,Equipment and Materials,04-Oct-2013,2650062-84604821,748.07,WOLSELEY UK LTD.
Neighbourhood Services,Direct Services,Supplies and Services,304221,Equipment and Materials,04-Oct-2013,2650062-84604822,733.49,WOLSELEY UK LTD.
Neighbourhood Services,Direct Services,Supplies and Services,304221,Equipment and Materials,04-Oct-2013,2650062-84604827,562.76,WOLSELEY UK LTD.
Neighbourhood Services,Direct Services,Supplies and Services,304221,Equipment and Materials,04-Oct-2013,2650062-84604829,562.76,WOLSELEY UK LTD.
Neighbourhood Services,Direct Services,Supplies and Services,304221,Equipment and Materials,04-Oct-2013,2650062-84604834,841.07,WOLSELEY UK LTD.
Neighbourhood Services,Direct Services,Supplies and Services,304221,Equipment and Materials,04-Oct-2013,2650062-84604835,819.31,WOLSELEY UK LTD.
Neighbourhood Services,Direct Services,Supplies and Services,304221,Equipment and Materials,04-Oct-2013,2650062-84604836,841.07,WOLSELEY UK LTD.
Neighbourhood Services,Direct Services,Supplies and Services,304221,Equipment and Materials,04-Oct-2013,2650062-84604837,562.76,WOLSELEY UK LTD.
Neighbourhood Services,Projects and Business services,Supplies and Services,338027,Services,04-Oct-2013,2649767-4152452,"3,664.01",BOND DICKINSON LLP.
Neighbourhood Services,Projects and Business services,Third Party Payments,430100,Rendered by Private Contractors,04-Oct-2013,2649831-SINV8456989,592.00,FINNING (UK) LTD.
Neighbourhood Services,Projects and Business services,Third Party Payments,430119,Rendered by Private Contractors,04-Oct-2013,2649859-84154,"1,855.84",HARPERS ENVIRONMENTAL LTD.
Neighbourhood Services,Projects and Business services,Third Party Payments,430119,Rendered by Private Contractors,04-Oct-2013,2649859-84157,"7,256.66",HARPERS ENVIRONMENTAL LTD.
Neighbourhood Services,Technical Services,Supplies and Services,304221,Equipment and Materials,04-Oct-2013,2649741-18696619,"1,090.51",AGGREGATE INDUSTRIES UK LTD.
Neighbourhood Services,Technical Services,Supplies and Services,304221,Equipment and Materials,04-Oct-2013,2649741-18702497,"1,101.46",AGGREGATE INDUSTRIES UK LTD.
Neighbourhood Services,Technical Services,Supplies and Services,304221,Equipment and Materials,04-Oct-2013,2649741-18702498,644.80,AGGREGATE INDUSTRIES UK LTD.
Neighbourhood Services,Technical Services,Supplies and Services,304221,Equipment and Materials,04-Oct-2013,2649741-18702499,608.48,AGGREGATE INDUSTRIES UK LTD.
Neighbourhood Services,Technical Services,Supplies and Services,304221,Equipment and Materials,04-Oct-2013,2649741-18708928,553.85,AGGREGATE INDUSTRIES UK LTD.
Neighbourhood Services,Technical Services,Supplies and Services,304221,Equipment and Materials,04-Oct-2013,2649741-18714903,549.60,AGGREGATE INDUSTRIES UK LTD.
Neighbourhood Services,Technical Services,Supplies and Services,304221,Equipment and Materials,04-Oct-2013,2649741-18714904,"2,704.77",AGGREGATE INDUSTRIES UK LTD.
Neighbourhood Services,Technical Services,Supplies and Services,304221,Equipment and Materials,04-Oct-2013,2649741-18721218,638.00,AGGREGATE INDUSTRIES UK LTD.
Neighbourhood Services,Technical Services,Supplies and Services,304221,Equipment and Materials,04-Oct-2013,2649741-18721220,775.70,AGGREGATE INDUSTRIES UK LTD.
Neighbourhood Services,Technical Services,Stock,926900,Stock in hand-Inventory system,04-Oct-2013,2649821-059-128935,"1,980.00",EDMUNDSON ELECTRICAL LTD.
Neighbourhood Services,Technical Services,Stock,926900,Stock in hand-Inventory system,04-Oct-2013,2649821-059-129207,"1,262.16",EDMUNDSON ELECTRICAL LTD.
Neighbourhood Services,Technical Services,Stock,926900,Stock in hand-Inventory system,04-Oct-2013,2649821-183-166083,"57,205.00",EDMUNDSON ELECTRICAL LTD.
Neighbourhood Services,Technical Services,Stock,926900,Stock in hand-Inventory system,04-Oct-2013,2649821-183-166735,"41,187.60",EDMUNDSON ELECTRICAL LTD.
Neighbourhood Services,Technical Services,Supplies and Services,304357,Equipment and Materials,04-Oct-2013,2649840-DCC220913,"8,462.67",GAP GROUP LTD.
Neighbourhood Services,Technical Services,Stock,926900,Stock in hand-Inventory system,04-Oct-2013,2649844-SINV-062499,"3,360.15",GELPACK EXCELSIOR LTD.
Neighbourhood Services,Technical Services,Supplies and Services,304358,Equipment and Materials,04-Oct-2013,2649845-9369,840.00,GEORGE VARDY HAULAGE.
Neighbourhood Services,Technical Services,Supplies and Services,304358,Equipment and Materials,04-Oct-2013,2649845-9378,910.00,GEORGE VARDY HAULAGE.
Neighbourhood Services,Technical Services,Supplies and Services,304358,Equipment and Materials,04-Oct-2013,2649845-9379,680.00,GEORGE VARDY HAULAGE.
Neighbourhood Services,Technical Services,Supplies and Services,304358,Equipment and Materials,04-Oct-2013,2649845-9381,720.50,GEORGE VARDY HAULAGE.
Neighbourhood Services,Technical Services,Supplies and Services,304358,Equipment and Materials,04-Oct-2013,2649874-04434,"1,238.55",JA GILSON (AGRICULTURAL CONTRACTORS) LTD.
Neighbourhood Services,Technical Services,Supplies and Services,304358,Equipment and Materials,04-Oct-2013,2649874-04444,"1,238.55",JA GILSON (AGRICULTURAL CONTRACTORS) LTD.
Neighbourhood Services,Technical Services,Supplies and Services,304221,Equipment and Materials,04-Oct-2013,2649880-00082895,"2,164.32",JOBLING PURSER LTD.
Neighbourhood Services,Technical Services,Supplies and Services,304221,Equipment and Materials,04-Oct-2013,2649880-00082898,"2,164.32",JOBLING PURSER LTD.
Neighbourhood Services,Technical Services,Stock,926900,Stock in hand-Inventory system,04-Oct-2013,2649881-NI023028,"14,345.10",JOHN MACLEAN & SONS ELECTRICAL (DINGWALL) LTD.
Neighbourhood Services,Technical Services,Supplies and Services,304358,Equipment and Materials,04-Oct-2013,2649883-14622,870.50,JOHN R BUTTERFIELD LTD.
Neighbourhood Services,Technical Services,Supplies and Services,304358,Equipment and Materials,04-Oct-2013,2649883-14669,"1,331.95",JOHN R BUTTERFIELD LTD.
Neighbourhood Services,Technical Services,Third Party Payments,430100,Rendered by Private Contractors,04-Oct-2013,2649890-796,"4,500.00",KEVIN SNOWDON GROUNDWORKS LTD.
Neighbourhood Services,Technical Services,Third Party Payments,430100,Rendered by Private Contractors,04-Oct-2013,2649890-797,"4,500.00",KEVIN SNOWDON GROUNDWORKS LTD.
Neighbourhood Services,Technical Services,Supplies and Services,304221,Equipment and Materials,04-Oct-2013,2649909-ZBB0505248,"1,913.05",MARSHALLS MONO LTD.
Neighbourhood Services,Technical Services,Third Party Payments,430100,Rendered by Private Contractors,04-Oct-2013,2649919-169,793.60,MICHAEL KELLY.
Neighbourhood Services,Technical Services,Third Party Payments,430100,Rendered by Private Contractors,04-Oct-2013,2649919-170,"1,024.00",MICHAEL KELLY.
Neighbourhood Services,Technical Services,Third Party Payments,430100,Rendered by Private Contractors,04-Oct-2013,2649940-NC8/C235/BW,"3,926.64",NEDCO CONTRACTS (NE) LTD.
Neighbourhood Services,Technical Services,Third Party Payments,460351,Contract Payments,04-Oct-2013,2649951-030527,557.32,NORTHERN DISPOSAL SERVICES LTD.
Neighbourhood Services,Technical Services,Third Party Payments,430100,Rendered by Private Contractors,04-Oct-2013,2649952-DI20170706,"3,974.62",NORTHERN POWERGRID (NORTHEAST) LTD.
Neighbourhood Services,Technical Services,Stock,926900,Stock in hand-Inventory system,04-Oct-2013,2649987-226006,"4,636.00",RITHERDON & CO LTD.
Neighbourhood Services,Technical Services,Supplies and Services,304358,Equipment and Materials,04-Oct-2013,2649996-0096,"1,918.00",S & R LANDSCAPES.
Neighbourhood Services,Technical Services,Stock,926900,Stock in hand-Inventory system,04-Oct-2013,2650007-182314,"2,640.00",SNAPFAST.
Neighbourhood Services,Technical Services,Stock,926900,Stock in hand-Inventory system,04-Oct-2013,2650011-SI13004843,559.80,SOLON SECURITY LTD.
Neighbourhood Services,Technical Services,Third Party Payments,430100,Rendered by Private Contractors,04-Oct-2013,2650014-12033352,845.38,SOUTH TYNESIDE COUNCIL.
Neighbourhood Services,Technical Services,Third Party Payments,430100,Rendered by Private Contractors,04-Oct-2013,2650014-12033353,"9,721.87",SOUTH TYNESIDE COUNCIL.
Neighbourhood Services,Technical Services,Stock,926900,Stock in hand-Inventory system,04-Oct-2013,2650028-46/763987,600.00,SUPPLY UK.
Neighbourhood Services,Technical Services,Stock,926900,Stock in hand-Inventory system,04-Oct-2013,2650045-53663,770.00,THORNE & DERRICK.
Neighbourhood Services,Technical Services,Stock,926900,Stock in hand-Inventory system,04-Oct-2013,2650054-INV019515,"6,167.40",URBIS LIGHTING LTD.
Neighbourhood Services,Technical Services,Stock,926900,Stock in hand-Inventory system,04-Oct-2013,2650062-84509284,967.10,WOLSELEY UK LTD.
Neighbourhood Services,Technical Services,Stock,926900,Stock in hand-Inventory system,04-Oct-2013,2650062-84509422,"1,043.62",WOLSELEY UK LTD.
Neighbourhood Services,Technical Services,Stock,926900,Stock in hand-Inventory system,04-Oct-2013,2650062-84509477,"1,055.16",WOLSELEY UK LTD.
Neighbourhood Services,Technical Services,Stock,926900,Stock in hand-Inventory system,04-Oct-2013,2650062-84572769,526.80,WOLSELEY UK LTD.
Neighbourhood Services,Technical Services,Stock,926900,Stock in hand-Inventory system,04-Oct-2013,2650062-84639311,"1,483.98",WOLSELEY UK LTD.
Neighbourhood Services,Technical Services,Supplies and Services,304358,Equipment and Materials,04-Oct-2013,2650066-3479,917.75,YOULL CONSTRUCTION LTD.
Neighbourhood Services,Technical Services,Creditors,952029,Creditor-returnable bonds,04-Oct-2013,2650068-BOND,"1,000.00",YUILL HOMES LTD.
RED HRA,Housing Revenue Account,Premises,105003,HRA Repair & Maintenance,04-Oct-2013,2649924-179295,"8,734.00",MITIE PROPERTY SERVICES (UK) LTD.
RED HRA,Housing Revenue Account,Supplies and Services,338027,Services,04-Oct-2013,2649961-1422,"3,488.31",OPEN COMMUNITIES LTD.
RED HRA,HRA Capital,Construction Work,908105,Construction work,04-Oct-2013,2649739-13001,"1,515.00",ACREBROAD LTD T/A DOBERMANS FLOORING.
RED HRA,HRA Capital,Construction Work,908105,Construction work,04-Oct-2013,2649739-13003,"1,515.00",ACREBROAD LTD T/A DOBERMANS FLOORING.
RED HRA,HRA Capital,Construction Work,908105,Construction work,04-Oct-2013,2649807-179967,"1,462.38",DELTA ELECTRICAL & MECHANICAL SERVICES.
RED HRA,HRA Capital,Construction Work,908105,Construction work,04-Oct-2013,2649807-179970,"1,018.94",DELTA ELECTRICAL & MECHANICAL SERVICES.
RED HRA,HRA Capital,Construction Work,908105,Construction work,04-Oct-2013,2649922-CON66410,700.00,MIS ENVIRONMENTAL LTD.
RED HRA,HRA Capital,Construction Work,908105,Construction work,04-Oct-2013,2649922-CON66483,932.00,MIS ENVIRONMENTAL LTD.
RED HRA,HRA Capital,Construction Work,908105,Construction work,04-Oct-2013,2649942-7780,581.00,NELSONS OF DURHAM.
RED HRA,HRA Capital,Construction Work,908105,Construction work,04-Oct-2013,2650026-179298,"8,991.00",SUNTER LTD.
RED HRA,HRA Capital,Construction Work,908105,Construction work,04-Oct-2013,2650026-179964,"1,498.50",SUNTER LTD.
RED HRA,HRA Capital,Construction Work,908105,Construction work,04-Oct-2013,2650026-179965,"7,492.50",SUNTER LTD.
RED HRA,HRA Capital,Construction Work,908105,Construction work,04-Oct-2013,2650069-29169,"9,582.57",YWC GROUP LTD.
Regeneration & Economic Development,Economic Development and Housing,Supplies and Services,384700,Miscellaneous Expenses,04-Oct-2013,2649735,"1,250.60",A HEDLEY ( MOTOR ENGINEERS) LTD.
Regeneration & Economic Development,Economic Development and Housing,Supplies and Services,384199,Miscellaneous Expenses,04-Oct-2013,2649755-1275,593.00,AUTO ITEMS LTD.
Regeneration & Economic Development,Economic Development and Housing,Construction Work,908105,Construction work,04-Oct-2013,2649836,"19,500.00",FRANK HASLAM MILAN & CO LTD.
Regeneration & Economic Development,Economic Development and Housing,Supplies and Services,384700,Miscellaneous Expenses,04-Oct-2013,2649860,"1,425.60",HEDLEY SOLUTIONS LTD.
Regeneration & Economic Development,Economic Development and Housing,Other Expenses,914001,Other capital expenses,04-Oct-2013,2649902,"8,000.00",LIVIN HOUSING LTD.
Regeneration & Economic Development,Economic Development and Housing,Premises,120009,Energy Costs,04-Oct-2013,2649955-NNO7G9XM,582.13,NPOWER.
Regeneration & Economic Development,Economic Development and Housing,Premises,120009,Energy Costs,04-Oct-2013,2649955-NNO7G9XS,766.61,NPOWER.
Regeneration & Economic Development,Economic Development and Housing,Supplies and Services,338078,Services,04-Oct-2013,2649982-3650,"4,660.49",QW SECURITY LTD.
Regeneration & Economic Development,Economic Development and Housing,Cap Exp on Grants & Other Financial Assistance (REFCUS),918401,Capital grants,04-Oct-2013,2649994-86,"14,036.75",ROYCE CARSON BUILDING SERVICES.
Regeneration & Economic Development,Economic Development and Housing,Supplies and Services,384700,Miscellaneous Expenses,04-Oct-2013,2650004,"2,851.19",SH PROPERTIES.
Regeneration & Economic Development,Economic Development and Housing,Supplies and Services,384899,Miscellaneous Expenses,04-Oct-2013,2650005,"1,000.00",SIMON BERRY OPTICIANS.
Regeneration & Economic Development,Economic Development and Housing,Supplies and Services,384899,Miscellaneous Expenses,04-Oct-2013,2650030,"2,000.00",SWEETHARTS COFFEE & CAKES
Regeneration & Economic Development,Economic Development and Housing,Supplies and Services,338002,Services,04-Oct-2013,2650055-4100389940,"2,000.00",VANTAGE ARCHITECTS LTD.
Regeneration & Economic Development,"Spatial Policy, Planning, Assets & Environment",Third Party Payments,430100,Rendered by Private Contractors,04-Oct-2013,2649734-6135,"2,973.40",A & J GUTHRIE.
Regeneration & Economic Development,"Spatial Policy, Planning, Assets & Environment",Premises,106099,Centrally Controlled Rep and Maint,04-Oct-2013,2649869-115936,650.00,HUTCHINSON ENVIRONMENTAL SOLUTIONS LTD.
Regeneration & Economic Development,Transport and Contracted Services,Third Party Payments,430106,Rendered by Private Contractors,04-Oct-2013,2649750-105650-30/8/13,"108,976.86",ARRIVA NORTH EAST LTD.
Regeneration & Economic Development,Transport and Contracted Services,Third Party Payments,430106,Rendered by Private Contractors,04-Oct-2013,2649784-116M-F,855.00,CENTRAL COACHES.
Regeneration & Economic Development,Transport and Contracted Services,Third Party Payments,430106,Rendered by Private Contractors,04-Oct-2013,2649811-0492,"6,557.60",DUNN MOTOR TRACTION LTD T/A YOUR BUS.
Regeneration & Economic Development,Transport and Contracted Services,Third Party Payments,430106,Rendered by Private Contractors,04-Oct-2013,2649811-0493,"6,048.10",DUNN MOTOR TRACTION LTD T/A YOUR BUS.
Regeneration & Economic Development,Transport and Contracted Services,Third Party Payments,430106,Rendered by Private Contractors,04-Oct-2013,2649852-138V,"2,405.50",GRAHAMS MOTOR SERVICES.
Regeneration & Economic Development,Transport and Contracted Services,Third Party Payments,430106,Rendered by Private Contractors,04-Oct-2013,2649852-139V,"3,210.50",GRAHAMS MOTOR SERVICES.
Regeneration & Economic Development,Transport and Contracted Services,Third Party Payments,430106,Rendered by Private Contractors,04-Oct-2013,2649852-141V,"1,440.00",GRAHAMS MOTOR SERVICES.
Regeneration & Economic Development,Transport and Contracted Services,Third Party Payments,430106,Rendered by Private Contractors,04-Oct-2013,2649885-LINK2INV44,"3,162.18",JOVIAL PRIVATE HIRE.
Regeneration & Economic Development,Transport and Contracted Services,Supplies and Services,304999,Equipment and Materials,04-Oct-2013,2649889-36205,659.00,KBR IT & NETWORKING SOLUTIONS.
Regeneration & Economic Development,Transport and Contracted Services,Third Party Payments,430106,Rendered by Private Contractors,04-Oct-2013,2649905-1114,"5,799.61",LP TRAVEL LTD.
Regeneration & Economic Development,Transport and Contracted Services,Third Party Payments,430108,Rendered by Private Contractors,04-Oct-2013,2649944-1800006629585,"15,128.38",NEWCASTLE UPON TYNE CITY COUNCIL.
Regeneration & Economic Development,Transport and Contracted Services,Third Party Payments,430106,Rendered by Private Contractors,04-Oct-2013,2650000-1641,"76,109.44",SCARLET BAND MOTOR SERVICES.
Regeneration & Economic Development,Transport and Contracted Services,Supplies and Services,336005,Advertising,04-Oct-2013,2650025-172751,"25,000.00",STAR RADIO.
Regeneration & Economic Development,Transport and Contracted Services,Supplies and Services,304259,Equipment and Materials,04-Oct-2013,2650053-3IN/10228802,"1,873.50",TUNSTALL HEALTHCARE (UK) LTD.
Regeneration & Economic Development,Transport and Contracted Services,Supplies and Services,304245,Equipment and Materials,04-Oct-2013,2650053-3IN/10228894,750.00,TUNSTALL HEALTHCARE (UK) LTD.
Assistant Chief Executive,Partnerships & Community Engagement Div.,Supplies and Services,384085,Miscellaneous Expenses,07-Oct-2013,2650249,"2,000.00",GREATER WILLINGTON TOWN COUNCIL.
Assistant Chief Executive,Partnerships & Community Engagement Div.,Supplies and Services,384085,Miscellaneous Expenses,07-Oct-2013,2650475,"1,000.00",SOUTH MOOR GARDEN ASSOCIATION.
Assistant Chief Executive,Partnerships & Community Engagement Div.,Supplies and Services,384086,Miscellaneous Expenses,07-Oct-2013,2650476,"3,900.00",SOUTH MOOR MUSICAL THEATRE GROUP.
Assistant Chief Executive,Partnerships & Community Engagement Div.,Transfer Payments,525030,Other,07-Oct-2013,2650514,"5,000.00",THE WITHAM.
Children and Adult Services,CYPS - Local Authority,Supplies and Services,384199,Miscellaneous Expenses,07-Oct-2013,2650150,869.13,CHESTER LE STREET YOUTH CENTRE.
Children and Adult Services,CYPS - Local Authority,Transport,230005,Contract Hire,07-Oct-2013,2650179-4100,"1,904.25",CROFT BUSINESS SERVICES (UK) LTD T/A CROFT TAXIS.
Children and Adult Services,CYPS - Local Authority,Transport,230005,Contract Hire,07-Oct-2013,2650179-4110,"1,413.78",CROFT BUSINESS SERVICES (UK) LTD T/A CROFT TAXIS.
Children and Adult Services,CYPS - Local Authority,Transport,230005,Contract Hire,07-Oct-2013,2650179-4111,"1,729.83",CROFT BUSINESS SERVICES (UK) LTD T/A CROFT TAXIS.
Children and Adult Services,CYPS - Local Authority,Transport,230005,Contract Hire,07-Oct-2013,2650179-4121,"8,276.77",CROFT BUSINESS SERVICES (UK) LTD T/A CROFT TAXIS.
Children and Adult Services,CYPS - Local Authority,Transport,230005,Contract Hire,07-Oct-2013,2650179-4184,"2,215.46",CROFT BUSINESS SERVICES (UK) LTD T/A CROFT TAXIS.
Children and Adult Services,CYPS - Local Authority,Transport,230005,Contract Hire,07-Oct-2013,2650179-4219,"1,666.17",CROFT BUSINESS SERVICES (UK) LTD T/A CROFT TAXIS.
Children and Adult Services,CYPS - Local Authority,Supplies and Services,364352,Grants to Voluntary Organisations,07-Oct-2013,2650505-037/SR/2013,650.12,FABRICK HOUSING GROUP LTD.
Children and Adult Services,CYPS - Local Authority,Transport,230007,Contract Hire,07-Oct-2013,2650277-602-30/9/13,760.00,J YOUNG T/A VIP TAXIS.
Children and Adult Services,CYPS - Local Authority,Transport,230007,Contract Hire,07-Oct-2013,2650277-603-30/9/13,"1,254.00",J YOUNG T/A VIP TAXIS.
Children and Adult Services,CYPS - Local Authority,Premises,108301,Service Repairs and Maintenance,07-Oct-2013,2650294,"1,950.00",KING JAMES I ACADEMY.
Children and Adult Services,CYPS - Local Authority,Transport,230007,Contract Hire,07-Oct-2013,2650303-010,"1,057.00",LEE WILSON T/A WILSON`S TAXIS.
Children and Adult Services,CYPS - Local Authority,Transport,230007,Contract Hire,07-Oct-2013,2650308-2865,656.00,LINCAB TAXIS.
Children and Adult Services,CYPS - Local Authority,Third Party Payments,440999,Other Third Party Payments,07-Oct-2013,2650464,848.00,REDACTED - PAYMENT TO INDIVIDUAL
Children and Adult Services,CYPS - Local Authority,Transport,230008,Contract Hire,07-Oct-2013,2650494-B624,"1,112.00",TALBOTS TRAVEL LTD.
Children and Adult Services,CYPS - Local Authority,Transport,230006,Contract Hire,07-Oct-2013,2650546-4346-30/9/13,"1,518.72",WEARDALE PRIVATE HIRE.
Children and Adult Services,CYPS - Local Authority,Transport,230007,Contract Hire,07-Oct-2013,2650546-4359,608.00,WEARDALE PRIVATE HIRE.
Children and Adult Services,CYPS - Local Authority,Premises,125009,Rents,07-Oct-2013,2650549-258104,612.00,WHITTLE JONES (GROUP) LTD.
Children and Adult Services,Head of Adults,Transport,230007,Contract Hire,07-Oct-2013,2650456-CLS041AUG13,"1,050.00",SCOTT TAYLOR T/A ABA LOCAL TAXIS.
Children and Adult Services,Public Health,Transport,235057,Public Transport,07-Oct-2013,2650157-389263,"4,034.91",CLICK TRAVEL LTD.
Children and Adult Services,Public Health,Third Party Payments,460803,Contract Payments,07-Oct-2013,2650322,840.16,M WHITFIELD LTD.
Corporate Resources,ICT Services incl. Design and Print,Supplies and Services,342051,Computers and Communications,07-Oct-2013,2650074-6309,982.30,ABTECH COMPUTER SYSTEMS LTD.
Corporate Resources,ICT Services incl. Design and Print,Supplies and Services,304639,Equipment and Materials,07-Oct-2013,2650084-40733,620.00,AL DALTON LTD.
Corporate Resources,ICT Services incl. Design and Print,Supplies and Services,372009,Subscriptions,07-Oct-2013,2650153-3086519,"2,325.00",CIPFA LTD.
Corporate Resources,ICT Services incl. Design and Print,Supplies and Services,304303,Equipment and Materials,07-Oct-2013,2650255-INV0151020,"9,584.00",GV MULTI MEDIA LTD.
Corporate Resources,ICT Services incl. Design and Print,Stock,926900,Stock in hand-Inventory system,07-Oct-2013,2650255-INV0151138,"1,836.00",GV MULTI MEDIA LTD.
Corporate Resources,ICT Services incl. Design and Print,Supplies and Services,304639,Equipment and Materials,07-Oct-2013,2650275-1460697,674.22,INSIGHT DIRECT (UK) LTD.
Corporate Resources,ICT Services incl. Design and Print,Stock,926900,Stock in hand-Inventory system,07-Oct-2013,2650275-1492814,"2,529.74",INSIGHT DIRECT (UK) LTD.
Corporate Resources,ICT Services incl. Design and Print,Supplies and Services,342033,Computers and Communications,07-Oct-2013,2650439-DE3235904,"2,015.50",RM EDUCATION PLC.
Corporate Resources,ICT Services incl. Design and Print,Supplies and Services,342033,Computers and Communications,07-Oct-2013,2650439-DE3241430,"2,115.50",RM EDUCATION PLC.
Corporate Resources,Legal & Democratic Services,Supplies and Services,338057,Services,07-Oct-2013,2650203-04-SM-2013,"1,936.00",DR SREE MUSSUNOOR.
Corporate Resources,Legal & Democratic Services,Supplies and Services,338057,Services,07-Oct-2013,2650384-3249,749.00,NORTHGENE LTD.
Corporate Resources,Legal & Democratic Services,Supplies and Services,338025,Services,07-Oct-2013,2650457-1440,"1,100.00",SEATON LENG & SON LTD.
Dedicated Schools Grant,Dedicated Schools Grant,Transport,230010,Contract Hire,07-Oct-2013,2650277-601-30/9/13,720.00,J YOUNG T/A VIP TAXIS.
Neighbourhood Services,Culture & Sport,Supplies and Services,324500,Provisions,07-Oct-2013,2650083-10974,843.75,AJ`S CATERING LTD.
Neighbourhood Services,Culture & Sport,Supplies and Services,338047,Services,07-Oct-2013,2650085-SMC130818A,"3,000.00",ALAN BEARMAN MUSIC.
Neighbourhood Services,Culture & Sport,Supplies and Services,304259,Equipment and Materials,07-Oct-2013,2650187-13/09-226,500.00,DAMASCUS ROAD GROUP.
Neighbourhood Services,Culture & Sport,Supplies and Services,338047,Services,07-Oct-2013,2650256-383,750.00,HALF MOON YOUNG PEOPLE`S THEATRE LTD.
Neighbourhood Services,Culture & Sport,Supplies and Services,338047,Services,07-Oct-2013,2650289-130037,500.00,K SWAIN.
Neighbourhood Services,Culture & Sport,Supplies and Services,338047,Services,07-Oct-2013,2650342-INV-4783,"1,574.35",MORE2SCREEN LTD.
Neighbourhood Services,Culture & Sport,Supplies and Services,338047,Services,07-Oct-2013,2650438-201173,"1,124.39",RIVIERA ENTERTAINMENTS LTD.
Neighbourhood Services,Direct Services,Supplies and Services,324117,Provisions,07-Oct-2013,2650123-33685686,540.01,BRAKE BROS FOODSERVICE LTD.
Neighbourhood Services,Direct Services,Supplies and Services,324117,Provisions,07-Oct-2013,2650123-33712162,645.95,BRAKE BROS FOODSERVICE LTD.
Neighbourhood Services,Direct Services,Supplies and Services,304221,Equipment and Materials,07-Oct-2013,2650127-1650/0489010,548.44,BSS GROUP PLC.
Neighbourhood Services,Direct Services,Stock,926004,Stock,07-Oct-2013,2650144-121996,"2,261.40",CERTAS ENERGY UK LTD.
Neighbourhood Services,Direct Services,Transport,210057,Repair and Maintenance of Vehicles,07-Oct-2013,2650199-DE10736601,"1,185.65",DENNIS EAGLE LTD.
Neighbourhood Services,Direct Services,Transport,210057,Repair and Maintenance of Vehicles,07-Oct-2013,2650199-DE10736928,"1,079.03",DENNIS EAGLE LTD.
Neighbourhood Services,Direct Services,Stock,926004,Stock,07-Oct-2013,2650211-S182269,519.73,ECON ENGINEERING LTD.
Neighbourhood Services,Direct Services,Third Party Payments,430100,Rendered by Private Contractors,07-Oct-2013,2650224-13836,"1,675.00",F WARREN (ELECTRICAL) LTD.
Neighbourhood Services,Direct Services,Transport,210057,Repair and Maintenance of Vehicles,07-Oct-2013,2650228-IN098670,658.20,FM STEELSTOCK LTD.
Neighbourhood Services,Direct Services,Stock,926004,Stock,07-Oct-2013,2650234-216177644,"1,747.00",FUCHS LUBRICANTS (UK) PLC.
Neighbourhood Services,Direct Services,Stock,926004,Stock,07-Oct-2013,2650237-12703,"1,395.24",GATESHEAD BEARINGS LTD.
Neighbourhood Services,Direct Services,Supplies and Services,304221,Equipment and Materials,07-Oct-2013,2650270-B33/0058791,666.53,HOWDENS JOINERY LTD.
Neighbourhood Services,Direct Services,Third Party Payments,430100,Rendered by Private Contractors,07-Oct-2013,2650316-1186,532.00,LMC ELECTRICAL SERVICES T/A LMC ELECTRICAL & STAIRLIFT SERVICES LTD.
Neighbourhood Services,Direct Services,Third Party Payments,430100,Rendered by Private Contractors,07-Oct-2013,2650316-1215,"1,463.00",LMC ELECTRICAL SERVICES T/A LMC ELECTRICAL & STAIRLIFT SERVICES LTD.
Neighbourhood Services,Direct Services,Transport,210057,Repair and Maintenance of Vehicles,07-Oct-2013,2650375-21674456,572.67,NORTH EAST TRUCK & VAN LTD.
Neighbourhood Services,Direct Services,Supplies and Services,304259,Equipment and Materials,07-Oct-2013,2650402-0000062732,"17,418.17",PEART FENCING LTD.
Neighbourhood Services,Direct Services,Supplies and Services,304221,Equipment and Materials,07-Oct-2013,2650409-178618,"3,079.93",PLUMBING TRADE SUPPLIES LTD.
Neighbourhood Services,Direct Services,Premises,145009,Cleaning and Domestic Supplies,07-Oct-2013,2650416-419933,639.20,PREMIER WASTE RECYCLING LTD.
Neighbourhood Services,Direct Services,Third Party Payments,430100,Rendered by Private Contractors,07-Oct-2013,2650432-784699,514.72,RICKERBY LTD.
Neighbourhood Services,Direct Services,Premises,106099,Centrally Controlled Rep and Maint,07-Oct-2013,2650447-849,"2,237.60",SAFE STRIP UK LTD.
Neighbourhood Services,Direct Services,Supplies and Services,304221,Equipment and Materials,07-Oct-2013,2650493-0880329,605.50,T CROSSLING & CO LTD.
Neighbourhood Services,Direct Services,Stock,926004,Stock,07-Oct-2013,2650507-4028124,"1,020.00",TENNANTS DISTRIBUTION LTD.
Neighbourhood Services,Direct Services,Third Party Payments,430100,Rendered by Private Contractors,07-Oct-2013,2650508-96287356,572.69,TERBERG MATEC (UK) LTD.
Neighbourhood Services,Direct Services,Transport,210057,Repair and Maintenance of Vehicles,07-Oct-2013,2650508-96287541,641.98,TERBERG MATEC (UK) LTD.
Neighbourhood Services,"Environment,Health & Consumer Protection",Transport,235057,Public Transport,07-Oct-2013,2650157-387065,"2,683.98",CLICK TRAVEL LTD.
Neighbourhood Services,"Environment,Health & Consumer Protection",Supplies and Services,384199,Miscellaneous Expenses,07-Oct-2013,2650164,820.00,COLIN JOBLING T/A RAINBOW INTERNATIONAL.
Neighbourhood Services,Projects and Business services,Third Party Payments,430100,Rendered by Private Contractors,07-Oct-2013,2650086-HL144954,521.21,ALCONTROL LABORATORIES.
Neighbourhood Services,Technical Services,Supplies and Services,304221,Equipment and Materials,07-Oct-2013,2650070-9029971628,"1,600.00",(WAS TARMAC LTD) LAFARGE AGGREGATES LTD.
Neighbourhood Services,Technical Services,Supplies and Services,304221,Equipment and Materials,07-Oct-2013,2650070-9029995349,891.88,(WAS TARMAC LTD) LAFARGE AGGREGATES LTD.
Neighbourhood Services,Technical Services,Supplies and Services,304221,Equipment and Materials,07-Oct-2013,2650070-9030104950,609.51,(WAS TARMAC LTD) LAFARGE AGGREGATES LTD.
Neighbourhood Services,Technical Services,Supplies and Services,304221,Equipment and Materials,07-Oct-2013,2650070-9030104952,626.00,(WAS TARMAC LTD) LAFARGE AGGREGATES LTD.
Neighbourhood Services,Technical Services,Supplies and Services,304221,Equipment and Materials,07-Oct-2013,2650070-9030104958,626.00,(WAS TARMAC LTD) LAFARGE AGGREGATES LTD.
Neighbourhood Services,Technical Services,Supplies and Services,304221,Equipment and Materials,07-Oct-2013,2650080-18661274,740.40,AGGREGATE INDUSTRIES UK LTD.
Neighbourhood Services,Technical Services,Third Party Payments,460053,Contract Payments,07-Oct-2013,2650172-9746,"3,724.01",COUPE LINE LTD.
Neighbourhood Services,Technical Services,Third Party Payments,430100,Rendered by Private Contractors,07-Oct-2013,2650292-794,"4,500.00",KEVIN SNOWDON GROUNDWORKS LTD.
Neighbourhood Services,Technical Services,Third Party Payments,430100,Rendered by Private Contractors,07-Oct-2013,2650292-801,"4,500.00",KEVIN SNOWDON GROUNDWORKS LTD.
Neighbourhood Services,Technical Services,Third Party Payments,450001,Environment Related,07-Oct-2013,2650379-DI20173055,"27,117.62",NORTHERN POWERGRID (NORTHEAST) LTD.
Neighbourhood Services,Technical Services,Stock,926900,Stock in hand-Inventory system,07-Oct-2013,2650394-XL095913,"1,771.80",PARK ELECTRICAL DISTRIBUTORS LTD.
Neighbourhood Services,Technical Services,Stock,926900,Stock in hand-Inventory system,07-Oct-2013,2650394-XL095934,"1,739.48",PARK ELECTRICAL DISTRIBUTORS LTD.
Neighbourhood Services,Technical Services,Stock,926900,Stock in hand-Inventory system,07-Oct-2013,2650394-XL096359,"2,662.86",PARK ELECTRICAL DISTRIBUTORS LTD.
Neighbourhood Services,Technical Services,Stock,926900,Stock in hand-Inventory system,07-Oct-2013,2650400-4044217,"3,205.96",PDT SEALING SYSTEMS LTD.
Neighbourhood Services,Technical Services,Third Party Payments,430100,Rendered by Private Contractors,07-Oct-2013,2650415-125815,"12,112.83",PREMIER TRAFFIC MANAGEMENT LTD.
Neighbourhood Services,Technical Services,Stock,926900,Stock in hand-Inventory system,07-Oct-2013,2650493-0879694,775.62,T CROSSLING & CO LTD.
Neighbourhood Services,Technical Services,Stock,926900,Stock in hand-Inventory system,07-Oct-2013,2650493-0884268,920.00,T CROSSLING & CO LTD.
Neighbourhood Services,Technical Services,Stock,926900,Stock in hand-Inventory system,07-Oct-2013,2650493-0884462,644.87,T CROSSLING & CO LTD.
RED HRA,HRA Capital,Construction Work,908105,Construction work,07-Oct-2013,2650175-01/15,"1,014.83",CRAIGARRAN CARE HOME WITH NURSING.
RED HRA,HRA Capital,Construction Work,908105,Construction work,07-Oct-2013,2650197-178038,711.58,DELTA ELECTRICAL & MECHANICAL SERVICES.
RED HRA,HRA Capital,Construction Work,908105,Construction work,07-Oct-2013,2650197-178041,"7,548.79",DELTA ELECTRICAL & MECHANICAL SERVICES.
RED HRA,HRA Capital,Construction Work,908105,Construction work,07-Oct-2013,2650197-178042,"1,634.86",DELTA ELECTRICAL & MECHANICAL SERVICES.
RED HRA,HRA Capital,Construction Work,908105,Construction work,07-Oct-2013,2650197-179289,854.47,DELTA ELECTRICAL & MECHANICAL SERVICES.
RED HRA,HRA Capital,Construction Work,908105,Construction work,07-Oct-2013,2650197-179290,"2,468.46",DELTA ELECTRICAL & MECHANICAL SERVICES.
RED HRA,HRA Capital,Construction Work,908105,Construction work,07-Oct-2013,2650197-179291,"31,637.68",DELTA ELECTRICAL & MECHANICAL SERVICES.
RED HRA,HRA Capital,Construction Work,908105,Construction work,07-Oct-2013,2650197-179292,"2,696.61",DELTA ELECTRICAL & MECHANICAL SERVICES.
RED HRA,HRA Capital,Construction Work,908105,Construction work,07-Oct-2013,2650197-179294,"6,251.88",DELTA ELECTRICAL & MECHANICAL SERVICES.
RED HRA,HRA Capital,Construction Work,908105,Construction work,07-Oct-2013,2650197-179966,"1,322.52",DELTA ELECTRICAL & MECHANICAL SERVICES.
RED HRA,HRA Capital,Construction Work,908105,Construction work,07-Oct-2013,2650197-179968,"1,399.55",DELTA ELECTRICAL & MECHANICAL SERVICES.
RED HRA,HRA Capital,Construction Work,908105,Construction work,07-Oct-2013,2650197-179972,"1,027.28",DELTA ELECTRICAL & MECHANICAL SERVICES.
RED HRA,HRA Capital,Construction Work,908105,Construction work,07-Oct-2013,2650197-179973,"28,417.63",DELTA ELECTRICAL & MECHANICAL SERVICES.
RED HRA,HRA Capital,Construction Work,908105,Construction work,07-Oct-2013,2650197-179975,"3,702.69",DELTA ELECTRICAL & MECHANICAL SERVICES.
RED HRA,HRA Capital,Construction Work,908105,Construction work,07-Oct-2013,2650197-179976,"4,096.16",DELTA ELECTRICAL & MECHANICAL SERVICES.
RED HRA,HRA Capital,Construction Work,908105,Construction work,07-Oct-2013,2650197-179977,"1,725.62",DELTA ELECTRICAL & MECHANICAL SERVICES.
RED HRA,HRA Capital,Construction Work,908105,Construction work,07-Oct-2013,2650197-179978,"7,234.39",DELTA ELECTRICAL & MECHANICAL SERVICES.
RED HRA,HRA Capital,Construction Work,908105,Construction work,07-Oct-2013,2650197-179979,"3,451.24",DELTA ELECTRICAL & MECHANICAL SERVICES.
RED HRA,HRA Capital,Construction Work,908105,Construction work,07-Oct-2013,2650213-178039,"1,290.04",EDMUNDSON ELECTRICAL LTD.
RED HRA,HRA Capital,Other Expenses,914006,Tenants Allowances,07-Oct-2013,2650231-6/342191,"5,083.20",FRED WILLIAMSON & SONS LTD.
RED HRA,HRA Capital,Construction Work,908105,Construction work,07-Oct-2013,2650410-179284,"33,276.11",PLUMBING TRADE SUPPLIES LTD.
Regeneration & Economic Development,Economic Development and Housing,Fees,901002,Professional fees,07-Oct-2013,2650099-13025331,"11,350.50",ATKINS LTD.
Regeneration & Economic Development,Economic Development and Housing,Other Expenses,914001,Other capital expenses,07-Oct-2013,2650128-SD000070481,"23,977.50",BUILDING DESIGN PARTNERSHIP LTD.
Regeneration & Economic Development,Economic Development and Housing,Supplies and Services,384999,Miscellaneous Expenses,07-Oct-2013,2650145-RGEI00000326,619.65,CESTRIA HOUSING.
Regeneration & Economic Development,Economic Development and Housing,Fees,901002,Professional fees,07-Oct-2013,2650264-HR31763,"1,000.00",HENRY RILEY T/A RILEY CONSULTING.
Regeneration & Economic Development,Economic Development and Housing,Cap Exp on Grants & Other Financial Assistance (REFCUS),918401,Capital grants,07-Oct-2013,2650290-DFG167/13,"8,271.93",KASON CONSTRUCTION LTD.
Regeneration & Economic Development,Economic Development and Housing,Cap Exp on Grants & Other Financial Assistance (REFCUS),918401,Capital grants,07-Oct-2013,2650364-DFG125/13,"8,215.00",NEW AGE PLUMBING & HEATING SERVICES.
Regeneration & Economic Development,Economic Development and Housing,Fees,901001,Internal fees,07-Oct-2013,2650517-SITRH/0005686,845.45,THREE RIVERS HOUSING ASSOCIATION LTD.
Regeneration & Economic Development,"Spatial Policy, Planning, Assets & Environment",Supplies and Services,336005,Advertising,07-Oct-2013,2650506-99397,857.50,TEESDALE MERCURY LTD.
Regeneration & Economic Development,Transport and Contracted Services,Third Party Payments,430100,Rendered by Private Contractors,07-Oct-2013,2650096,"701,148.76",ARRIVA DURHAM COUNTY LTD.
Regeneration & Economic Development,Transport and Contracted Services,"Vehicles, Equipment, Furniture and Fittings",912529,Purchase-equipment,07-Oct-2013,2650104-19882,"7,255.00",BAYDALE CONTROL SYSTEMS LTD.
Regeneration & Economic Development,Transport and Contracted Services,Third Party Payments,430100,Rendered by Private Contractors,07-Oct-2013,2650143,"2,980.22",CENTRAL COACHES.
Regeneration & Economic Development,Transport and Contracted Services,Third Party Payments,430100,Rendered by Private Contractors,07-Oct-2013,2650247,"797,329.34",GO NORTH EAST LTD.
Regeneration & Economic Development,Transport and Contracted Services,Third Party Payments,430100,Rendered by Private Contractors,07-Oct-2013,2650248,"1,000.04",GRAHAMS MOTOR SERVICES.
Regeneration & Economic Development,Transport and Contracted Services,Third Party Payments,430100,Rendered by Private Contractors,07-Oct-2013,2650268,"1,032.42",HODGSONS COACH OPERATORS LTD.
Regeneration & Economic Development,Transport and Contracted Services,Third Party Payments,430100,Rendered by Private Contractors,07-Oct-2013,2650380,"5,406.43",NORTHERN RAIL LTD.
Regeneration & Economic Development,Transport and Contracted Services,Third Party Payments,430100,Rendered by Private Contractors,07-Oct-2013,2650422,"2,765.68",PYGALL COACH HIRE.
Regeneration & Economic Development,Transport and Contracted Services,Third Party Payments,430100,Rendered by Private Contractors,07-Oct-2013,2650449,"13,595.95",SB TRAVEL.
Regeneration & Economic Development,Transport and Contracted Services,Third Party Payments,430100,Rendered by Private Contractors,07-Oct-2013,2650450,"22,979.14",SCARLET BAND MOTOR SERVICES.
Regeneration & Economic Development,Transport and Contracted Services,Third Party Payments,430100,Rendered by Private Contractors,07-Oct-2013,2650486,"4,293.21",STANLEY TRAVEL (NORTH EAST) LTD.
Regeneration & Economic Development,Transport and Contracted Services,Third Party Payments,430100,Rendered by Private Contractors,07-Oct-2013,2650545-INS4,"1,676.13",WEARDALE MOTOR SERVICES LTD.
Regeneration & Economic Development,Transport and Contracted Services,Third Party Payments,430100,Rendered by Private Contractors,07-Oct-2013,2650545-INS4EX21,"21,347.69",WEARDALE MOTOR SERVICES LTD.
Assistant Chief Executive,Partnerships & Community Engagement Div.,Transfer Payments,525030,Other,08-Oct-2013,2651266,960.00,EASTGATE CHRISTMAS LIGHTS.
Assistant Chief Executive,Partnerships & Community Engagement Div.,Supplies and Services,384086,Miscellaneous Expenses,08-Oct-2013,2651401,"2,500.00",STANLEY YOUTH CENTRE.
Children and Adult Services,Commissioning inc Supporting People,Supplies and Services,304516,Equipment and Materials,08-Oct-2013,2651191-25715,598.00,BACK CARE SOLUTIONS LTD.
Children and Adult Services,CYPS - Local Authority,Supplies and Services,384199,Miscellaneous Expenses,08-Oct-2013,2651217-INC001659,"4,780.00",CFBT EDUCATIONAL TRUST.
Children and Adult Services,CYPS - Local Authority,Third Party Payments,479101,Purchase of Care,08-Oct-2013,2651227-3910001445,505.71,CO DURHAM & DARLINGTON NHS FOUNDATION TRUST.
Children and Adult Services,CYPS - Local Authority,Supplies and Services,384199,Miscellaneous Expenses,08-Oct-2013,2651259-DCB2013-053,"1,000.00",DURHAM CRICKET BOARD LTD.
Children and Adult Services,CYPS - Local Authority,Supplies and Services,384302,Miscellaneous Expenses,08-Oct-2013,2651276-26718,900.00,EXECUTIVE COACH & CATERING SERVICES.
Children and Adult Services,CYPS - Local Authority,Premises,125009,Rents,08-Oct-2013,2651293-GH3427,"1,010.59",GROUNDWORK NORTH EAST.
Children and Adult Services,CYPS - Local Authority,Supplies and Services,338040,Services,08-Oct-2013,2651302,"4,200.00",HMCTS.
Children and Adult Services,CYPS - Local Authority,Supplies and Services,340001,Postages,08-Oct-2013,2651352,500.00,NEOPOST LTD CREDIFON RCB ACCOUNT.
Children and Adult Services,CYPS - Local Authority,Supplies and Services,364999,Grants to Voluntary Organisations,08-Oct-2013,2651355,"1,720.00",NORTH DURHAM AREA YOUTH & COMMUNITY COMMITTEE.
Children and Adult Services,CYPS - Local Authority,Supplies and Services,338027,Services,08-Oct-2013,2651371-286,"16,767.00",PEOPLETOO LTD.
Children and Adult Services,CYPS - Local Authority,Third Party Payments,440001,Other Third Party Payments,08-Oct-2013,2650701-903742,652.82,REDACTED - PAYMENT TO INDIVIDUAL
Children and Adult Services,CYPS - Local Authority,Third Party Payments,440005,Other Third Party Payments,08-Oct-2013,2650704-904600,"1,551.76",REDACTED - PAYMENT TO INDIVIDUAL
Children and Adult Services,CYPS - Local Authority,Third Party Payments,440005,Other Third Party Payments,08-Oct-2013,2650704-904601,"1,451.22",REDACTED - PAYMENT TO INDIVIDUAL
Children and Adult Services,CYPS - Local Authority,Third Party Payments,440016,Other Third Party Payments,08-Oct-2013,2650845-904599,"1,048.97",REDACTED - PAYMENT TO INDIVIDUAL
Children and Adult Services,CYPS - Local Authority,Third Party Payments,440031,Other Third Party Payments,08-Oct-2013,2651095-904602,"1,093.85",REDACTED - PAYMENT TO INDIVIDUAL
Children and Adult Services,CYPS - Local Authority,Construction Work,908105,Construction work,08-Oct-2013,2651396,"74,526.63",SIR ROBERT MCALPINE LTD.
Children and Adult Services,CYPS - Local Authority,Transport,240045,Car Allowances,08-Oct-2013,2651398-3173,"24,307.01",SOCIAL RESOURCE CENTRE LTD.
Children and Adult Services,CYPS - Local Authority,Transfer Payments,510026,School Children,08-Oct-2013,2651403-EDS/SUS/007,"2,000.00",STEPHENSON WAY ROCKETS CO LTD.
Children and Adult Services,CYPS - Local Authority,Supplies and Services,364352,Grants to Voluntary Organisations,08-Oct-2013,2651404-201,643.60,STONHAM HOUSING ASSOCIATION LTD.
Children and Adult Services,CYPS - Local Authority,Supplies and Services,364352,Grants to Voluntary Organisations,08-Oct-2013,2651413-SDINV/THJC7,794.84,THREE RIVERS HOUSING ASSOCIATION LTD.
Children and Adult Services,CYPS - Local Authority,Supplies and Services,364999,Grants to Voluntary Organisations,08-Oct-2013,2651433,"4,026.00",WOLSINGHAM YOUTH CLUB.
Children and Adult Services,Head of Adults,Supplies and Services,304252,Equipment and Materials,08-Oct-2013,2651178-NUMBER18760,765.00,ALARM & COMMUNICATION SYSTEMS LTD.
Children and Adult Services,Head of Adults,Supplies and Services,324117,Provisions,08-Oct-2013,2651185-051,"1,161.00",ASHBARTON CATERING.
Children and Adult Services,Head of Adults,Third Party Payments,478101,Purchase of Care,08-Oct-2013,2651381-A203-04000098,"1,189.48",REAL LIFE OPTIONS.
Children and Adult Services,Head of Adults,Third Party Payments,478101,Purchase of Care,08-Oct-2013,2651381-A203-04000102,"1,189.48",REAL LIFE OPTIONS.
Children and Adult Services,Head of Adults,Summary Income Level,720033,Fees and Charges,08-Oct-2013,2651214,892.55,REDACTED - PAYMENT TO INDIVIDUAL
Children and Adult Services,Head of Adults,Summary Income Level,720033,Fees and Charges,08-Oct-2013,2651218,"1,029.41",REDACTED - PAYMENT TO INDIVIDUAL
Children and Adult Services,Head of Adults,Summary Income Level,720044,Fees and Charges,08-Oct-2013,2651242,"1,028.95",REDACTED - PAYMENT TO INDIVIDUAL
Children and Adult Services,Head of Adults,Summary Income Level,720044,Fees and Charges,08-Oct-2013,2651243,"1,028.95",REDACTED - PAYMENT TO INDIVIDUAL
Children and Adult Services,Head of Adults,Transport,230005,Contract Hire,08-Oct-2013,2651426-958,548.00,WE CONNOR.
Children and Adult Services,Planning and Performance,Supplies and Services,332047,"Printing, Stationery and Gen Off Exps",08-Oct-2013,2651359-91278801,"3,447.07",NORTHGATE INFORMATION SOLUTIONS UK LTD.
Children and Adult Services,Public Health,Third Party Payments,460802,Contract Payments,08-Oct-2013,2651193-A83046/APR/2013,"6,530.82",BARNARD CASTLE SURGERY.
Children and Adult Services,Public Health,Third Party Payments,460802,Contract Payments,08-Oct-2013,2651196-A83037/JUL/2013,650.00,BEWICK PHARMACY.
Children and Adult Services,Public Health,Third Party Payments,460803,Contract Payments,08-Oct-2013,2651201-FQG19AUG2013,748.57,BOOTS THE CHEMISTS LTD.
Children and Adult Services,Public Health,Third Party Payments,460803,Contract Payments,08-Oct-2013,2651202-FPC89/MAY2013,512.24,BOOTS THE CHEMISTS LTD.
Children and Adult Services,Public Health,Third Party Payments,460802,Contract Payments,08-Oct-2013,2651253,"2,779.94",DR J LEVICK.
Children and Adult Services,Public Health,Supplies and Services,352001,Conference Expenses,08-Oct-2013,2651258-2222,577.20,DURHAM CENTRE LTD.
Children and Adult Services,Public Health,Third Party Payments,460803,Contract Payments,08-Oct-2013,2651340,678.39,MJ & A TAYLOR.
Children and Adult Services,Public Health,Third Party Payments,460803,Contract Payments,08-Oct-2013,2651419,"1,072.14",TOW LAW PHARMACY.
Corporate Resources,Human Resources Total,Supplies and Services,338081,Services,08-Oct-2013,2651252-DCC09B/13,"1,030.00",DR DANNY WONG.
Corporate Resources,Human Resources Total,Supplies and Services,384199,Miscellaneous Expenses,08-Oct-2013,2651334-11035,"1,322.13",MIDLAND SOFTWARE LTD.
Corporate Resources,ICT Services incl. Design and Print,Supplies and Services,332029,"Printing, Stationery and Gen Off Exps",08-Oct-2013,2651400-7074,"2,099.00",SPOT ON DISPLAYS LTD.
Corporate Resources,ICT Services incl. Design and Print,Construction Work,908105,Construction work,08-Oct-2013,2651410-PSI-9075604,"2,940.00",TECHNOLOGY SERVICES GROUP LTD.
Corporate Resources,ICT Services incl. Design and Print,Construction Work,908105,Construction work,08-Oct-2013,2651410-PSI-9075606,"2,940.00",TECHNOLOGY SERVICES GROUP LTD.
Corporate Resources,ICT Services incl. Design and Print,Construction Work,908105,Construction work,08-Oct-2013,2651410-PSI-9075607,"2,940.00",TECHNOLOGY SERVICES GROUP LTD.
Corporate Resources,Legal & Democratic Services,Supplies and Services,384151,Miscellaneous Expenses,08-Oct-2013,2651227-3910001114,"3,231.00",CO DURHAM & DARLINGTON NHS FOUNDATION TRUST.
Corporate Resources,Legal & Democratic Services,Supplies and Services,384151,Miscellaneous Expenses,08-Oct-2013,2651227-3910001115,"1,650.00",CO DURHAM & DARLINGTON NHS FOUNDATION TRUST.
Corporate Resources,Legal & Democratic Services,Supplies and Services,384151,Miscellaneous Expenses,08-Oct-2013,2651227-3910001116,"1,014.00",CO DURHAM & DARLINGTON NHS FOUNDATION TRUST.
Corporate Resources,Legal & Democratic Services,Supplies and Services,384151,Miscellaneous Expenses,08-Oct-2013,2651228-3910001325,"33,827.31",CO DURHAM & DARLINGTON NHS FOUNDATION TRUST.
Corporate Resources,Legal & Democratic Services,Supplies and Services,338057,Services,08-Oct-2013,2651249-PB5,968.00,DR BARRETT.
Corporate Resources,Legal & Democratic Services,Supplies and Services,338057,Services,08-Oct-2013,2651250-PB6,"1,161.60",DR BARRETT.
Corporate Resources,Legal & Democratic Services,Supplies and Services,338057,Services,08-Oct-2013,2651251-CPDMHAUG,774.40,DR C PATEL.
Corporate Resources,Legal & Democratic Services,Supplies and Services,338057,Services,08-Oct-2013,2651251-CPDMHSEPT,"1,064.80",DR C PATEL.
Corporate Resources,Legal & Democratic Services,Supplies and Services,338057,Services,08-Oct-2013,2651254,"1,355.20",DR SIDHU.
Corporate Resources,Legal & Democratic Services,Supplies and Services,338057,Services,08-Oct-2013,2651255,"1,839.20",DR SREE MUSSUNOOR.
Corporate Resources,Legal & Democratic Services,Supplies and Services,338057,Services,08-Oct-2013,2651270-1185,677.60,ELYSIAN PATHOLOGY SERVICES LTD.
Corporate Resources,Legal & Democratic Services,Supplies and Services,372009,Subscriptions,08-Oct-2013,2651295-SUBS/389377,512.00,HAMMICKS LEGAL INFORMATION SERVICES.
Corporate Resources,Legal & Democratic Services,Supplies and Services,342051,Computers and Communications,08-Oct-2013,2651341-2013118,"6,670.00",MODERN MINDSET LTD.
Corporate Resources,Legal & Democratic Services,Supplies and Services,372009,Subscriptions,08-Oct-2013,2651412-4500408128,710.00,THOMSON REUTERS.
Corporate Resources,Legal & Democratic Services,Supplies and Services,372009,Subscriptions,08-Oct-2013,2651412-801723906,629.00,THOMSON REUTERS.
Dedicated Schools Grant,Dedicated Schools Grant,Transfer Payments,510032,School Children,08-Oct-2013,2651210,"1,600.00",BUDDIES CHILDCARE CENTRE.
Dedicated Schools Grant,Dedicated Schools Grant,Transfer Payments,510032,School Children,08-Oct-2013,2651241,"1,600.00",DAYPARK LTD T/A YELLOW WELLIES.
Dedicated Schools Grant,Dedicated Schools Grant,Transfer Payments,510032,School Children,08-Oct-2013,2651323,"2,237.02",LITTLE ACORNS NORTH EAST LTD.
Dedicated Schools Grant,Dedicated Schools Grant,Transfer Payments,510032,School Children,08-Oct-2013,2651324,"1,600.00",LITTLE STARS.
Dedicated Schools Grant,Dedicated Schools Grant,Transfer Payments,510032,School Children,08-Oct-2013,2651391,"6,400.00",SEAHAM HOUSE DAY NURSERY.
Neighbourhood Services,Culture & Sport,Supplies and Services,304259,Equipment and Materials,08-Oct-2013,2651173-116224410,678.15,AC ENTERTAINMENT TECHNOLOGIES.
Neighbourhood Services,Culture & Sport,Supplies and Services,338047,Services,08-Oct-2013,2651174,"1,240.00",ADASTRA.
Neighbourhood Services,Culture & Sport,Supplies and Services,324117,Provisions,08-Oct-2013,2651213-EW54483585,555.96,CARLSBERG UK LTD.
Neighbourhood Services,Culture & Sport,Supplies and Services,384199,Miscellaneous Expenses,08-Oct-2013,2651226-24SEPT13,"1,823.00",CMW PROMOTIONS.
Neighbourhood Services,Culture & Sport,Supplies and Services,384540,Miscellaneous Expenses,08-Oct-2013,2651232-UK11349,"3,750.00",COMPETITION LINE UK LTD.
Neighbourhood Services,Culture & Sport,Supplies and Services,324500,Provisions,08-Oct-2013,2651262-258848,680.25,DURHAM UNIVERSITY.
Neighbourhood Services,Culture & Sport,Supplies and Services,304259,Equipment and Materials,08-Oct-2013,2651271-INV63014,767.34,EMOS INFORMATION SYSTEMS LTD.
Neighbourhood Services,Culture & Sport,Supplies and Services,304252,Equipment and Materials,08-Oct-2013,2651277-13831,864.00,F WARREN (ELECTRICAL) LTD.
Neighbourhood Services,Culture & Sport,Supplies and Services,338047,Services,08-Oct-2013,2651379-306,"6,999.12",PRISM MUSIC GROUP LTD.
Neighbourhood Services,Culture & Sport,Supplies and Services,338099,Services,08-Oct-2013,2651385-4658,660.00,ROADSAFE CORPORATE GROUP LTD.
Neighbourhood Services,Culture & Sport,Premises,145023,Cleaning and Domestic Supplies,08-Oct-2013,2651397-263739,830.10,SIS CHEMICALS.
Neighbourhood Services,Direct Services,Premises,125009,Rents,08-Oct-2013,2651199-758,"4,615.00",BMA PROPERTIES LTD.
Neighbourhood Services,Direct Services,Supplies and Services,304221,Equipment and Materials,08-Oct-2013,2651222-DRM/119144,712.00,CITY ELECTRICAL FACTORS LTD.
Neighbourhood Services,Direct Services,Supplies and Services,304259,Equipment and Materials,08-Oct-2013,2651288-13-1093-JA,895.50,GB SPORT & LEISURE UK LTD.
Neighbourhood Services,Direct Services,Premises,145023,Cleaning and Domestic Supplies,08-Oct-2013,2651292-06/481525,"2,364.60",GREENHAM TRADING LTD.
Neighbourhood Services,Direct Services,Supplies and Services,304221,Equipment and Materials,08-Oct-2013,2651298-30512,"1,204.65",HARRISON & SON LTD (MASTER LOCKSMITHS).
Neighbourhood Services,Direct Services,Third Party Payments,430100,Rendered by Private Contractors,08-Oct-2013,2651339-7135/90644167,804.03,MITIE PROPERTY SERVICES (UK) LTD.
Neighbourhood Services,Direct Services,Third Party Payments,430100,Rendered by Private Contractors,08-Oct-2013,2651339-7135/90644171,804.03,MITIE PROPERTY SERVICES (UK) LTD.
Neighbourhood Services,Direct Services,Third Party Payments,430100,Rendered by Private Contractors,08-Oct-2013,2651339-7135/90644196,804.03,MITIE PROPERTY SERVICES (UK) LTD.
Neighbourhood Services,Direct Services,Third Party Payments,430100,Rendered by Private Contractors,08-Oct-2013,2651339-7135/90644231,804.03,MITIE PROPERTY SERVICES (UK) LTD.
Neighbourhood Services,Direct Services,Third Party Payments,430100,Rendered by Private Contractors,08-Oct-2013,2651339-7135/90644233,571.95,MITIE PROPERTY SERVICES (UK) LTD.
Neighbourhood Services,Direct Services,Supplies and Services,304221,Equipment and Materials,08-Oct-2013,2651374-4120155214,785.10,PLUMBING TRADE SUPPLIES LTD.
Neighbourhood Services,Direct Services,Supplies and Services,304221,Equipment and Materials,08-Oct-2013,2651375-INV199089,"1,777.04",POINTER LTD.
Neighbourhood Services,Direct Services,Third Party Payments,430100,Rendered by Private Contractors,08-Oct-2013,2651384-21689,"4,888.00",RJ UTILITY SERVICES LTD.
Neighbourhood Services,Direct Services,Supplies and Services,304221,Equipment and Materials,08-Oct-2013,2651417-28755,"1,035.00",TOTAL PUMP SOLUTIONS LTD.
Neighbourhood Services,Direct Services,Premises,108099,Service Repairs and Maintenance,08-Oct-2013,2651425-000035906,"16,614.36",WATERMAN ENVIRONMENTAL SERVICES.
Neighbourhood Services,Projects and Business services,Third Party Payments,430115,Rendered by Private Contractors,08-Oct-2013,2651171-2013106,"18,939.48",A & E THOMPSON.
Neighbourhood Services,Projects and Business services,Third Party Payments,430114,Rendered by Private Contractors,08-Oct-2013,2651286-700547,"10,719.40",G O`BRIEN & SONS LTD.
Neighbourhood Services,Projects and Business services,Third Party Payments,430100,Rendered by Private Contractors,08-Oct-2013,2651317-8531835144,"2,500.00",KIRKLEES METROPOLITAN COUNCIL.
Neighbourhood Services,Projects and Business services,Supplies and Services,340001,Postages,08-Oct-2013,2651387-9044772225,"3,225.73",ROYAL MAIL GROUP PLC.
Neighbourhood Services,Technical Services,Employees,080025,Agency Staff,08-Oct-2013,2651175-60297500-9,"8,254.72",AECOM LTD.
Neighbourhood Services,Technical Services,Supplies and Services,304221,Equipment and Materials,08-Oct-2013,2651176-18730781,"1,661.64",AGGREGATE INDUSTRIES UK LTD.
Neighbourhood Services,Technical Services,Supplies and Services,304221,Equipment and Materials,08-Oct-2013,2651176-18737235,748.88,AGGREGATE INDUSTRIES UK LTD.
Neighbourhood Services,Technical Services,Supplies and Services,304221,Equipment and Materials,08-Oct-2013,2651176-18737236,"1,173.64",AGGREGATE INDUSTRIES UK LTD.
Neighbourhood Services,Technical Services,Supplies and Services,304221,Equipment and Materials,08-Oct-2013,2651176-18743466,"1,118.40",AGGREGATE INDUSTRIES UK LTD.
Neighbourhood Services,Technical Services,Supplies and Services,304221,Equipment and Materials,08-Oct-2013,2651176-18743467,925.98,AGGREGATE INDUSTRIES UK LTD.
Neighbourhood Services,Technical Services,Supplies and Services,304221,Equipment and Materials,08-Oct-2013,2651176-18743470,"1,951.20",AGGREGATE INDUSTRIES UK LTD.
Neighbourhood Services,Technical Services,Supplies and Services,304221,Equipment and Materials,08-Oct-2013,2651176-18750214,"1,546.02",AGGREGATE INDUSTRIES UK LTD.
Neighbourhood Services,Technical Services,Supplies and Services,304221,Equipment and Materials,08-Oct-2013,2651176-18750218,735.75,AGGREGATE INDUSTRIES UK LTD.
Neighbourhood Services,Technical Services,Supplies and Services,304221,Equipment and Materials,08-Oct-2013,2651176-18757557,"1,410.40",AGGREGATE INDUSTRIES UK LTD.
Neighbourhood Services,Technical Services,Supplies and Services,304221,Equipment and Materials,08-Oct-2013,2651190-0380,"5,919.00",B FITZGIBBON & SON LTD.
Neighbourhood Services,Technical Services,Construction Work,908108,Capital - Surface Dressing,08-Oct-2013,2651236-9735,"11,337.62",COUPE LINE LTD.
Neighbourhood Services,Technical Services,Supplies and Services,304357,Equipment and Materials,08-Oct-2013,2651287-DCC290913,"9,237.60",GAP GROUP LTD.
Neighbourhood Services,Technical Services,Stock,926900,Stock in hand-Inventory system,08-Oct-2013,2651315-STI389606,629.85,JT DOVE LTD.
Neighbourhood Services,Technical Services,Stock,926900,Stock in hand-Inventory system,08-Oct-2013,2651315-STI389796,848.97,JT DOVE LTD.
Neighbourhood Services,Technical Services,Third Party Payments,430100,Rendered by Private Contractors,08-Oct-2013,2651349-NC9/C235/BW,"3,996.33",NEDCO CONTRACTS (NE) LTD.
Neighbourhood Services,Technical Services,Stock,926900,Stock in hand-Inventory system,08-Oct-2013,2651368-XL096247,"1,598.09",PARK ELECTRICAL DISTRIBUTORS LTD.
Neighbourhood Services,Technical Services,Stock,926900,Stock in hand-Inventory system,08-Oct-2013,2651368-XL097979,516.00,PARK ELECTRICAL DISTRIBUTORS LTD.
Neighbourhood Services,Technical Services,Stock,926900,Stock in hand-Inventory system,08-Oct-2013,2651377-36528,874.00,PREFORMED MARKINGS LTD.
Neighbourhood Services,Technical Services,Stock,926900,Stock in hand-Inventory system,08-Oct-2013,2651420-107946,650.00,TP ELECTRICAL SUPPLIES & FIXINGS LTD.
Neighbourhood Services,Technical Services,Supplies and Services,304221,Equipment and Materials,08-Oct-2013,2651432-34086,"2,998.40",WILLOWCRETE MFG CO LTD.
RED HRA,Housing Revenue Account,Supplies and Services,338027,Services,08-Oct-2013,2651289-GDC/13/138,"6,205.66",GERALD DAVIES CONSULTING LTD.
RED HRA,HRA Capital,Construction Work,908105,Construction work,08-Oct-2013,2651245-179974,"13,688.64",DELTA ELECTRICAL & MECHANICAL SERVICES.
RED HRA,HRA Capital,Other Expenses,914001,Other capital expenses,08-Oct-2013,2651265,"17,901.60",EAST DURHAM HOMES.
RED HRA,HRA Capital,Construction Work,908105,Construction work,08-Oct-2013,2651435-29165,"3,448.57",YWC GROUP LTD.
RED HRA,HRA Capital,Construction Work,908105,Construction work,08-Oct-2013,2651435-29167,"3,627.54",YWC GROUP LTD.
RED HRA,HRA Centrally Managed,Supplies and Services,384999,Miscellaneous Expenses,08-Oct-2013,2651348,511.79,REDACTED - PAYMENT TO INDIVIDUAL
Regeneration & Economic Development,Economic Development and Housing,Supplies and Services,384700,Miscellaneous Expenses,08-Oct-2013,2651172,"1,000.00",AAS ACCIDENT REPAIR CENTRE.
Regeneration & Economic Development,Economic Development and Housing,Fees,901002,Professional fees,08-Oct-2013,2651221-1068,"2,450.00",CHRIS BURNETT ASSOCIATES.
Regeneration & Economic Development,Economic Development and Housing,Supplies and Services,384700,Miscellaneous Expenses,08-Oct-2013,2651246,"1,000.00",DESIGN DRAUGHTING SERVICES LTD.
Regeneration & Economic Development,Economic Development and Housing,Cap Exp on Grants & Other Financial Assistance (REFCUS),918401,Capital grants,08-Oct-2013,2651269-193GE,"3,260.00",ELLIOT HIRD & PARTNERS LTD.
Regeneration & Economic Development,Economic Development and Housing,Construction Work,908105,Construction work,08-Oct-2013,2651285,"5,821.50",G O`BRIEN & SONS LTD.
Regeneration & Economic Development,Economic Development and Housing,Supplies and Services,384999,Miscellaneous Expenses,08-Oct-2013,2651325-000632358,976.08,LIVIN HOUSING LTD.
Regeneration & Economic Development,Economic Development and Housing,Cap Exp on Grants & Other Financial Assistance (REFCUS),918401,Capital grants,08-Oct-2013,2651327-2013/568,"5,895.00",M & R DEVELOPMENTS & CONTRACTORS LTD..
Regeneration & Economic Development,Economic Development and Housing,Supplies and Services,304259,Equipment and Materials,08-Oct-2013,2651330-30/09/13,"1,200.00",MARK DILONARDO T/A IPD-ENTS.
Regeneration & Economic Development,Economic Development and Housing,Supplies and Services,384899,Miscellaneous Expenses,08-Oct-2013,2651332,"1,500.00",METALTECH LTD.
Regeneration & Economic Development,Economic Development and Housing,Supplies and Services,384199,Miscellaneous Expenses,08-Oct-2013,2651353-NM29412,520.00,NEW MIND INTERNET CONSULTANCY LTD.
Regeneration & Economic Development,Economic Development and Housing,Fees,901002,Professional fees,08-Oct-2013,2651436-INV-3528,"1,000.00",ZINE UK LTD.
Regeneration & Economic Development,Transport and Contracted Services,Employees,050045,Pensions Increases Act payments,08-Oct-2013,2651366-15019767,"4,502.86",ORACLE CORPORATION UK LTD.
Assistant Chief Executive,Partnerships & Community Engagement Div.,Supplies and Services,384085,Miscellaneous Expenses,09-Oct-2013,224432,500.00,DAWDON MINERS WELFARE.
Assistant Chief Executive,Partnerships & Community Engagement Div.,Transfer Payments,525030,Other,09-Oct-2013,2651478,"38,633.00",ESH PARISH COUNCIL.
Children and Adult Services,Commissioning inc Supporting People,Third Party Payments,479101,Purchase of Care,09-Oct-2013,2651450-650047740,"4,012.33",BRITISH RED CROSS SOCIETY.
Children and Adult Services,Commissioning inc Supporting People,Third Party Payments,479111,Purchase of Care,09-Oct-2013,2651455-1898,"102,681.50",CARERS FEDERATION LTD.
Children and Adult Services,Commissioning inc Supporting People,Third Party Payments,479111,Purchase of Care,09-Oct-2013,2651461-3910001315,"15,937.25",CO DURHAM & DARLINGTON NHS FOUNDATION TRUST.
Children and Adult Services,Commissioning inc Supporting People,Third Party Payments,470101,Purchase of Care,09-Oct-2013,2651492-RINVTP/00292845,"3,916.67",LEONARD CHESHIRE DISABILITY.
Children and Adult Services,Commissioning inc Supporting People,Third Party Payments,470111,Purchase of Care,09-Oct-2013,2651492-RINVTP/00292862,"3,916.67",LEONARD CHESHIRE DISABILITY.
Children and Adult Services,Commissioning inc Supporting People,Third Party Payments,479111,Purchase of Care,09-Oct-2013,2651533-15682,"11,935.33",UNIQUE HOME CARE.
Children and Adult Services,CYPS - Local Authority,Supplies and Services,338045,Services,09-Oct-2013,224423-AS/149609/OSB,"1,170.00",BHP LAW..
Children and Adult Services,CYPS - Local Authority,Fees,901002,Professional fees,09-Oct-2013,2651447-4150727,"1,204.00",BOND DICKINSON LLP.
Children and Adult Services,CYPS - Local Authority,Third Party Payments,479101,Purchase of Care,09-Oct-2013,2651461-3910001288,"1,966.51",CO DURHAM & DARLINGTON NHS FOUNDATION TRUST.
Children and Adult Services,CYPS - Local Authority,Transfer Payments,510026,School Children,09-Oct-2013,2651473,"27,500.00",DISC LTD.
Children and Adult Services,CYPS - Local Authority,Supplies and Services,384199,Miscellaneous Expenses,09-Oct-2013,224442-258862,"4,000.00",DURHAM UNIVERSITY.
Children and Adult Services,CYPS - Local Authority,Supplies and Services,338027,Services,09-Oct-2013,2651470-3,"3,575.00",REDACTED - PAYMENT TO INDIVIDUAL
Children and Adult Services,CYPS - Local Authority,Third Party Payments,410037,Rendered by Other Local Authorities,09-Oct-2013,2651526-SII000608,"5,053.00",THE YOUTH JUSTICE BOARD.
Children and Adult Services,CYPS - Local Authority,Third Party Payments,410037,Rendered by Other Local Authorities,09-Oct-2013,2651526-SII000609,815.00,THE YOUTH JUSTICE BOARD.
Children and Adult Services,CYPS - Local Authority,Third Party Payments,410037,Rendered by Other Local Authorities,09-Oct-2013,2651526-SII000610,"17,949.00",THE YOUTH JUSTICE BOARD.
Children and Adult Services,CYPS - Local Authority,Third Party Payments,410037,Rendered by Other Local Authorities,09-Oct-2013,2651526-SII000611,579.00,THE YOUTH JUSTICE BOARD.
Children and Adult Services,CYPS - Local Authority,Third Party Payments,410037,Rendered by Other Local Authorities,09-Oct-2013,2651526-SII000612,"17,980.00",THE YOUTH JUSTICE BOARD.
Children and Adult Services,CYPS - Local Authority,Third Party Payments,410037,Rendered by Other Local Authorities,09-Oct-2013,2651526-SII001497,628.00,THE YOUTH JUSTICE BOARD.
Children and Adult Services,CYPS - Local Authority,Third Party Payments,410037,Rendered by Other Local Authorities,09-Oct-2013,2651526-SII001498,"1,727.00",THE YOUTH JUSTICE BOARD.
Children and Adult Services,CYPS - Local Authority,Third Party Payments,410037,Rendered by Other Local Authorities,09-Oct-2013,2651526-SII001499,"17,949.00",THE YOUTH JUSTICE BOARD.
Children and Adult Services,CYPS - Local Authority,Third Party Payments,410037,Rendered by Other Local Authorities,09-Oct-2013,2651526-SII001500,580.00,THE YOUTH JUSTICE BOARD.
Children and Adult Services,CYPS - Local Authority,Third Party Payments,410037,Rendered by Other Local Authorities,09-Oct-2013,2651526-SII001501,580.00,THE YOUTH JUSTICE BOARD.
Children and Adult Services,CYPS - Local Authority,Third Party Payments,410037,Rendered by Other Local Authorities,09-Oct-2013,2651526-SII001502,580.00,THE YOUTH JUSTICE BOARD.
Children and Adult Services,CYPS - Local Authority,Third Party Payments,410037,Rendered by Other Local Authorities,09-Oct-2013,2651526-SII001503,"17,980.00",THE YOUTH JUSTICE BOARD.
Children and Adult Services,CYPS - Local Authority,Third Party Payments,410037,Rendered by Other Local Authorities,09-Oct-2013,2651526-SII001942,942.00,THE YOUTH JUSTICE BOARD.
Children and Adult Services,CYPS - Local Authority,Third Party Payments,410037,Rendered by Other Local Authorities,09-Oct-2013,2651526-SII001944,"5,220.00",THE YOUTH JUSTICE BOARD.
Children and Adult Services,CYPS - Local Authority,Third Party Payments,410037,Rendered by Other Local Authorities,09-Oct-2013,2651526-SII001945,"2,900.00",THE YOUTH JUSTICE BOARD.
Children and Adult Services,CYPS - Local Authority,Third Party Payments,410037,Rendered by Other Local Authorities,09-Oct-2013,2651526-SII001946,"17,980.00",THE YOUTH JUSTICE BOARD.
Children and Adult Services,CYPS - Local Authority,Supplies and Services,364352,Grants to Voluntary Organisations,09-Oct-2013,2651528-SDINV/THJC3,769.72,THREE RIVERS HOUSING ASSOCIATION LTD.
Children and Adult Services,CYPS - Local Authority,Supplies and Services,364358,Grants to Voluntary Organisations,09-Oct-2013,2651534-91232330,"4,365.00",UNIVERSITY OF NORTHUMBRIA.
Children and Adult Services,Head of Adults,Third Party Payments,472101,Purchase of Care,09-Oct-2013,2651516-425000,560.00,SERVOCA NURSING & CARE LTD.
Children and Adult Services,Head of Adults,Premises,125009,Rents,09-Oct-2013,2651535-254889,"5,971.75",WHITTLE JONES (GROUP) LTD.
Children and Adult Services,Public Health,Third Party Payments,460802,Contract Payments,09-Oct-2013,224427-A83036/07/2013,"1,659.53",CHASTLETON MEDICAL GROUP.
Children and Adult Services,Public Health,Third Party Payments,460802,Contract Payments,09-Oct-2013,2651505,511.96,OLD FORGE SURGERY.
Corporate Resources,ICT Services incl. Design and Print,Supplies and Services,304245,Equipment and Materials,09-Oct-2013,2651441-WN3148573,824.00,ANTALIS LTD.
Corporate Resources,ICT Services incl. Design and Print,Construction Work,908110,Capital - Reconstruction,09-Oct-2013,2651485-18621,"4,983.71",IMTECH ICT LTD.
Corporate Resources,ICT Services incl. Design and Print,Supplies and Services,342051,Computers and Communications,09-Oct-2013,2651513-SI-54,"2,395.00",RECITE ME LTD.
Dedicated Schools Grant,Dedicated Schools Grant,Transport,230005,Contract Hire,09-Oct-2013,2651531-50,"2,014.00",TRIDENT TAXIS.
Neighbourhood Services,Culture & Sport,Supplies and Services,384199,Miscellaneous Expenses,09-Oct-2013,224465,500.00,KIERAN GOSS.
Neighbourhood Services,Direct Services,Transport,230710,Contract Hire,09-Oct-2013,2651443-AV/13/453350,"2,100.00",ASSET ADVANTAGE LTD.
Neighbourhood Services,Direct Services,Supplies and Services,344115,Telephones,09-Oct-2013,2651451-25550312Q005,"1,977.00",BRITISH TELECOMMUNICATIONS PLC.
Neighbourhood Services,Direct Services,Third Party Payments,430100,Rendered by Private Contractors,09-Oct-2013,2651471-065532,"2,325.00",DAWSONRENTALS SWEEPERS.
Neighbourhood Services,Direct Services,Third Party Payments,430100,Rendered by Private Contractors,09-Oct-2013,2651471-065945,"1,575.00",DAWSONRENTALS SWEEPERS.
Neighbourhood Services,Direct Services,Third Party Payments,430100,Rendered by Private Contractors,09-Oct-2013,2651471-065961,750.00,DAWSONRENTALS SWEEPERS.
Neighbourhood Services,Direct Services,Transport,230710,Contract Hire,09-Oct-2013,2651472,"13,356.65",DE LAGE LANDEN LEASING LTD.
Neighbourhood Services,Direct Services,Third Party Payments,430100,Rendered by Private Contractors,09-Oct-2013,224517-PCS4438,"4,200.00",POOL COVER SYSTEMS UK.
Neighbourhood Services,Direct Services,Third Party Payments,430100,Rendered by Private Contractors,09-Oct-2013,224517-PCS4446,"4,250.00",POOL COVER SYSTEMS UK.
Neighbourhood Services,Direct Services,Third Party Payments,430100,Rendered by Private Contractors,09-Oct-2013,224517-PCS4447,"4,290.00",POOL COVER SYSTEMS UK.
Neighbourhood Services,Direct Services,Third Party Payments,430100,Rendered by Private Contractors,09-Oct-2013,224517-PCS4450,"4,970.00",POOL COVER SYSTEMS UK.
Neighbourhood Services,Direct Services,Third Party Payments,430100,Rendered by Private Contractors,09-Oct-2013,2651511-3578,"6,366.72",QW SECURITY LTD.
Neighbourhood Services,Direct Services,Supplies and Services,338066,Services,09-Oct-2013,224499,790.00,REDACTED - PAYMENT TO INDIVIDUAL
Neighbourhood Services,"Environment,Health & Consumer Protection",Supplies and Services,384199,Miscellaneous Expenses,09-Oct-2013,2651504-912990570,"1,028.41",NORTHUMBRIAN WATER LTD.
Neighbourhood Services,"Environment,Health & Consumer Protection",Summary Income Level,720337,Fees and Charges,09-Oct-2013,224501,850.00,REDACTED - PAYMENT TO INDIVIDUAL
Neighbourhood Services,Projects and Business services,Supplies and Services,304357,Equipment and Materials,09-Oct-2013,2651456-1236670,"1,309.45",CERTAS ENERGY UK LTD.
Neighbourhood Services,Projects and Business services,Supplies and Services,304357,Equipment and Materials,09-Oct-2013,2651456-1236680,"1,279.80",CERTAS ENERGY UK LTD.
Neighbourhood Services,Technical Services,Creditors,952029,Creditor-returnable bonds,09-Oct-2013,224414,"1,000.00",A & G SIGNS.
Neighbourhood Services,Technical Services,Third Party Payments,410037,Rendered by Other Local Authorities,09-Oct-2013,2651437-60297500-1,"5,629.50",AECOM LTD.
Neighbourhood Services,Technical Services,Supplies and Services,304221,Equipment and Materials,09-Oct-2013,2651438-18661276,"1,379.01",AGGREGATE INDUSTRIES UK LTD.
Neighbourhood Services,Technical Services,Stock,926900,Stock in hand-Inventory system,09-Oct-2013,224421-INV082405,"1,400.00",AZTEC CHEMICALS LTD.
Neighbourhood Services,Technical Services,Supplies and Services,304358,Equipment and Materials,09-Oct-2013,224422-MG03522,618.00,BAILEY CONCRETE PUMPING.
Neighbourhood Services,Technical Services,Third Party Payments,430100,Rendered by Private Contractors,09-Oct-2013,2651468-15651,"1,852.73",COUPE LINE LTD.
Neighbourhood Services,Technical Services,Third Party Payments,430100,Rendered by Private Contractors,09-Oct-2013,2651468-15669,"1,302.84",COUPE LINE LTD.
Neighbourhood Services,Technical Services,Third Party Payments,430100,Rendered by Private Contractors,09-Oct-2013,2651468-15673,"1,767.88",COUPE LINE LTD.
Neighbourhood Services,Technical Services,Third Party Payments,430100,Rendered by Private Contractors,09-Oct-2013,2651468-15675,"2,848.60",COUPE LINE LTD.
Neighbourhood Services,Technical Services,Third Party Payments,430100,Rendered by Private Contractors,09-Oct-2013,2651468-15678,"1,607.28",COUPE LINE LTD.
Neighbourhood Services,Technical Services,Third Party Payments,460053,Contract Payments,09-Oct-2013,2651468-9743,"2,662.50",COUPE LINE LTD.
Neighbourhood Services,Technical Services,Third Party Payments,430100,Rendered by Private Contractors,09-Oct-2013,2651512-2580/130824,"74,512.60",RAINTON CONSTRUCTION LTD.
Neighbourhood Services,Technical Services,Third Party Payments,430100,Rendered by Private Contractors,09-Oct-2013,2651512-2580/130848,"9,706.50",RAINTON CONSTRUCTION LTD.
Neighbourhood Services,Technical Services,Stock,926900,Stock in hand-Inventory system,09-Oct-2013,2651538-84103840,"4,450.18",WOLSELEY UK LTD.
RED HRA,HRA Capital,Construction Work,908105,Construction work,09-Oct-2013,2651539-28739,"7,568.20",YWC GROUP LTD.
RED HRA,HRA Capital,Construction Work,908105,Construction work,09-Oct-2013,2651539-29013,"9,995.99",YWC GROUP LTD.
Regeneration & Economic Development,Economic Development and Housing,Other Expenses,914001,Other capital expenses,09-Oct-2013,2651444,"2,209.71",BARNARD CASTLE TOWN COUNCIL.
Regeneration & Economic Development,Economic Development and Housing,Supplies and Services,304337,Equipment and Materials,09-Oct-2013,2651467-SI025625,880.98,COTTAGE DELIGHT LTD.
Regeneration & Economic Development,Economic Development and Housing,Supplies and Services,384899,Miscellaneous Expenses,09-Oct-2013,2651483,"5,073.10",GROUNDWORK NORTH EAST.
Regeneration & Economic Development,Economic Development and Housing,Supplies and Services,384899,Miscellaneous Expenses,09-Oct-2013,2651497,574.05,MID TEESDALE PROJECT PARTNERSHIP.
Regeneration & Economic Development,Economic Development and Housing,Supplies and Services,384899,Miscellaneous Expenses,09-Oct-2013,2651525,"10,146.00",THE VAR INITIATIVE LTD.
Regeneration & Economic Development,"Spatial Policy, Planning, Assets & Environment",Supplies and Services,384899,Miscellaneous Expenses,09-Oct-2013,2651475-13060,"8,000.00",DURHAM WILDLIFE TRUST LTD.
Regeneration & Economic Development,Transport and Contracted Services,Third Party Payments,430100,Rendered by Private Contractors,09-Oct-2013,224429,"2,114.28",CUMBRIA CLASSIC COACHES.
Regeneration & Economic Development,Transport and Contracted Services,Third Party Payments,430100,Rendered by Private Contractors,09-Oct-2013,224458,"6,758.31",HUNTER BROTHERS (TANTOBIE) LTD.
Assistant Chief Executive,Partnerships & Community Engagement Div.,Transfer Payments,525030,Other,10-Oct-2013,2652392,"7,621.00",DURHAM POLICE & CRIME COMMISSIONER.
Children and Adult Services,Commissioning inc Supporting People,Third Party Payments,472113,Purchase of Care,10-Oct-2013,2652286-1365335H,991.72,DALE CARE LTD.
Children and Adult Services,Commissioning inc Supporting People,Third Party Payments,472113,Purchase of Care,10-Oct-2013,2652286-1369016H,696.32,DALE CARE LTD.
Children and Adult Services,Commissioning inc Supporting People,Third Party Payments,472113,Purchase of Care,10-Oct-2013,2652286-1369373H,960.08,DALE CARE LTD.
Children and Adult Services,CYPS - Local Authority,Transport,230010,Contract Hire,10-Oct-2013,2651542-91301,531.00,24/7 TAXI SERVICES LTD.
Children and Adult Services,CYPS - Local Authority,Transport,230008,Contract Hire,10-Oct-2013,2651542-91302,"1,045.00",24/7 TAXI SERVICES LTD.
Children and Adult Services,CYPS - Local Authority,Transport,230008,Contract Hire,10-Oct-2013,2651542-91303,"1,300.00",24/7 TAXI SERVICES LTD.
Children and Adult Services,CYPS - Local Authority,Transport,230008,Contract Hire,10-Oct-2013,2651542-91305,"1,235.00",24/7 TAXI SERVICES LTD.
Children and Adult Services,CYPS - Local Authority,Transport,230008,Contract Hire,10-Oct-2013,2651542-91306,"1,827.50",24/7 TAXI SERVICES LTD.
Children and Adult Services,CYPS - Local Authority,Transport,230008,Contract Hire,10-Oct-2013,2651542-91309,"1,587.00",24/7 TAXI SERVICES LTD.
Children and Adult Services,CYPS - Local Authority,Transport,230007,Contract Hire,10-Oct-2013,2651542-91310,708.00,24/7 TAXI SERVICES LTD.
Children and Adult Services,CYPS - Local Authority,Transport,230006,Contract Hire,10-Oct-2013,2651542-91311,735.00,24/7 TAXI SERVICES LTD.
Children and Adult Services,CYPS - Local Authority,Transport,230008,Contract Hire,10-Oct-2013,2651542-91313,855.00,24/7 TAXI SERVICES LTD.
Children and Adult Services,CYPS - Local Authority,Transport,230008,Contract Hire,10-Oct-2013,2651542-91317,595.00,24/7 TAXI SERVICES LTD.
Children and Adult Services,CYPS - Local Authority,Transport,230008,Contract Hire,10-Oct-2013,2651558-27-30/9/13,"1,900.00",ABLE NOVAK TAXIS.
Children and Adult Services,CYPS - Local Authority,Transport,230008,Contract Hire,10-Oct-2013,2651558-29-30/9/13,884.00,ABLE NOVAK TAXIS.
Children and Adult Services,CYPS - Local Authority,Transport,230007,Contract Hire,10-Oct-2013,2651559-534,"1,292.00",AC TAXIS.
Children and Adult Services,CYPS - Local Authority,Transport,230007,Contract Hire,10-Oct-2013,2651946-3226,600.00,ACE TAXIS (WINSTON).
Children and Adult Services,CYPS - Local Authority,Transport,230007,Contract Hire,10-Oct-2013,2651946-3249,600.00,ACE TAXIS (WINSTON).
Children and Adult Services,CYPS - Local Authority,Transport,230007,Contract Hire,10-Oct-2013,2651946-6007,"1,330.00",ACE TAXIS (WINSTON).
Children and Adult Services,CYPS - Local Authority,Transport,230008,Contract Hire,10-Oct-2013,2652057-356,"1,385.00",AT TAXIS LTD.
Children and Adult Services,CYPS - Local Authority,Transport,230008,Contract Hire,10-Oct-2013,2652057-357,"1,206.80",AT TAXIS LTD.
Children and Adult Services,CYPS - Local Authority,Transport,230008,Contract Hire,10-Oct-2013,2652120-1076,"1,691.00",BOBBY DOVE.
Children and Adult Services,CYPS - Local Authority,Transport,230008,Contract Hire,10-Oct-2013,2652120-1077,"1,311.00",BOBBY DOVE.
Children and Adult Services,CYPS - Local Authority,Third Party Payments,472101,Purchase of Care,10-Oct-2013,2652165-1368022H,892.76,CAREWATCH (DURHAM & EASINGTON) FASTFLOW ACC.
Children and Adult Services,CYPS - Local Authority,Third Party Payments,440062,Other Third Party Payments,10-Oct-2013,2652179-1372192H,"1,199.40",CASTLE CARE TEESDALE LTD.
Children and Adult Services,CYPS - Local Authority,Transport,230008,Contract Hire,10-Oct-2013,2652180-72,"1,425.00",CASTLE CARS.
Children and Adult Services,CYPS - Local Authority,Transport,230008,Contract Hire,10-Oct-2013,2652211-KJ012,"1,378.00",CHIPPERS TAXIS.
Children and Adult Services,CYPS - Local Authority,Transport,230008,Contract Hire,10-Oct-2013,2652240-E03509,"1,657.50",COLIN FRANKS T/A FRANKS COACHES.
Children and Adult Services,CYPS - Local Authority,Transport,230008,Contract Hire,10-Oct-2013,2652240-E04209,"2,067.00",COLIN FRANKS T/A FRANKS COACHES.
Children and Adult Services,CYPS - Local Authority,Transport,230008,Contract Hire,10-Oct-2013,2652244-0001109,900.00,COLORS TAXIS LTD.
Children and Adult Services,CYPS - Local Authority,Third Party Payments,440062,Other Third Party Payments,10-Oct-2013,2652245-1368147H,"1,084.06",COMFORT CALL LTD.
Children and Adult Services,CYPS - Local Authority,Third Party Payments,440062,Other Third Party Payments,10-Oct-2013,2652245-1368521H,809.57,COMFORT CALL LTD.
Children and Adult Services,CYPS - Local Authority,Third Party Payments,440062,Other Third Party Payments,10-Oct-2013,2652245-1371980H,"1,463.89",COMFORT CALL LTD.
Children and Adult Services,CYPS - Local Authority,Transport,230008,Contract Hire,10-Oct-2013,2652250-201,"1,677.60",CONNORS MINI BUSES.
Children and Adult Services,CYPS - Local Authority,Transport,230008,Contract Hire,10-Oct-2013,2652250-202,"1,724.63",CONNORS MINI BUSES.
Children and Adult Services,CYPS - Local Authority,Transport,230008,Contract Hire,10-Oct-2013,2652250-203,"1,399.54",CONNORS MINI BUSES.
Children and Adult Services,CYPS - Local Authority,Transport,230008,Contract Hire,10-Oct-2013,2652250-204,"1,842.43",CONNORS MINI BUSES.
Children and Adult Services,CYPS - Local Authority,Transport,230008,Contract Hire,10-Oct-2013,2652250-205,"1,427.85",CONNORS MINI BUSES.
Children and Adult Services,CYPS - Local Authority,Transport,230007,Contract Hire,10-Oct-2013,2652274-4263,"1,180.00",CROFT BUSINESS SERVICES (UK) LTD T/A CROFT TAXIS.
Children and Adult Services,CYPS - Local Authority,Transport,230008,Contract Hire,10-Oct-2013,2652274-4265,"1,036.88",CROFT BUSINESS SERVICES (UK) LTD T/A CROFT TAXIS.
Children and Adult Services,CYPS - Local Authority,Transport,230008,Contract Hire,10-Oct-2013,2652274-4268,"1,270.40",CROFT BUSINESS SERVICES (UK) LTD T/A CROFT TAXIS.
Children and Adult Services,CYPS - Local Authority,Transport,230008,Contract Hire,10-Oct-2013,2652281-OAK019,"1,231.32",D IRVING T/A BJ TAXIS.
Children and Adult Services,CYPS - Local Authority,Third Party Payments,440062,Other Third Party Payments,10-Oct-2013,2652286-1370104H,"1,109.00",DALE CARE LTD.
Children and Adult Services,CYPS - Local Authority,Third Party Payments,440062,Other Third Party Payments,10-Oct-2013,2652286-1371414H,"1,863.12",DALE CARE LTD.
Children and Adult Services,CYPS - Local Authority,Transport,230008,Contract Hire,10-Oct-2013,2652287,"1,691.00",DALELINK PRIVATE HIRE.
Children and Adult Services,CYPS - Local Authority,Third Party Payments,440037,Other Third Party Payments,10-Oct-2013,2652326-0000002562,784.10,DAYPARK LTD T/A YELLOW WELLIES.
Children and Adult Services,CYPS - Local Authority,Transport,230008,Contract Hire,10-Oct-2013,2652327-0913-001,"1,235.00",DCM TAXIS.
Children and Adult Services,CYPS - Local Authority,Transport,230008,Contract Hire,10-Oct-2013,2652356-A1202/35,"3,067.60",DMG PRIVATE HIRE.
Children and Adult Services,CYPS - Local Authority,Transport,230007,Contract Hire,10-Oct-2013,2652383,565.00,DUNCAN G CUMMINGS T/A DC TAXIS.
Children and Adult Services,CYPS - Local Authority,Construction Work,908105,Construction work,10-Oct-2013,2652490,"50,215.05",G & B CIVIL ENGINEERING LTD.
Children and Adult Services,CYPS - Local Authority,Supplies and Services,312011,"Newspapers, Books and Periodicals",10-Oct-2013,2652500-11990223,"1,164.34",GARDNERS BOOKS LTD.
Children and Adult Services,CYPS - Local Authority,Transport,230007,Contract Hire,10-Oct-2013,2652502-15705,"2,641.00",GARNETTS LTD (COACHES).
Children and Adult Services,CYPS - Local Authority,Transport,230007,Contract Hire,10-Oct-2013,2652502-15707,"11,900.00",GARNETTS LTD (COACHES).
Children and Adult Services,CYPS - Local Authority,Transport,230007,Contract Hire,10-Oct-2013,2652502-15708,"7,353.00",GARNETTS LTD (COACHES).
Children and Adult Services,CYPS - Local Authority,Transport,230007,Contract Hire,10-Oct-2013,2652502-15709,"16,891.00",GARNETTS LTD (COACHES).
Children and Adult Services,CYPS - Local Authority,Transport,230007,Contract Hire,10-Oct-2013,2652502-15710,"2,451.00",GARNETTS LTD (COACHES).
Children and Adult Services,CYPS - Local Authority,Transport,230007,Contract Hire,10-Oct-2013,2652502-15711,"2,862.00",GARNETTS LTD (COACHES).
Children and Adult Services,CYPS - Local Authority,Transport,230008,Contract Hire,10-Oct-2013,2652525-26B,551.00,GRAEME AGNEW T/A STREETCARS.
Children and Adult Services,CYPS - Local Authority,Transport,230008,Contract Hire,10-Oct-2013,2652550-HT90,"1,927.00",HARRY`S TAXI`S.
Children and Adult Services,CYPS - Local Authority,Transport,230008,Contract Hire,10-Oct-2013,2652565-12,"1,474.00",HENRYS TAXIS.
Children and Adult Services,CYPS - Local Authority,Transport,230008,Contract Hire,10-Oct-2013,2652578-IR1309001,"2,470.00",I & R EXECUTIVE TRAVEL.
Children and Adult Services,CYPS - Local Authority,Transport,230008,Contract Hire,10-Oct-2013,2652578-IR1309002,"1,520.00",I & R EXECUTIVE TRAVEL.
Children and Adult Services,CYPS - Local Authority,Construction Work,908105,Construction work,10-Oct-2013,2652590-ISD0046,"28,906.16",INSPIREDSPACES DURHAM (PROJECTCO1) LTD.
Children and Adult Services,CYPS - Local Authority,Construction Work,908105,Construction work,10-Oct-2013,2652591-DURH/0417,"91,432.00",INSPIREDSPACES DURHAM LTD.
Children and Adult Services,CYPS - Local Authority,Transport,230008,Contract Hire,10-Oct-2013,2652600-607,"1,250.00",J YOUNG T/A VIP TAXIS.
Children and Adult Services,CYPS - Local Authority,Transport,230008,Contract Hire,10-Oct-2013,2652600-609,"1,040.00",J YOUNG T/A VIP TAXIS.
Children and Adult Services,CYPS - Local Authority,Transport,230008,Contract Hire,10-Oct-2013,2652636-363,"1,260.00",JDS PRIVATE HIRE DURHAM.
Children and Adult Services,CYPS - Local Authority,Transport,230008,Contract Hire,10-Oct-2013,2652636-364,"2,500.00",JDS PRIVATE HIRE DURHAM.
Children and Adult Services,CYPS - Local Authority,Transport,230008,Contract Hire,10-Oct-2013,2652636-370,"1,520.00",JDS PRIVATE HIRE DURHAM.
Children and Adult Services,CYPS - Local Authority,Transport,230008,Contract Hire,10-Oct-2013,2652636-372,"1,356.60",JDS PRIVATE HIRE DURHAM.
Children and Adult Services,CYPS - Local Authority,Transport,230008,Contract Hire,10-Oct-2013,2652644-2194,"1,813.74",JEFF ANDERSON COACHES LTD.
Children and Adult Services,CYPS - Local Authority,Transport,230008,Contract Hire,10-Oct-2013,2652695-48,"1,660.00",JOHNS TAXIS (CHESTER LE STREET).
Children and Adult Services,CYPS - Local Authority,Transport,230008,Contract Hire,10-Oct-2013,2652705,"1,116.00",JOVIAL PRIVATE HIRE.
Children and Adult Services,CYPS - Local Authority,Transport,230009,Contract Hire,10-Oct-2013,2652705-72311,"1,446.00",JOVIAL PRIVATE HIRE.
Children and Adult Services,CYPS - Local Authority,Transport,230008,Contract Hire,10-Oct-2013,2652753-1258,"1,520.00",KEN CHAMBERS T/A SHILDON TAXIS.
Children and Adult Services,CYPS - Local Authority,Transport,230008,Contract Hire,10-Oct-2013,2652753-1262,"1,260.00",KEN CHAMBERS T/A SHILDON TAXIS.
Children and Adult Services,CYPS - Local Authority,Transport,230008,Contract Hire,10-Oct-2013,2652844-46,"2,310.00",M BUTCHER.
Children and Adult Services,CYPS - Local Authority,Transport,230008,Contract Hire,10-Oct-2013,2652981-WAL109-13,"2,334.75",MR CT WALKER T/A COLIN`S TAXIS.
Children and Adult Services,CYPS - Local Authority,Transport,230008,Contract Hire,10-Oct-2013,2652981-WAL209-13,"2,375.00",MR CT WALKER T/A COLIN`S TAXIS.
Children and Adult Services,CYPS - Local Authority,Transport,230008,Contract Hire,10-Oct-2013,2652981-WINDS09-13,"2,647.35",MR CT WALKER T/A COLIN`S TAXIS.
Children and Adult Services,CYPS - Local Authority,Transport,230008,Contract Hire,10-Oct-2013,2652984-19A,"1,680.00",MR G FREELAND.
Children and Adult Services,CYPS - Local Authority,Transport,230009,Contract Hire,10-Oct-2013,2652998-016,"1,812.00",MR JG HOWARTH.
Children and Adult Services,CYPS - Local Authority,Transport,230008,Contract Hire,10-Oct-2013,2653016-170-1/10/13,709.98,MR PETER YOUNG.
Children and Adult Services,CYPS - Local Authority,Transport,230008,Contract Hire,10-Oct-2013,2653017-K,"1,400.00",MR PHILIP YOUNG.
Children and Adult Services,CYPS - Local Authority,Transport,230008,Contract Hire,10-Oct-2013,2653021-12B,975.20,MR RAYMOND RENWICK.
Children and Adult Services,CYPS - Local Authority,Transport,230007,Contract Hire,10-Oct-2013,2653024-1-27/9/13,540.00,MR ROY SHIPPEN.
Children and Adult Services,CYPS - Local Authority,Transport,230008,Contract Hire,10-Oct-2013,2653214-353,950.00,PETERLEE EXECUTIVE CARS.
Children and Adult Services,CYPS - Local Authority,Transport,230008,Contract Hire,10-Oct-2013,2653214-354,"1,120.00",PETERLEE EXECUTIVE CARS.
Children and Adult Services,CYPS - Local Authority,Transport,230008,Contract Hire,10-Oct-2013,2653214-360,608.00,PETERLEE EXECUTIVE CARS.
Children and Adult Services,CYPS - Local Authority,Transfer Payments,515201,Social Services Clients,10-Oct-2013,2651551-1369163H,510.00,REDACTED - PAYMENT TO INDIVIDUAL
Children and Adult Services,CYPS - Local Authority,Transfer Payments,515201,Social Services Clients,10-Oct-2013,2651553-1369608H,"1,232.00",REDACTED - PAYMENT TO INDIVIDUAL
Children and Adult Services,CYPS - Local Authority,Transfer Payments,515201,Social Services Clients,10-Oct-2013,2651572-1369752H,"1,110.00",REDACTED - PAYMENT TO INDIVIDUAL
Children and Adult Services,CYPS - Local Authority,Transfer Payments,515201,Social Services Clients,10-Oct-2013,2651573-1368794H,"1,485.00",REDACTED - PAYMENT TO INDIVIDUAL
Children and Adult Services,CYPS - Local Authority,Transfer Payments,515201,Social Services Clients,10-Oct-2013,2651578-1370374H,"2,048.00",REDACTED - PAYMENT TO INDIVIDUAL
Children and Adult Services,CYPS - Local Authority,Transfer Payments,515201,Social Services Clients,10-Oct-2013,2651582-1368966H,978.00,REDACTED - PAYMENT TO INDIVIDUAL
Children and Adult Services,CYPS - Local Authority,Transfer Payments,515201,Social Services Clients,10-Oct-2013,2651597-1370686H,630.00,REDACTED - PAYMENT TO INDIVIDUAL
Children and Adult Services,CYPS - Local Authority,Transfer Payments,515201,Social Services Clients,10-Oct-2013,2651603-1371260H,900.00,REDACTED - PAYMENT TO INDIVIDUAL
Children and Adult Services,CYPS - Local Authority,Transfer Payments,515201,Social Services Clients,10-Oct-2013,2651643-1370203H,572.00,REDACTED - PAYMENT TO INDIVIDUAL
Children and Adult Services,CYPS - Local Authority,Transfer Payments,515201,Social Services Clients,10-Oct-2013,2651645-1369629H,"1,204.00",REDACTED - PAYMENT TO INDIVIDUAL
Children and Adult Services,CYPS - Local Authority,Transfer Payments,515201,Social Services Clients,10-Oct-2013,2651656-1369659H,"1,328.00",REDACTED - PAYMENT TO INDIVIDUAL
Children and Adult Services,CYPS - Local Authority,Transfer Payments,515201,Social Services Clients,10-Oct-2013,2651731-1369003H,720.00,REDACTED - PAYMENT TO INDIVIDUAL
Children and Adult Services,CYPS - Local Authority,Transfer Payments,515201,Social Services Clients,10-Oct-2013,2651782-1369050H,"1,260.00",REDACTED - PAYMENT TO INDIVIDUAL
Children and Adult Services,CYPS - Local Authority,Transfer Payments,515201,Social Services Clients,10-Oct-2013,2651794-1370263H,664.00,REDACTED - PAYMENT TO INDIVIDUAL
Children and Adult Services,CYPS - Local Authority,Transfer Payments,515201,Social Services Clients,10-Oct-2013,2651823-1371819H,960.00,REDACTED - PAYMENT TO INDIVIDUAL
Children and Adult Services,CYPS - Local Authority,Transfer Payments,515201,Social Services Clients,10-Oct-2013,2651876-1368993H,540.00,REDACTED - PAYMENT TO INDIVIDUAL
Children and Adult Services,CYPS - Local Authority,Transfer Payments,515201,Social Services Clients,10-Oct-2013,2651905-1369054H,960.00,REDACTED - PAYMENT TO INDIVIDUAL
Children and Adult Services,CYPS - Local Authority,Transfer Payments,515201,Social Services Clients,10-Oct-2013,2651936-1368388H,960.00,REDACTED - PAYMENT TO INDIVIDUAL
Children and Adult Services,CYPS - Local Authority,Transfer Payments,515201,Social Services Clients,10-Oct-2013,2651984-1368144H,510.00,REDACTED - PAYMENT TO INDIVIDUAL
Children and Adult Services,CYPS - Local Authority,Transfer Payments,515201,Social Services Clients,10-Oct-2013,2651984-1368145H,996.00,REDACTED - PAYMENT TO INDIVIDUAL
Children and Adult Services,CYPS - Local Authority,Transfer Payments,515201,Social Services Clients,10-Oct-2013,2651986-1368535H,"1,024.00",REDACTED - PAYMENT TO INDIVIDUAL
Children and Adult Services,CYPS - Local Authority,Transfer Payments,515201,Social Services Clients,10-Oct-2013,2652063-1367959H,510.00,REDACTED - PAYMENT TO INDIVIDUAL
Children and Adult Services,CYPS - Local Authority,Transfer Payments,515201,Social Services Clients,10-Oct-2013,2652063-1368114H,510.00,REDACTED - PAYMENT TO INDIVIDUAL
Children and Adult Services,CYPS - Local Authority,Transfer Payments,515201,Social Services Clients,10-Oct-2013,2652075-1369711H,646.00,REDACTED - PAYMENT TO INDIVIDUAL
Children and Adult Services,CYPS - Local Authority,Transfer Payments,515201,Social Services Clients,10-Oct-2013,2652112-1369583H,572.00,REDACTED - PAYMENT TO INDIVIDUAL
Children and Adult Services,CYPS - Local Authority,Transfer Payments,515201,Social Services Clients,10-Oct-2013,2652154-1370320H,"1,200.00",REDACTED - PAYMENT TO INDIVIDUAL
Children and Adult Services,CYPS - Local Authority,Transfer Payments,515201,Social Services Clients,10-Oct-2013,2652158-1369246H,"1,920.00",REDACTED - PAYMENT TO INDIVIDUAL
Children and Adult Services,CYPS - Local Authority,Transfer Payments,515201,Social Services Clients,10-Oct-2013,2652199-1369841H,"5,340.00",REDACTED - PAYMENT TO INDIVIDUAL
Children and Adult Services,CYPS - Local Authority,Transfer Payments,515201,Social Services Clients,10-Oct-2013,2652205-1367822H,720.00,REDACTED - PAYMENT TO INDIVIDUAL
Children and Adult Services,CYPS - Local Authority,Transfer Payments,515201,Social Services Clients,10-Oct-2013,2652213-1370944H,660.00,REDACTED - PAYMENT TO INDIVIDUAL
Children and Adult Services,CYPS - Local Authority,Transfer Payments,515201,Social Services Clients,10-Oct-2013,2652290-1368810H,"1,230.00",REDACTED - PAYMENT TO INDIVIDUAL
Children and Adult Services,CYPS - Local Authority,Transfer Payments,515202,Social Services Clients,10-Oct-2013,2652297-1369350H,"1,144.00",REDACTED - PAYMENT TO INDIVIDUAL
Children and Adult Services,CYPS - Local Authority,Transfer Payments,515201,Social Services Clients,10-Oct-2013,2652312-1369007H,784.00,REDACTED - PAYMENT TO INDIVIDUAL
Children and Adult Services,CYPS - Local Authority,Transfer Payments,515201,Social Services Clients,10-Oct-2013,2652440-1368688H,"1,144.00",REDACTED - PAYMENT TO INDIVIDUAL
Children and Adult Services,CYPS - Local Authority,Third Party Payments,440062,Other Third Party Payments,10-Oct-2013,2652479-1371494H,"1,140.00",REDACTED - PAYMENT TO INDIVIDUAL
Children and Adult Services,CYPS - Local Authority,Third Party Payments,440062,Other Third Party Payments,10-Oct-2013,2652479-1371495H,"1,140.00",REDACTED - PAYMENT TO INDIVIDUAL
Children and Adult Services,CYPS - Local Authority,Transfer Payments,515201,Social Services Clients,10-Oct-2013,2652493-1368395H,"1,114.00",REDACTED - PAYMENT TO INDIVIDUAL
Children and Adult Services,CYPS - Local Authority,Transfer Payments,515201,Social Services Clients,10-Oct-2013,2652512-1370769H,510.00,REDACTED - PAYMENT TO INDIVIDUAL
Children and Adult Services,CYPS - Local Authority,Transfer Payments,515201,Social Services Clients,10-Oct-2013,2652611-1369649H,540.00,REDACTED - PAYMENT TO INDIVIDUAL
Children and Adult Services,CYPS - Local Authority,Transfer Payments,515201,Social Services Clients,10-Oct-2013,2652619-1370307H,600.00,REDACTED - PAYMENT TO INDIVIDUAL
Children and Adult Services,CYPS - Local Authority,Transfer Payments,515201,Social Services Clients,10-Oct-2013,2652718-1368878H,600.00,REDACTED - PAYMENT TO INDIVIDUAL
Children and Adult Services,CYPS - Local Authority,Transfer Payments,515201,Social Services Clients,10-Oct-2013,2652734-1370342H,630.00,REDACTED - PAYMENT TO INDIVIDUAL
Children and Adult Services,CYPS - Local Authority,Transfer Payments,515201,Social Services Clients,10-Oct-2013,2652763-1368884H,555.00,REDACTED - PAYMENT TO INDIVIDUAL
Children and Adult Services,CYPS - Local Authority,Transfer Payments,515201,Social Services Clients,10-Oct-2013,2652787-1368106H,600.00,REDACTED - PAYMENT TO INDIVIDUAL
Children and Adult Services,CYPS - Local Authority,Transfer Payments,515201,Social Services Clients,10-Oct-2013,2652831-1370637H,"1,920.00",REDACTED - PAYMENT TO INDIVIDUAL
Children and Adult Services,CYPS - Local Authority,Transfer Payments,515201,Social Services Clients,10-Oct-2013,2652934-1369237H,525.00,REDACTED - PAYMENT TO INDIVIDUAL
Children and Adult Services,CYPS - Local Authority,Transfer Payments,515201,Social Services Clients,10-Oct-2013,2652959-1369853H,962.00,REDACTED - PAYMENT TO INDIVIDUAL
Children and Adult Services,CYPS - Local Authority,Transfer Payments,515201,Social Services Clients,10-Oct-2013,2653034-1369122H,"1,038.00",REDACTED - PAYMENT TO INDIVIDUAL
Children and Adult Services,CYPS - Local Authority,Transfer Payments,515202,Social Services Clients,10-Oct-2013,2653064-1368740H,918.00,REDACTED - PAYMENT TO INDIVIDUAL
Children and Adult Services,CYPS - Local Authority,Transfer Payments,515201,Social Services Clients,10-Oct-2013,2653066-1368320H,"1,338.00",REDACTED - PAYMENT TO INDIVIDUAL
Children and Adult Services,CYPS - Local Authority,Transfer Payments,515201,Social Services Clients,10-Oct-2013,2653158-1369164H,"1,988.00",REDACTED - PAYMENT TO INDIVIDUAL
Children and Adult Services,CYPS - Local Authority,Transfer Payments,515201,Social Services Clients,10-Oct-2013,2653251-1369672H,542.00,REDACTED - PAYMENT TO INDIVIDUAL
Children and Adult Services,CYPS - Local Authority,Transfer Payments,515201,Social Services Clients,10-Oct-2013,2653325-1369623H,600.00,REDACTED - PAYMENT TO INDIVIDUAL
Children and Adult Services,CYPS - Local Authority,Transfer Payments,515201,Social Services Clients,10-Oct-2013,2653356-1369086H,632.00,REDACTED - PAYMENT TO INDIVIDUAL
Children and Adult Services,CYPS - Local Authority,Transfer Payments,515201,Social Services Clients,10-Oct-2013,2653619-1368582H,692.00,REDACTED - PAYMENT TO INDIVIDUAL
Children and Adult Services,CYPS - Local Authority,Transport,230008,Contract Hire,10-Oct-2013,2653280-2121,"2,015.00",RICHIES TAXIS.
Children and Adult Services,CYPS - Local Authority,Transport,230007,Contract Hire,10-Oct-2013,2653303-6602,"5,560.20",ROBERTS OF WINGATE.
Children and Adult Services,CYPS - Local Authority,Transport,230008,Contract Hire,10-Oct-2013,2653306-1567,"2,136.75",RONS TAXIS.
Children and Adult Services,CYPS - Local Authority,Transport,230008,Contract Hire,10-Oct-2013,2653328-SA031,"1,053.50",S & A TAXIS.
Children and Adult Services,CYPS - Local Authority,Transport,230007,Contract Hire,10-Oct-2013,2653385-4266-09-13,"1,044.00",SIMON ELLIFF.
Children and Adult Services,CYPS - Local Authority,Transport,230006,Contract Hire,10-Oct-2013,2653385-F536-09-13,"2,356.00",SIMON ELLIFF.
Children and Adult Services,CYPS - Local Authority,Transport,230008,Contract Hire,10-Oct-2013,2653391-003-30/9/13,"1,425.00",SJ MACKENZIE T/A SCOTTS TAXIS.
Children and Adult Services,CYPS - Local Authority,Transport,230007,Contract Hire,10-Oct-2013,2653394-2144,"3,680.00",SNOWDON COACHES.
Children and Adult Services,CYPS - Local Authority,Third Party Payments,472101,Purchase of Care,10-Oct-2013,2653395-1368832H,709.76,SOCIAL RESOURCE CENTRE LTD.
Children and Adult Services,CYPS - Local Authority,Transport,230008,Contract Hire,10-Oct-2013,2653397-001-27/9/13,828.00,SODA TAXIS.
Children and Adult Services,CYPS - Local Authority,Transport,230008,Contract Hire,10-Oct-2013,2653403-127,583.49,SOUTH MOOR TAXIS.
Children and Adult Services,CYPS - Local Authority,Transport,230008,Contract Hire,10-Oct-2013,2653468-8909D,"1,567.50",T MOORE & SON.
Children and Adult Services,CYPS - Local Authority,Transport,230007,Contract Hire,10-Oct-2013,2653469-0051/3080,"1,691.00",TA TRAVEL.
Children and Adult Services,CYPS - Local Authority,Transport,230007,Contract Hire,10-Oct-2013,2653469-0051/4079,"1,311.00",TA TRAVEL.
Children and Adult Services,CYPS - Local Authority,Transport,230008,Contract Hire,10-Oct-2013,2653470-1171,"1,905.00",TAILORMADE TRAVEL.
Children and Adult Services,CYPS - Local Authority,Transport,230008,Contract Hire,10-Oct-2013,2653472-B623,"1,080.00",TALBOTS TRAVEL LTD.
Children and Adult Services,CYPS - Local Authority,Transport,230008,Contract Hire,10-Oct-2013,2653474-7,807.50,TALLA`S TAXIS.
Children and Adult Services,CYPS - Local Authority,Transport,230008,Contract Hire,10-Oct-2013,2653485-09/2013/073,800.00,TARNS TAXIS LTD.
Children and Adult Services,CYPS - Local Authority,Transport,230008,Contract Hire,10-Oct-2013,2653485-09/2013/074,"1,235.00",TARNS TAXIS LTD.
Children and Adult Services,CYPS - Local Authority,Transport,230013,Contract Hire,10-Oct-2013,2653485-09/2013/075,600.00,TARNS TAXIS LTD.
Children and Adult Services,CYPS - Local Authority,Transport,230008,Contract Hire,10-Oct-2013,2653489-DCC/2013/31,"1,661.31",TAYLOR`S TAXIS.
Children and Adult Services,CYPS - Local Authority,Transport,230008,Contract Hire,10-Oct-2013,2653489-DCC/2013/32,"2,247.00",TAYLOR`S TAXIS.
Children and Adult Services,CYPS - Local Authority,Transport,230007,Contract Hire,10-Oct-2013,2653489-DCC/2013/33,"1,072.00",TAYLOR`S TAXIS.
Children and Adult Services,CYPS - Local Authority,Supplies and Services,384199,Miscellaneous Expenses,10-Oct-2013,2653490-5040810,"12,600.00",TCV EMPLOYMENT & TRAINING SERVICES LTD.
Children and Adult Services,CYPS - Local Authority,Transport,230008,Contract Hire,10-Oct-2013,2653520-3-30/9/13,684.00,THE TAXI CO.
Children and Adult Services,CYPS - Local Authority,Transport,230008,Contract Hire,10-Oct-2013,2653534-005/13,"1,426.00",TL TAXIS.
Children and Adult Services,CYPS - Local Authority,Transport,230007,Contract Hire,10-Oct-2013,2653535-2087,980.00,TM TRAVEL.
Children and Adult Services,CYPS - Local Authority,Transport,230007,Contract Hire,10-Oct-2013,2653535-2088,"7,942.00",TM TRAVEL.
Children and Adult Services,CYPS - Local Authority,Transport,230007,Contract Hire,10-Oct-2013,2653535-2089,"1,180.00",TM TRAVEL.
Children and Adult Services,CYPS - Local Authority,Transport,230007,Contract Hire,10-Oct-2013,2653535-2090,"1,900.00",TM TRAVEL.
Children and Adult Services,CYPS - Local Authority,Transport,230008,Contract Hire,10-Oct-2013,2653540-TS29-10,"2,508.00",TOP STAR TRAVEL.
Children and Adult Services,CYPS - Local Authority,Transport,230007,Contract Hire,10-Oct-2013,2653548-1315,"1,200.00",TRAPPA`S TRAVEL.
Children and Adult Services,CYPS - Local Authority,Transport,230008,Contract Hire,10-Oct-2013,2653550-1-30/9/13,600.00,TRIDENT TAXIS.
Children and Adult Services,CYPS - Local Authority,Transport,230008,Contract Hire,10-Oct-2013,2653556-12,"1,656.00",TT TAXIS.
Children and Adult Services,CYPS - Local Authority,Transport,230007,Contract Hire,10-Oct-2013,2653599-89-1/10/13,988.00,WALTONS TAXIS.
Children and Adult Services,CYPS - Local Authority,Transport,230008,Contract Hire,10-Oct-2013,2653605-000617,"1,577.00",WATSON OF SPENNYMOOR.
Children and Adult Services,CYPS - Local Authority,Transport,230008,Contract Hire,10-Oct-2013,2653607-795,"2,000.00",WAYNE`S TAXIS.
Children and Adult Services,CYPS - Local Authority,Transport,230008,Contract Hire,10-Oct-2013,2653607-796,"1,760.00",WAYNE`S TAXIS.
Children and Adult Services,CYPS - Local Authority,Transport,230008,Contract Hire,10-Oct-2013,2653607-797,"1,710.00",WAYNE`S TAXIS.
Children and Adult Services,CYPS - Local Authority,Transport,230007,Contract Hire,10-Oct-2013,2653609-4361,"3,311.82",WEARDALE PRIVATE HIRE.
Children and Adult Services,CYPS - Local Authority,Supplies and Services,348037,Subsistence,10-Oct-2013,2653647-5100172,950.00,YEWLANDS TECHNOLOGY COLLEGE.
Children and Adult Services,Financing-Adult Services,Debtors,930024,Debtor-free nursing care,10-Oct-2013,2651548-2126160,"1,380.21",A CHARLES THOMAS (CARE) LTD.
Children and Adult Services,Financing-Adult Services,Debtors,930024,Debtor-free nursing care,10-Oct-2013,2651992-2126719,"2,023.27",ALLIANCE CARE.
Children and Adult Services,Financing-Adult Services,Debtors,930024,Debtor-free nursing care,10-Oct-2013,2652089-2123654,846.95,BEACONSFIELD COURT.
Children and Adult Services,Financing-Adult Services,Debtors,930024,Debtor-free nursing care,10-Oct-2013,2652101-2124382,604.40,BENFIELD HALL.
Children and Adult Services,Financing-Adult Services,Debtors,930024,Debtor-free nursing care,10-Oct-2013,2652378-2124163,862.63,DOSON LTD (DENEHURST).
Children and Adult Services,Financing-Adult Services,Debtors,930024,Debtor-free nursing care,10-Oct-2013,2652454-2124813,596.00,EUROPEAN CARE (ENGLAND) LTD.
Children and Adult Services,Financing-Adult Services,Debtors,930024,Debtor-free nursing care,10-Oct-2013,2652497-2124777,705.79,GAINFORD CARE HOMES LTD.
Children and Adult Services,Financing-Adult Services,Debtors,930024,Debtor-free nursing care,10-Oct-2013,2652536-2126136,643.06,GUARDIAN CARE HOMES (WEST) LTD.
Children and Adult Services,Financing-Adult Services,Debtors,930024,Debtor-free nursing care,10-Oct-2013,2652539-2126153,"1,842.21",HADRIAN HEALTHCARE (NE) LTD (ORCHARD MANOR).
Children and Adult Services,Financing-Adult Services,Debtors,930024,Debtor-free nursing care,10-Oct-2013,2652765-2124370,604.40,KIMBLESWORTH NURSING HOME.
Children and Adult Services,Financing-Adult Services,Debtors,930024,Debtor-free nursing care,10-Oct-2013,2652938-2126275,"2,854.54",MELBURY COURT.
Children and Adult Services,Financing-Adult Services,Debtors,930024,Debtor-free nursing care,10-Oct-2013,2653237-2126713,"1,207.69",PREMIER CARE HOMES LTD.
Children and Adult Services,Financing-Adult Services,Debtors,930024,Debtor-free nursing care,10-Oct-2013,2653261-2124118,604.40,RAYSON HOMES LTD.
Children and Adult Services,Financing-Adult Services,Debtors,930024,Debtor-free nursing care,10-Oct-2013,2653420-2123572,"2,854.54",ST MARGARETS NURSING HOME.
Children and Adult Services,Financing-Adult Services,Debtors,930024,Debtor-free nursing care,10-Oct-2013,2653429-2124967,"2,133.06",STANLEY PARK CARE CENTRE.
Children and Adult Services,Financing-Adult Services,Debtors,930024,Debtor-free nursing care,10-Oct-2013,2653475-2123303,604.40,TAMARIS HEALTHCARE LTD.
Children and Adult Services,Financing-Adult Services,Debtors,930024,Debtor-free nursing care,10-Oct-2013,2653476-2126296,"2,854.54",TAMARIS HEALTHCARE LTD.
Children and Adult Services,Financing-Adult Services,Debtors,930024,Debtor-free nursing care,10-Oct-2013,2653481-2123495,604.40,TAMARIS HEALTHCARE LTD.
Children and Adult Services,Financing-Adult Services,Debtors,930024,Debtor-free nursing care,10-Oct-2013,2653481-2123539,604.40,TAMARIS HEALTHCARE LTD.
Children and Adult Services,Financing-Adult Services,Debtors,930024,Debtor-free nursing care,10-Oct-2013,2653483-2123307,"1,097.90",TAMARIS HEALTHCARE LTD.
Children and Adult Services,Financing-Adult Services,Debtors,930024,Debtor-free nursing care,10-Oct-2013,2653507-2124315,533.27,THE COUNTY DURHAM CHESHIRE HOME.
Children and Adult Services,Financing-Adult Services,Debtors,930024,Debtor-free nursing care,10-Oct-2013,2653507-2126139,"1,835.06",THE COUNTY DURHAM CHESHIRE HOME.
Children and Adult Services,Financing-Adult Services,Debtors,930024,Debtor-free nursing care,10-Oct-2013,2653648-2123784,596.00,YODEN HALL NURSING HOME.
Children and Adult Services,Head of Adults,Third Party Payments,472101,Purchase of Care,10-Oct-2013,2651544-1365570H,517.52,360 HEALTHCARE LTD.
Children and Adult Services,Head of Adults,Third Party Payments,472101,Purchase of Care,10-Oct-2013,2651544-1365764H,887.20,360 HEALTHCARE LTD.
Children and Adult Services,Head of Adults,Third Party Payments,472101,Purchase of Care,10-Oct-2013,2651544-1365820H,"1,035.08",360 HEALTHCARE LTD.
Children and Adult Services,Head of Adults,Third Party Payments,472101,Purchase of Care,10-Oct-2013,2651544-1366258H,"1,205.12",360 HEALTHCARE LTD.
Children and Adult Services,Head of Adults,Third Party Payments,472101,Purchase of Care,10-Oct-2013,2651544-1366266H,"1,275.35",360 HEALTHCARE LTD.
Children and Adult Services,Head of Adults,Third Party Payments,472101,Purchase of Care,10-Oct-2013,2651544-1368082H,731.96,360 HEALTHCARE LTD.
Children and Adult Services,Head of Adults,Third Party Payments,472101,Purchase of Care,10-Oct-2013,2651544-1368127H,709.76,360 HEALTHCARE LTD.
Children and Adult Services,Head of Adults,Third Party Payments,472101,Purchase of Care,10-Oct-2013,2651544-1368335H,510.16,360 HEALTHCARE LTD.
Children and Adult Services,Head of Adults,Third Party Payments,472101,Purchase of Care,10-Oct-2013,2651544-1368581H,632.12,360 HEALTHCARE LTD.
Children and Adult Services,Head of Adults,Third Party Payments,472101,Purchase of Care,10-Oct-2013,2651544-1368679H,"1,127.48",360 HEALTHCARE LTD.
Children and Adult Services,Head of Adults,Third Party Payments,472101,Purchase of Care,10-Oct-2013,2651544-1368942H,"1,449.08",360 HEALTHCARE LTD.
Children and Adult Services,Head of Adults,Third Party Payments,472101,Purchase of Care,10-Oct-2013,2651544-1369078H,953.76,360 HEALTHCARE LTD.
Children and Adult Services,Head of Adults,Third Party Payments,472101,Purchase of Care,10-Oct-2013,2651544-1369102H,502.76,360 HEALTHCARE LTD.
Children and Adult Services,Head of Adults,Third Party Payments,472101,Purchase of Care,10-Oct-2013,2651544-1369188H,831.76,360 HEALTHCARE LTD.
Children and Adult Services,Head of Adults,Third Party Payments,472101,Purchase of Care,10-Oct-2013,2651544-1369264H,669.11,360 HEALTHCARE LTD.
Children and Adult Services,Head of Adults,Third Party Payments,472101,Purchase of Care,10-Oct-2013,2651544-1369434H,754.12,360 HEALTHCARE LTD.
Children and Adult Services,Head of Adults,Third Party Payments,472101,Purchase of Care,10-Oct-2013,2651544-1370063H,"1,231.00",360 HEALTHCARE LTD.
Children and Adult Services,Head of Adults,Third Party Payments,472101,Purchase of Care,10-Oct-2013,2651544-1370100H,713.46,360 HEALTHCARE LTD.
